Workbook

Sheet SĀKUMS
B1: PAR ŠO VEIDNI
B2: Izmantojiet šo uzņēmuma izdevumu budžeta darbgrāmatu, lai sekotu plānotajiem un faktiskajiem izdevumiem un novirzēm.
B3: Aizpildiet uzņēmuma nosaukumu un pievienojiet logotipu.
B4: Ievadiet detalizētu informāciju tabulās darblapās Plānotie izdevumi un Faktiskie izdevumi.
B5: Tabulas tiek automātiski atjauninātas darblapā Izdevumu novirzes un diagrammās darblapā Izdevumu analīze
B6: Piezīme.
B7: Papildu norādījumi ir sniegti kolonnā A katrā darblapā. Šis teksts ir paslēpts ar nolūku. Lai tekstu noņemtu, atlasiet kolonnu A, pēc tam atlasiet DZĒST. Lai parādītu slēpto tekstu, atlasiet kolonnu A, pēc tam nomainiet fonta krāsu.
B8: Lai iegūtu papildinformāciju par tabulām, nospiediet taustiņu SHIFT un pēc tam F10 tabulā, atlasiet opciju TABULA un pēc tam atlasiet ALTERNATĪVAIS TEKSTS

Sheet PLĀNOTIE IZDEVUMI
A1: Ievadiet plānotās darbinieku izmaksas, biroja izmaksas, mārketinga izmaksas un apmācību vai komandējumu izmaksas attiecīgajās tabulās šajā darblapā. Kopsummas tiek aprēķinātas automātiski. Noderīgi norādījumi par to, kā lietot šo darblapu, ir šīs kolonnas šūnās. Bultiņa uz leju, lai sāktu darbu.
A2: Ievadiet uzņēmuma nosaukumu šūnā pa labi un logotipu šūnā N2. Šūnā K2 ir šīs darblapas nosaukums. | B2: Uzņēmuma nosaukumu | K2: Detalizēti izdevumu aprēķini | N2: Logotipa vietturis ir šajā šūnā.
A3: Padoms ir šūnā K3 | K3: Ēnotās šūnas ir aprēķini.
A4: Etiķete Plānotie izdevumi ir šūnā pa labi, mēneši šūnās no C4 līdz N4, etiķete Gads šūnā O4 un norādījumi par šīs veidnes lietošanu šūnā R4. | B4: PLĀNOTIE IZDEVUMI | C4: JAN | D4: FEB | E4: MAR | F4: APR | G4: MAI | H4: JŪN | I4: JŪL | J4: AUG | K4: SEPT | L4: OKT | M4: NOV | N4: DEC | O4: GADS | R4: Padoms. KĀ IZMANTOT ŠO VEIDNI Ievadiet datus baltajās šūnās darblapās PLĀNOTIE IZDEVUMI un FAKTISKIE IZDEVUMI, un IZDEVUMU NOVIRZES un IZDEVUMU ANALĪZE tiks aprēķinātas jūsu vietā. Ja pievienojat rindu vienā lapā, pārējām lapām ir jābūt atbilstošām.
A5: Ievadiet darbinieku izmaksas tabulā Darbinieku plāns, sākot ar šūnu pa labi. Nākamais norādījums ir šūnā A10. | B5: Darbinieku izmaksas | C5: Jan | D5: Feb | E5: Mar | F5: Apr | G5: Maijs | H5: Jūn | I5: Jūl | J5: Aug | K5: Sep | L5: Okt | M5: Nov | N5: Dec | O5: GADS
B6: Alga | C6: 85,000.00 EUR | D6: 85,000.00 EUR | E6: 85,000.00 EUR | F6: 87,500.00 EUR | G6: 87,500.00 EUR | H6: 87,500.00 EUR | I6: 87,500.00 EUR | J6: 92,400.00 EUR | K6: 92,400.00 EUR | L6: 92,400.00 EUR | M6: 92,400.00 EUR | N6: 92,400.00 EUR | O6: =SUM(C6:N6) -> 1,067,000.00 EUR
B7: Labumi | C7: =C6*0.27 -> 22,950.00 EUR | D7: =D6*0.27 -> 22,950.00 EUR | E7: =E6*0.27 -> 22,950.00 EUR | F7: =F6*0.27 -> 23,625.00 EUR | G7: =G6*0.27 -> 23,625.00 EUR | H7: =H6*0.27 -> 23,625.00 EUR | I7: =I6*0.27 -> 23,625.00 EUR | J7: =J6*0.27 -> 24,948.00 EUR | K7: =K6*0.27 -> 24,948.00 EUR | L7: =L6*0.27 -> 24,948.00 EUR | M7: =M6*0.27 -> 24,948.00 EUR | N7: =N6*0.27 -> 24,948.00 EUR | O7: =SUM(C7:N7) -> 288,090.00 EUR
B8: Starpsumma | C8: =SUBTOTAL(109,Darbinieku_plāns[Jan]) -> 107,950.00 EUR | D8: =SUBTOTAL(109,Darbinieku_plāns[Feb]) -> 107,950.00 EUR | E8: =SUBTOTAL(109,Darbinieku_plāns[Mar]) -> 107,950.00 EUR | F8: =SUBTOTAL(109,Darbinieku_plāns[Apr]) -> 111,125.00 EUR | G8: =SUBTOTAL(109,Darbinieku_plāns[Maijs]) -> 111,125.00 EUR | H8: =SUBTOTAL(109,Darbinieku_plāns[Jūn]) -> 111,125.00 EUR | I8: =SUBTOTAL(109,Darbinieku_plāns[Jūl]) -> 111,125.00 EUR | J8: =SUBTOTAL(109,Darbinieku_plāns[Aug]) -> 117,348.00 EUR | K8: =SUBTOTAL(109,Darbinieku_plāns[Sep]) -> 117,348.00 EUR | L8: =SUBTOTAL(109,Darbinieku_plāns[Okt]) -> 117,348.00 EUR | M8: =SUBTOTAL(109,Darbinieku_plāns[Nov]) -> 117,348.00 EUR | N8: =SUBTOTAL(109,Darbinieku_plāns[Dec]) -> 117,348.00 EUR | O8: =SUBTOTAL(109,Darbinieku_plāns[GADS]) -> 1,355,090.00 EUR
A10: Ievadiet biroja izmaksas tabulā Biroja plāns, sākot ar šūnu pa labi. Nākamais norādījums ir šūnā A21. | B10: Biroja izmaksas | C10: Jan | D10: Feb | E10: Mar | F10: Apr | G10: Maijs | H10: Jūn | I10: Jūl | J10: Aug | K10: Sep | L10: Okt | M10: Nov | N10: Dec | O10: GADS
B11: Biroja noma | C11: 9,800.00 EUR | D11: 9,800.00 EUR | E11: 9,800.00 EUR | F11: 9,800.00 EUR | G11: 9,800.00 EUR | H11: 9,800.00 EUR | I11: 9,800.00 EUR | J11: 9,800.00 EUR | K11: 9,800.00 EUR | L11: 9,800.00 EUR | M11: 9,800.00 EUR | N11: 9,800.00 EUR | O11: =SUM(C11:N11) -> 117,600.00 EUR
B12: Gāze | D12: 400.00 EUR | E12: 400.00 EUR | F12: 100.00 EUR | G12: 100.00 EUR | H12: 100.00 EUR | I12: 100.00 EUR | J12: 100.00 EUR | K12: 100.00 EUR | L12: 100.00 EUR | M12: 400.00 EUR | N12: 400.00 EUR | O12: 2,300.00 EUR
B13: Elektrība | C13: 300.00 EUR | D13: 300.00 EUR | E13: 300.00 EUR | F13: 300.00 EUR | G13: 300.00 EUR | H13: 300.00 EUR | I13: 300.00 EUR | J13: 300.00 EUR | K13: 300.00 EUR | L13: 300.00 EUR | M13: 300.00 EUR | N13: 300.00 EUR | O13: 3,600.00 EUR
B14: Ūdens | C14: 40.00 EUR | D14: 40.00 EUR | E14: 40.00 EUR | F14: 40.00 EUR | G14: 40.00 EUR | H14: 40.00 EUR | I14: 40.00 EUR | J14: 40.00 EUR | K14: 40.00 EUR | L14: 40.00 EUR | M14: 40.00 EUR | N14: 40.00 EUR | O14: 480.00 EUR
B15: Tālrunis | C15: 250.00 EUR | D15: 250.00 EUR | E15: 250.00 EUR | F15: 250.00 EUR | G15: 250.00 EUR | H15: 250.00 EUR | I15: 250.00 EUR | J15: 250.00 EUR | K15: 250.00 EUR | L15: 250.00 EUR | M15: 250.00 EUR | N15: 250.00 EUR | O15: 3,000.00 EUR
B16: Interneta piekļuve | C16: 180.00 EUR | D16: 180.00 EUR | E16: 180.00 EUR | F16: 180.00 EUR | G16: 180.00 EUR | H16: 180.00 EUR | I16: 180.00 EUR | J16: 180.00 EUR | K16: 180.00 EUR | L16: 180.00 EUR | M16: 180.00 EUR | N16: 180.00 EUR | O16: 2,160.00 EUR
B17: Biroja piederumi | C17: 200.00 EUR | D17: 200.00 EUR | E17: 200.00 EUR | F17: 200.00 EUR | G17: 200.00 EUR | H17: 200.00 EUR | I17: 200.00 EUR | J17: 200.00 EUR | K17: 200.00 EUR | L17: 200.00 EUR | M17: 200.00 EUR | N17: 200.00 EUR | O17: 2,400.00 EUR
B18: Drošība | C18: 600.00 EUR | D18: 600.00 EUR | E18: 600.00 EUR | F18: 600.00 EUR | G18: 600.00 EUR | H18: 600.00 EUR | I18: 600.00 EUR | J18: 600.00 EUR | K18: 600.00 EUR | L18: 600.00 EUR | M18: 600.00 EUR | N18: 600.00 EUR | O18: 7,200.00 EUR
B19: Starpsumma | C19: =SUBTOTAL(109,Biroja_plāns[Jan]) -> 11,370.00 EUR | D19: =SUBTOTAL(109,Biroja_plāns[Feb]) -> 11,770.00 EUR | E19: =SUBTOTAL(109,Biroja_plāns[Mar]) -> 11,770.00 EUR | F19: =SUBTOTAL(109,Biroja_plāns[Apr]) -> 11,470.00 EUR | G19: =SUBTOTAL(109,Biroja_plāns[Maijs]) -> 11,470.00 EUR | H19: =SUBTOTAL(109,Biroja_plāns[Jūn]) -> 11,470.00 EUR | I19: =SUBTOTAL(109,Biroja_plāns[Jūl]) -> 11,470.00 EUR | J19: =SUBTOTAL(109,Biroja_plāns[Aug]) -> 11,470.00 EUR | K19: =SUBTOTAL(109,Biroja_plāns[Sep]) -> 11,470.00 EUR | L19: =SUBTOTAL(109,Biroja_plāns[Okt]) -> 11,470.00 EUR | M19: =SUBTOTAL(109,Biroja_plāns[Nov]) -> 11,770.00 EUR | N19: =SUBTOTAL(109,Biroja_plāns[Dec]) -> 11,770.00 EUR | O19: =SUBTOTAL(109,Biroja_plāns[GADS]) -> 138,740.00 EUR
A21: Ievadiet mārketinga izmaksas tabulā Mārketinga plāns, sākot ar šūnu pa labi. Nākamais norādījums ir šūnā A30. | B21: Mārketinga izmaksas | C21: Jan | D21: Feb | E21: Mar | F21: Apr | G21: Maijs | H21: Jūn | I21: Jūl | J21: Aug | K21: Sep | L21: Okt | M21: Nov | N21: Dec | O21: GADS
B22: Tīmekļa vietnes viesošana | C22: 500.00 EUR | D22: 500.00 EUR | E22: 500.00 EUR | F22: 500.00 EUR | G22: 500.00 EUR | H22: 500.00 EUR | I22: 500.00 EUR | J22: 500.00 EUR | K22: 500.00 EUR | L22: 500.00 EUR | M22: 500.00 EUR | N22: 500.00 EUR | O22: =SUM(C22:N22) -> 6,000.00 EUR
B23: Tīmekļa vietnes atjauninājumi | C23: 200.00 EUR | D23: 200.00 EUR | E23: 200.00 EUR | F23: 200.00 EUR | G23: 200.00 EUR | H23: 1,000.00 EUR | I23: 200.00 EUR | J23: 200.00 EUR | K23: 200.00 EUR | L23: 200.00 EUR | M23: 200.00 EUR | N23: 1,000.00 EUR | O23: 4,000.00 EUR
B24: Papildu sagatavošana | C24: 5,000.00 EUR | D24: 0.00 EUR | E24: 0.00 EUR | F24: 5,000.00 EUR | G24: 0.00 EUR | H24: 0.00 EUR | I24: 5,000.00 EUR | J24: 0.00 EUR | K24: 0.00 EUR | L24: 5,000.00 EUR | M24: 0.00 EUR | N24: 0.00 EUR | O24: 20,000.00 EUR
B25: Papildu drukāšana | C25: 200.00 EUR | D25: 200.00 EUR | E25: 200.00 EUR | F25: 200.00 EUR | G25: 200.00 EUR | H25: 200.00 EUR | I25: 200.00 EUR | J25: 200.00 EUR | K25: 200.00 EUR | L25: 200.00 EUR | M25: 200.00 EUR | N25: 200.00 EUR | O25: 2,400.00 EUR
B26: Mārketinga pasākumi | C26: 2,000.00 EUR | D26: 2,000.00 EUR | E26: 2,000.00 EUR | F26: 5,000.00 EUR | G26: 2,000.00 EUR | H26: 2,000.00 EUR | I26: 2,000.00 EUR | J26: 5,000.00 EUR | K26: 2,000.00 EUR | L26: 2,000.00 EUR | M26: 2,000.00 EUR | N26: 5,000.00 EUR | O26: 33,000.00 EUR
B27: Dažādi izdevumi | C27: 200.00 EUR | D27: 200.00 EUR | E27: 200.00 EUR | F27: 200.00 EUR | G27: 200.00 EUR | H27: 200.00 EUR | I27: 200.00 EUR | J27: 200.00 EUR | K27: 200.00 EUR | L27: 200.00 EUR | M27: 200.00 EUR | N27: 200.00 EUR | O27: 2,400.00 EUR
B28: Starpsumma | C28: =SUBTOTAL(109,Mārketinga_plāns[Jan]) -> 8,100.00 EUR | D28: =SUBTOTAL(109,Mārketinga_plāns[Feb]) -> 3,100.00 EUR | E28: =SUBTOTAL(109,Mārketinga_plāns[Mar]) -> 3,100.00 EUR | F28: =SUBTOTAL(109,Mārketinga_plāns[Apr]) -> 11,100.00 EUR | G28: =SUBTOTAL(109,Mārketinga_plāns[Maijs]) -> 3,100.00 EUR | H28: =SUBTOTAL(109,Mārketinga_plāns[Jūn]) -> 3,900.00 EUR | I28: =SUBTOTAL(109,Mārketinga_plāns[Jūl]) -> 8,100.00 EUR | J28: =SUBTOTAL(109,Mārketinga_plāns[Aug]) -> 6,100.00 EUR | K28: =SUBTOTAL(109,Mārketinga_plāns[Sep]) -> 3,100.00 EUR | L28: =SUBTOTAL(109,Mārketinga_plāns[Okt]) -> 8,100.00 EUR | M28: =SUBTOTAL(109,Mārketinga_plāns[Nov]) -> 3,100.00 EUR | N28: =SUBTOTAL(109,Mārketinga_plāns[Dec]) -> 6,900.00 EUR | O28: =SUBTOTAL(109,Mārketinga_plāns[GADS]) -> 67,800.00 EUR
A30: Ievadiet apmācību un komandējumu izmaksas tabulā Apmācību un komandējumu plāns, sākot ar šūnu pa labi. Nākamais norādījums ir šūnā A35. | B30: Apmācības/komandējumi | C30: Jan | D30: Feb | E30: Mar | F30: Apr | G30: Maijs | H30: Jūn | I30: Jūl | J30: Aug | K30: Sep | L30: Okt | M30: Nov | N30: Dec | O30: GADS
B31: Apmācību nodarbības | C31: 2,000.00 EUR | D31: 2,000.00 EUR | E31: 2,000.00 EUR | F31: 2,000.00 EUR | G31: 2,000.00 EUR | H31: 2,000.00 EUR | I31: 2,000.00 EUR | J31: 2,000.00 EUR | K31: 2,000.00 EUR | L31: 2,000.00 EUR | M31: 2,000.00 EUR | N31: 2,000.00 EUR | O31: =SUM(C31:N31) -> 24,000.00 EUR
B32: Ar apmācībām saistītu komandējumu izmaksas | C32: 2,000.00 EUR | D32: 2,000.00 EUR | E32: 2,000.00 EUR | F32: 2,000.00 EUR | G32: 2,000.00 EUR | H32: 2,000.00 EUR | I32: 2,000.00 EUR | J32: 2,000.00 EUR | K32: 2,000.00 EUR | L32: 2,000.00 EUR | M32: 2,000.00 EUR | N32: 2,000.00 EUR | O32: =SUM(C32:N32) -> 24,000.00 EUR
B33: Starpsumma | C33: =SUBTOTAL(109,Apmācību_un_komandējumu_plāns[Jan]) -> 4,000.00 EUR | D33: =SUBTOTAL(109,Apmācību_un_komandējumu_plāns[Feb]) -> 4,000.00 EUR | E33: =SUBTOTAL(109,Apmācību_un_komandējumu_plāns[Mar]) -> 4,000.00 EUR | F33: =SUBTOTAL(109,Apmācību_un_komandējumu_plāns[Apr]) -> 4,000.00 EUR | G33: =SUBTOTAL(109,Apmācību_un_komandējumu_plāns[Maijs]) -> 4,000.00 EUR | H33: =SUBTOTAL(109,Apmācību_un_komandējumu_plāns[Jūn]) -> 4,000.00 EUR | I33: =SUBTOTAL(109,Apmācību_un_komandējumu_plāns[Jūl]) -> 4,000.00 EUR | J33: =SUBTOTAL(109,Apmācību_un_komandējumu_plāns[Aug]) -> 4,000.00 EUR | K33: =SUBTOTAL(109,Apmācību_un_komandējumu_plāns[Sep]) -> 4,000.00 EUR | L33: =SUBTOTAL(109,Apmācību_un_komandējumu_plāns[Okt]) -> 4,000.00 EUR | M33: =SUBTOTAL(109,Apmācību_un_komandējumu_plāns[Nov]) -> 4,000.00 EUR | N33: =SUBTOTAL(109,Apmācību_un_komandējumu_plāns[Dec]) -> 4,000.00 EUR | O33: =SUBTOTAL(109,Apmācību_un_komandējumu_plāns[GADS]) -> 48,000.00 EUR
A35: Kopsummas tiek automātiski aprēķinātas tabulā Plānotā kopsumma, sākot ar šūnu pa labi. | B35: KOPSUMMAS | C35: Jan | D35: Feb | E35: Mar | F35: Apr | G35: Maijs | H35: Jūn | I35: Jūl | J35: Aug | K35: Sep | L35: Okt | M35: Nov | N35: Dec | O35: Gads
B36: Ikmēneša plānotie izdevumi | C36: =Apmācību_un_komandējumu_plāns[[#Totals],[Jan]]+Mārketinga_plāns[[#Totals],[Jan]]+Biroja_plāns[[#Totals],[Jan]]+Darbinieku_plāns[[#Totals],[Jan]] -> 131,420.00 EUR | D36: =Apmācību_un_komandējumu_plāns[[#Totals],[Feb]]+Mārketinga_plāns[[#Totals],[Feb]]+Biroja_plāns[[#Totals],[Feb]]+Darbinieku_plāns[[#Totals],[Feb]] -> 126,820.00 EUR | E36: =Apmācību_un_komandējumu_plāns[[#Totals],[Mar]]+Mārketinga_plāns[[#Totals],[Mar]]+Biroja_plāns[[#Totals],[Mar]]+Darbinieku_plāns[[#Totals],[Mar]] -> 126,820.00 EUR | F36: =Apmācību_un_komandējumu_plāns[[#Totals],[Apr]]+Mārketinga_plāns[[#Totals],[Apr]]+Biroja_plāns[[#Totals],[Apr]]+Darbinieku_plāns[[#Totals],[Apr]] -> 137,695.00 EUR | G36: =Apmācību_un_komandējumu_plāns[[#Totals],[Maijs]]+Mārketinga_plāns[[#Totals],[Maijs]]+Biroja_plāns[[#Totals],[Maijs]]+Darbinieku_plāns[[#Totals],[Maijs]] -> 129,695.00 EUR | H36: =Apmācību_un_komandējumu_plāns[[#Totals],[Jūn]]+Mārketinga_plāns[[#Totals],[Jūn]]+Biroja_plāns[[#Totals],[Jūn]]+Darbinieku_plāns[[#Totals],[Jūn]] -> 130,495.00 EUR | I36: =Apmācību_un_komandējumu_plāns[[#Totals],[Jūl]]+Mārketinga_plāns[[#Totals],[Jūl]]+Biroja_plāns[[#Totals],[Jūl]]+Darbinieku_plāns[[#Totals],[Jūl]] -> 134,695.00 EUR | J36: =Apmācību_un_komandējumu_plāns[[#Totals],[Aug]]+Mārketinga_plāns[[#Totals],[Aug]]+Biroja_plāns[[#Totals],[Aug]]+Darbinieku_plāns[[#Totals],[Aug]] -> 138,918.00 EUR | K36: =Apmācību_un_komandējumu_plāns[[#Totals],[Sep]]+Mārketinga_plāns[[#Totals],[Sep]]+Biroja_plāns[[#Totals],[Sep]]+Darbinieku_plāns[[#Totals],[Sep]] -> 135,918.00 EUR | L36: =Apmācību_un_komandējumu_plāns[[#Totals],[Okt]]+Mārketinga_plāns[[#Totals],[Okt]]+Biroja_plāns[[#Totals],[Okt]]+Darbinieku_plāns[[#Totals],[Okt]] -> 140,918.00 EUR | M36: =Apmācību_un_komandējumu_plāns[[#Totals],[Nov]]+Mārketinga_plāns[[#Totals],[Nov]]+Biroja_plāns[[#Totals],[Nov]]+Darbinieku_plāns[[#Totals],[Nov]] -> 136,218.00 EUR | N36: =Apmācību_un_komandējumu_plāns[[#Totals],[Dec]]+Mārketinga_plāns[[#Totals],[Dec]]+Biroja_plāns[[#Totals],[Dec]]+Darbinieku_plāns[[#Totals],[Dec]] -> 140,018.00 EUR | O36: =Apmācību_un_komandējumu_plāns[[#Totals],[GADS]]+Mārketinga_plāns[[#Totals],[GADS]]+Biroja_plāns[[#Totals],[GADS]]+Darbinieku_plāns[[#Totals],[GADS]] -> 1,609,630.00 EUR
B37: KOPĒJIE plānotie izdevumi | C37: =SUM($C$36:C36) -> 131,420.00 EUR | D37: =SUM($C$36:D36) -> 258,240.00 EUR | E37: =SUM($C$36:E36) -> 385,060.00 EUR | F37: =SUM($C$36:F36) -> 522,755.00 EUR | G37: =SUM($C$36:G36) -> 652,450.00 EUR | H37: =SUM($C$36:H36) -> 782,945.00 EUR | I37: =SUM($C$36:I36) -> 917,640.00 EUR | J37: =SUM($C$36:J36) -> 1,056,558.00 EUR | K37: =SUM($C$36:K36) -> 1,192,476.00 EUR | L37: =SUM($C$36:L36) -> 1,333,394.00 EUR | M37: =SUM($C$36:M36) -> 1,469,612.00 EUR | N37: =SUM($C$36:N36) -> 1,609,630.00 EUR

Sheet FAKTISKIE IZDEVUMI
A1: Ievadiet faktiskās darbinieku izmaksas, biroja izmaksas, mārketinga izmaksas un apmācību vai komandējumu izmaksas attiecīgajās tabulās šajā darblapā. Kopsummas tiek aprēķinātas automātiski. Noderīgi norādījumi par to, kā lietot šo darblapu, ir šīs kolonnas šūnās. Bultiņa uz leju, lai sāktu darbu.
A2: Šūnā pa labi tiek automātiski atjaunināts uzņēmuma nosaukumu. Šūnā K2 ir šīs darblapas nosaukums. Ievadiet logotipu šūnā N2. | B2: ='PLĀNOTIE IZDEVUMI'!B2:D3 -> Uzņēmuma nosaukumu | K2: =darblapas_nosaukums -> Detalizēti izdevumu aprēķini | N2: Logotipa vietturis ir šajā šūnā.
A3: Padoms ir šūnā K3 | K3: Ēnotās šūnas ir aprēķini.
A4: Etiķete Faktiskie izdevumi ir šūnā pa labi, mēneši šūnās no C4 līdz N4 un etiķete Gads šūnā O4. | B4: FAKTISKIE IZDEVUMI | C4: JAN | D4: FEB | E4: MAR | F4: APR | G4: MAI | H4: JŪN | I4: JŪL | J4: AUG | K4: SEPT | L4: OKT | M4: NOV | N4: DEC | O4: GADS
A5: Ievadiet darbinieku izmaksas tabulā Darbinieku faktiskās izmaksas, sākot ar šūnu pa labi. Nākamais norādījums ir šūnā A10. | B5: Darbinieku izmaksas | C5: Jan | D5: Feb | E5: Mar | F5: Apr | G5: Maijs | H5: Jūn | I5: Jūl | J5: Aug | K5: Sep | L5: Okt | M5: Nov | N5: Dec | O5: GADS
B6: Alga | C6: 85,000.00 EUR | D6: 85,000.00 EUR | E6: 85,000.00 EUR | F6: 88,000.00 EUR | G6: 88,000.00 EUR | H6: 88,000.00 EUR | O6: =SUM(C6:N6) -> 519,000.00 EUR
B7: Labumi | C7: =C6*0.27 -> 22,950.00 EUR | D7: =D6*0.27 -> 22,950.00 EUR | E7: =E6*0.27 -> 22,950.00 EUR | F7: =F6*0.27 -> 23,760.00 EUR | G7: =G6*0.27 -> 23,760.00 EUR | H7: =H6*0.27 -> 23,760.00 EUR | I7: =I6*0.27 -> 0.00 EUR | J7: =J6*0.27 -> 0.00 EUR | K7: =K6*0.27 -> 0.00 EUR | L7: =L6*0.27 -> 0.00 EUR | M7: =M6*0.27 -> 0.00 EUR | N7: =N6*0.27 -> 0.00 EUR | O7: =SUM(C7:N7) -> 140,130.00 EUR
B8: Starpsumma | C8: =SUBTOTAL(109,Darbinieku_faktiskās_izmaksas[Jan]) -> 107,950.00 EUR | D8: =SUBTOTAL(109,Darbinieku_faktiskās_izmaksas[Feb]) -> 107,950.00 EUR | E8: =SUBTOTAL(109,Darbinieku_faktiskās_izmaksas[Mar]) -> 107,950.00 EUR | F8: =SUBTOTAL(109,Darbinieku_faktiskās_izmaksas[Apr]) -> 111,760.00 EUR | G8: =SUBTOTAL(109,Darbinieku_faktiskās_izmaksas[Maijs]) -> 111,760.00 EUR | H8: =SUBTOTAL(109,Darbinieku_faktiskās_izmaksas[Jūn]) -> 111,760.00 EUR | I8: =SUBTOTAL(109,Darbinieku_faktiskās_izmaksas[Jūl]) -> 0.00 EUR | J8: =SUBTOTAL(109,Darbinieku_faktiskās_izmaksas[Aug]) -> 0.00 EUR | K8: =SUBTOTAL(109,Darbinieku_faktiskās_izmaksas[Sep]) -> 0.00 EUR | L8: =SUBTOTAL(109,Darbinieku_faktiskās_izmaksas[Okt]) -> 0.00 EUR | M8: =SUBTOTAL(109,Darbinieku_faktiskās_izmaksas[Nov]) -> 0.00 EUR | N8: =SUBTOTAL(109,Darbinieku_faktiskās_izmaksas[Dec]) -> 0.00 EUR | O8: =SUBTOTAL(109,Darbinieku_faktiskās_izmaksas[GADS]) -> 659,130.00 EUR
A10: Ievadiet biroja izmaksas tabulā Biroja faktiskās izmaksas, sākot ar šūnu pa labi. Nākamais norādījums ir šūnā A21. | B10: Biroja izmaksas | C10: Jan | D10: Feb | E10: Mar | F10: Apr | G10: Maijs | H10: Jūn | I10: Jūl | J10: Aug | K10: Sep | L10: Okt | M10: Nov | N10: Dec | O10: GADS
B11: Biroja noma | C11: 9,800.00 EUR | D11: 9,800.00 EUR | E11: 9,800.00 EUR | F11: 9,800.00 EUR | G11: 9,800.00 EUR | H11: 9,800.00 EUR | O11: =SUM(C11:N11) -> 58,800.00 EUR
B12: Gāze | C12: 4.00 EUR | D12: 430.00 EUR | E12: 385.00 EUR | F12: 230.00 EUR | G12: 87.00 EUR | H12: 88.00 EUR | O12: 1,224.00 EUR
B13: Elektrība | C13: 288.00 EUR | D13: 278.00 EUR | E13: 268.00 EUR | F13: 299.00 EUR | G13: 306.00 EUR | H13: 290.00 EUR | O13: 1,729.00 EUR
B14: Ūdens | C14: 35.00 EUR | D14: 33.00 EUR | E14: 34.00 EUR | F14: 36.00 EUR | G14: 34.00 EUR | H14: 36.00 EUR | O14: 208.00 EUR
B15: Tālrunis | C15: 224.00 EUR | D15: 235.00 EUR | E15: 265.00 EUR | F15: 245.00 EUR | G15: 245.00 EUR | H15: 220.00 EUR | O15: 1,434.00 EUR
B16: Interneta piekļuve | C16: 180.00 EUR | D16: 180.00 EUR | E16: 180.00 EUR | F16: 180.00 EUR | G16: 180.00 EUR | H16: 180.00 EUR | O16: 1,080.00 EUR
B17: Biroja piederumi | C17: 256.00 EUR | D17: 142.00 EUR | E17: 160.00 EUR | F17: 221.00 EUR | G17: 256.00 EUR | H17: 240.00 EUR | O17: 1,275.00 EUR
B18: Drošība | C18: 600.00 EUR | D18: 600.00 EUR | E18: 600.00 EUR | F18: 600.00 EUR | G18: 600.00 EUR | H18: 600.00 EUR | O18: 3,600.00 EUR
B19: Starpsumma | C19: =SUBTOTAL(109,Biroja_faktiskās_izmaksas[Jan]) -> 11,387.00 EUR | D19: =SUBTOTAL(109,Biroja_faktiskās_izmaksas[Feb]) -> 11,698.00 EUR | E19: =SUBTOTAL(109,Biroja_faktiskās_izmaksas[Mar]) -> 11,692.00 EUR | F19: =SUBTOTAL(109,Biroja_faktiskās_izmaksas[Apr]) -> 11,611.00 EUR | G19: =SUBTOTAL(109,Biroja_faktiskās_izmaksas[Maijs]) -> 11,508.00 EUR | H19: =SUBTOTAL(109,Biroja_faktiskās_izmaksas[Jūn]) -> 11,454.00 EUR | I19: =SUBTOTAL(109,Biroja_faktiskās_izmaksas[Jūl]) -> 0.00 EUR | J19: =SUBTOTAL(109,Biroja_faktiskās_izmaksas[Aug]) -> 0.00 EUR | K19: =SUBTOTAL(109,Biroja_faktiskās_izmaksas[Sep]) -> 0.00 EUR | L19: =SUBTOTAL(109,Biroja_faktiskās_izmaksas[Okt]) -> 0.00 EUR | M19: =SUBTOTAL(109,Biroja_faktiskās_izmaksas[Nov]) -> 0.00 EUR | N19: =SUBTOTAL(109,Biroja_faktiskās_izmaksas[Dec]) -> 0.00 EUR | O19: =SUBTOTAL(109,Biroja_faktiskās_izmaksas[GADS]) -> 69,350.00 EUR
A21: Ievadiet mārketinga izmaksas tabulā Mārketinga faktiskās izmaksas, sākot ar šūnu pa labi. Nākamais norādījums ir šūnā A30. | B21: Mārketinga izmaksas | C21: Jan | D21: Feb | E21: Mar | F21: Apr | G21: Maijs | H21: Jūn | I21: Jūl | J21: Aug | K21: Sep | L21: Okt | M21: Nov | N21: Dec | O21: GADS
B22: Tīmekļa vietnes viesošana | C22: 500.00 EUR | D22: 500.00 EUR | E22: 500.00 EUR | F22: 500.00 EUR | G22: 500.00 EUR | H22: 500.00 EUR | O22: =SUM(C22:N22) -> 3,000.00 EUR
B23: Tīmekļa vietnes atjauninājumi | C23: 200.00 EUR | D23: 200.00 EUR | E23: 200.00 EUR | F23: 200.00 EUR | G23: 200.00 EUR | H23: 1,500.00 EUR | O23: 2,500.00 EUR
B24: Papildu sagatavošana | C24: 4,800.00 EUR | D24: 0.00 EUR | E24: 0.00 EUR | F24: 5,500.00 EUR | G24: 0.00 EUR | H24: 0.00 EUR | O24: 10,300.00 EUR
B25: Papildu drukāšana | C25: 100.00 EUR | D25: 500.00 EUR | E25: 100.00 EUR | F25: 100.00 EUR | G25: 600.00 EUR | H25: 180.00 EUR | O25: 1,580.00 EUR
B26: Mārketinga pasākumi | C26: 1,800.00 EUR | D26: 2,200.00 EUR | E26: 2,200.00 EUR | F26: 4,700.00 EUR | G26: 1,500.00 EUR | H26: 2,300.00 EUR | O26: 14,700.00 EUR
B27: Dažādi izdevumi | C27: 145.00 EUR | D27: 156.00 EUR | E27: 123.00 EUR | F27: 223.00 EUR | G27: 187.00 EUR | H27: 245.00 EUR | O27: 1,079.00 EUR
B28: Starpsumma | C28: =SUBTOTAL(109,Mārketinga_faktiskās_izmaksas[Jan]) -> 7,545.00 EUR | D28: =SUBTOTAL(109,Mārketinga_faktiskās_izmaksas[Feb]) -> 3,556.00 EUR | E28: =SUBTOTAL(109,Mārketinga_faktiskās_izmaksas[Mar]) -> 3,123.00 EUR | F28: =SUBTOTAL(109,Mārketinga_faktiskās_izmaksas[Apr]) -> 11,223.00 EUR | G28: =SUBTOTAL(109,Mārketinga_faktiskās_izmaksas[Maijs]) -> 2,987.00 EUR | H28: =SUBTOTAL(109,Mārketinga_faktiskās_izmaksas[Jūn]) -> 4,725.00 EUR | I28: =SUBTOTAL(109,Mārketinga_faktiskās_izmaksas[Jūl]) -> 0.00 EUR | J28: =SUBTOTAL(109,Mārketinga_faktiskās_izmaksas[Aug]) -> 0.00 EUR | K28: =SUBTOTAL(109,Mārketinga_faktiskās_izmaksas[Sep]) -> 0.00 EUR | L28: =SUBTOTAL(109,Mārketinga_faktiskās_izmaksas[Okt]) -> 0.00 EUR | M28: =SUBTOTAL(109,Mārketinga_faktiskās_izmaksas[Nov]) -> 0.00 EUR | N28: =SUBTOTAL(109,Mārketinga_faktiskās_izmaksas[Dec]) -> 0.00 EUR | O28: =SUBTOTAL(109,Mārketinga_faktiskās_izmaksas[GADS]) -> 33,159.00 EUR
A30: Ievadiet apmācību vai komandējumu izmaksas tabulā Apmācību un komandējumu faktiskās izmaksas, sākot ar šūnu pa labi. Nākamais norādījums ir šūnā A35. | B30: Apmācības/komandējumi | C30: Jan | D30: Feb | E30: Mar | F30: Apr | G30: Maijs | H30: Jūn | I30: Jūl | J30: Aug | K30: Sep | L30: Okt | M30: Nov | N30: Dec | O30: GADS
B31: Apmācību nodarbības | C31: 1,600.00 EUR | D31: 2,400.00 EUR | E31: 1,400.00 EUR | F31: 1,600.00 EUR | G31: 1,200.00 EUR | H31: 2,800.00 EUR | O31: =SUM(C31:N31) -> 11,000.00 EUR
B32: Ar apmācībām saistītu komandējumu izmaksas | C32: 1,200.00 EUR | D32: 2,200.00 EUR | E32: 1,400.00 EUR | F32: 1,200.00 EUR | G32: 800.00 EUR | H32: 3,500.00 EUR | O32: =SUM(C32:N32) -> 10,300.00 EUR
B33: Starpsumma | C33: =SUBTOTAL(109,Apmācību_un_komandējumu_faktiskās_izmaksas[Jan]) -> 2,800.00 EUR | D33: =SUBTOTAL(109,Apmācību_un_komandējumu_faktiskās_izmaksas[Feb]) -> 4,600.00 EUR | E33: =SUBTOTAL(109,Apmācību_un_komandējumu_faktiskās_izmaksas[Mar]) -> 2,800.00 EUR | F33: =SUBTOTAL(109,Apmācību_un_komandējumu_faktiskās_izmaksas[Apr]) -> 2,800.00 EUR | G33: =SUBTOTAL(109,Apmācību_un_komandējumu_faktiskās_izmaksas[Maijs]) -> 2,000.00 EUR | H33: =SUBTOTAL(109,Apmācību_un_komandējumu_faktiskās_izmaksas[Jūn]) -> 6,300.00 EUR | I33: =SUBTOTAL(109,Apmācību_un_komandējumu_faktiskās_izmaksas[Jūl]) -> 0.00 EUR | J33: =SUBTOTAL(109,Apmācību_un_komandējumu_faktiskās_izmaksas[Aug]) -> 0.00 EUR | K33: =SUBTOTAL(109,Apmācību_un_komandējumu_faktiskās_izmaksas[Sep]) -> 0.00 EUR | L33: =SUBTOTAL(109,Apmācību_un_komandējumu_faktiskās_izmaksas[Okt]) -> 0.00 EUR | M33: =SUBTOTAL(109,Apmācību_un_komandējumu_faktiskās_izmaksas[Nov]) -> 0.00 EUR | N33: =SUBTOTAL(109,Apmācību_un_komandējumu_faktiskās_izmaksas[Dec]) -> 0.00 EUR | O33: =SUBTOTAL(109,Apmācību_un_komandējumu_faktiskās_izmaksas[GADS]) -> 21,300.00 EUR
A35: Kopējie faktiskie izdevumi tiek automātiski aprēķināti tabulā Kopējās faktiskās izmaksas, sākot ar šūnu pa labi. | B35: KOPĒJIE plānotie izdevumi | C35: Jan | D35: Feb | E35: Mar | F35: Apr | G35: Maijs | H35: Jūn | I35: Jūl | J35: Aug | K35: Sep | L35: Okt | M35: Nov | N35: Dec | O35: Gads
B36: Mēneša faktiskie izdevumi | C36: =Apmācību_un_komandējumu_faktiskās_izmaksas[[#Totals],[Jan]]+Mārketinga_faktiskās_izmaksas[[#Totals],[Jan]]+Biroja_faktiskās_izmaksas[[#Totals],[Jan]]+Darbinieku_faktiskās_izmaksas[[#Totals],[Jan]] -> 129,682.00 EUR | D36: =Apmācību_un_komandējumu_faktiskās_izmaksas[[#Totals],[Feb]]+Mārketinga_faktiskās_izmaksas[[#Totals],[Feb]]+Biroja_faktiskās_izmaksas[[#Totals],[Feb]]+Darbinieku_faktiskās_izmaksas[[#Totals],[Feb]] -> 127,804.00 EUR | E36: =Apmācību_un_komandējumu_faktiskās_izmaksas[[#Totals],[Mar]]+Mārketinga_faktiskās_izmaksas[[#Totals],[Mar]]+Biroja_faktiskās_izmaksas[[#Totals],[Mar]]+Darbinieku_faktiskās_izmaksas[[#Totals],[Mar]] -> 125,565.00 EUR | F36: =Apmācību_un_komandējumu_faktiskās_izmaksas[[#Totals],[Apr]]+Mārketinga_faktiskās_izmaksas[[#Totals],[Apr]]+Biroja_faktiskās_izmaksas[[#Totals],[Apr]]+Darbinieku_faktiskās_izmaksas[[#Totals],[Apr]] -> 137,394.00 EUR | G36: =Apmācību_un_komandējumu_faktiskās_izmaksas[[#Totals],[Maijs]]+Mārketinga_faktiskās_izmaksas[[#Totals],[Maijs]]+Biroja_faktiskās_izmaksas[[#Totals],[Maijs]]+Darbinieku_faktiskās_izmaksas[[#Totals],[Maijs]] -> 128,255.00 EUR | H36: =Apmācību_un_komandējumu_faktiskās_izmaksas[[#Totals],[Jūn]]+Mārketinga_faktiskās_izmaksas[[#Totals],[Jūn]]+Biroja_faktiskās_izmaksas[[#Totals],[Jūn]]+Darbinieku_faktiskās_izmaksas[[#Totals],[Jūn]] -> 134,239.00 EUR | I36: =Apmācību_un_komandējumu_faktiskās_izmaksas[[#Totals],[Jūl]]+Mārketinga_faktiskās_izmaksas[[#Totals],[Jūl]]+Biroja_faktiskās_izmaksas[[#Totals],[Jūl]]+Darbinieku_faktiskās_izmaksas[[#Totals],[Jūl]] -> 0.00 EUR | J36: =Apmācību_un_komandējumu_faktiskās_izmaksas[[#Totals],[Aug]]+Mārketinga_faktiskās_izmaksas[[#Totals],[Aug]]+Biroja_faktiskās_izmaksas[[#Totals],[Aug]]+Darbinieku_faktiskās_izmaksas[[#Totals],[Aug]] -> 0.00 EUR | K36: =Apmācību_un_komandējumu_faktiskās_izmaksas[[#Totals],[Sep]]+Mārketinga_faktiskās_izmaksas[[#Totals],[Sep]]+Biroja_faktiskās_izmaksas[[#Totals],[Sep]]+Darbinieku_faktiskās_izmaksas[[#Totals],[Sep]] -> 0.00 EUR | L36: =Apmācību_un_komandējumu_faktiskās_izmaksas[[#Totals],[Okt]]+Mārketinga_faktiskās_izmaksas[[#Totals],[Okt]]+Biroja_faktiskās_izmaksas[[#Totals],[Okt]]+Darbinieku_faktiskās_izmaksas[[#Totals],[Okt]] -> 0.00 EUR | M36: =Apmācību_un_komandējumu_faktiskās_izmaksas[[#Totals],[Nov]]+Mārketinga_faktiskās_izmaksas[[#Totals],[Nov]]+Biroja_faktiskās_izmaksas[[#Totals],[Nov]]+Darbinieku_faktiskās_izmaksas[[#Totals],[Nov]] -> 0.00 EUR | N36: =Apmācību_un_komandējumu_faktiskās_izmaksas[[#Totals],[Dec]]+Mārketinga_faktiskās_izmaksas[[#Totals],[Dec]]+Biroja_faktiskās_izmaksas[[#Totals],[Dec]]+Darbinieku_faktiskās_izmaksas[[#Totals],[Dec]] -> 0.00 EUR | O36: =Apmācību_un_komandējumu_faktiskās_izmaksas[[#Totals],[GADS]]+Mārketinga_faktiskās_izmaksas[[#Totals],[GADS]]+Biroja_faktiskās_izmaksas[[#Totals],[GADS]]+Darbinieku_faktiskās_izmaksas[[#Totals],[GADS]] -> 782,939.00 EUR
B37: KOPĒJIE faktiskie izdevumi | C37: =SUM($C$36:C36) -> 129,682.00 EUR | D37: =SUM($C$36:D36) -> 257,486.00 EUR | E37: =SUM($C$36:E36) -> 383,051.00 EUR | F37: =SUM($C$36:F36) -> 520,445.00 EUR | G37: =SUM($C$36:G36) -> 648,700.00 EUR | H37: =SUM($C$36:H36) -> 782,939.00 EUR | I37: =SUM($C$36:I36) -> 782,939.00 EUR | J37: =SUM($C$36:J36) -> 782,939.00 EUR | K37: =SUM($C$36:K36) -> 782,939.00 EUR | L37: =SUM($C$36:L36) -> 782,939.00 EUR | M37: =SUM($C$36:M36) -> 782,939.00 EUR | N37: =SUM($C$36:N36) -> 782,939.00 EUR

Sheet IZDEVUMU NOVIRZES
A1: Izdevumu novirze arī tiek automātiski aprēķināta šajā darblapā par darbinieku izmaksas, biroja izmaksas, mārketinga izmaksas un apmācību vai komandējumu izmaksas attiecīgajās tabulās šajā darblapā. Noderīgi norādījumi par to, kā lietot šo darblapu, ir šīs kolonnas šūnās. Bultiņa uz leju, lai sāktu darbu.
A2: Šūnā pa labi tiek automātiski atjaunināts uzņēmuma nosaukumu. Šūnā K2 ir šīs darblapas nosaukums. Ievadiet logotipu šūnā N2. | B2: ='PLĀNOTIE IZDEVUMI'!B2:D3 -> Uzņēmuma nosaukumu | K2: =darblapas_nosaukums -> Detalizēti izdevumu aprēķini | N2: Logotipa vietturis ir šajā šūnā.
A3: Padoms ir šūnā K3 | K3: Ēnotās šūnas ir aprēķini.
A4: Etiķete Izdevumu novirzes ir šūnā pa labi, mēneši šūnās no C4 līdz N4 un etiķete Gads šūnā O4. | B4: IZDEVUMU NOVIRZES | C4: JAN | D4: FEB | E4: MAR | F4: APR | G4: MAI | H4: JŪN | I4: JŪL | J4: AUG | K4: SEPT | L4: OKT | M4: NOV | N4: DEC | O4: GADS
A5: Darbinieku izmaksas novirze tiek automātiski aprēķināta tabulā Darbinieku vērtību novirzes, sākot ar šūnu pa labi. Nākamais norādījums ir šūnā A10. | B5: Darbinieku izmaksas | C5: Jan | D5: Feb | E5: Mar | F5: Apr | G5: Maijs | H5: Jūn | I5: Jūl | J5: Aug | K5: Sep | L5: Okt | M5: Nov | N5: Dec | O5: GADS
B6: Alga | C6: =INDEX(Darbinieku_plāns[],MATCH(INDEX(Darbinieku_vērtību_novirzes[],ROW()-ROW(Darbinieku_vērtību_novirzes[[#Headers],[Jan]]),1),INDEX(Darbinieku_plāns[],,1),0),MATCH(Darbinieku_vērtību_novirzes[[#Headers],[Jan]],Darbinieku_plāns[#Headers],0))-INDEX(Darbinieku_faktiskās_izmaksas[],MATCH(INDEX(Darbinieku_vērtību_novirzes[],ROW()-ROW(Darbinieku_vērtību_novirzes[[#Headers],[Jan]]),1),INDEX(Darbinieku_plāns[],,1),0),MATCH(Darbinieku_vērtību_novirzes[[#Headers],[Jan]],Darbinieku_faktiskās_izmaksas[#Headers],0)) -> 0.00 EUR | D6: =INDEX(Darbinieku_plāns[],MATCH(INDEX(Darbinieku_vērtību_novirzes[],ROW()-ROW(Darbinieku_vērtību_novirzes[[#Headers],[Feb]]),1),INDEX(Darbinieku_plāns[],,1),0),MATCH(Darbinieku_vērtību_novirzes[[#Headers],[Feb]],Darbinieku_plāns[#Headers],0))-INDEX(Darbinieku_faktiskās_izmaksas[],MATCH(INDEX(Darbinieku_vērtību_novirzes[],ROW()-ROW(Darbinieku_vērtību_novirzes[[#Headers],[Feb]]),1),INDEX(Darbinieku_plāns[],,1),0),MATCH(Darbinieku_vērtību_novirzes[[#Headers],[Feb]],Darbinieku_faktiskās_izmaksas[#Headers],0)) -> 0.00 EUR | E6: =INDEX(Darbinieku_plāns[],MATCH(INDEX(Darbinieku_vērtību_novirzes[],ROW()-ROW(Darbinieku_vērtību_novirzes[[#Headers],[Mar]]),1),INDEX(Darbinieku_plāns[],,1),0),MATCH(Darbinieku_vērtību_novirzes[[#Headers],[Mar]],Darbinieku_plāns[#Headers],0))-INDEX(Darbinieku_faktiskās_izmaksas[],MATCH(INDEX(Darbinieku_vērtību_novirzes[],ROW()-ROW(Darbinieku_vērtību_novirzes[[#Headers],[Mar]]),1),INDEX(Darbinieku_plāns[],,1),0),MATCH(Darbinieku_vērtību_novirzes[[#Headers],[Mar]],Darbinieku_faktiskās_izmaksas[#Headers],0)) -> 0.00 EUR | F6: =INDEX(Darbinieku_plāns[],MATCH(INDEX(Darbinieku_vērtību_novirzes[],ROW()-ROW(Darbinieku_vērtību_novirzes[[#Headers],[Apr]]),1),INDEX(Darbinieku_plāns[],,1),0),MATCH(Darbinieku_vērtību_novirzes[[#Headers],[Apr]],Darbinieku_plāns[#Headers],0))-INDEX(Darbinieku_faktiskās_izmaksas[],MATCH(INDEX(Darbinieku_vērtību_novirzes[],ROW()-ROW(Darbinieku_vērtību_novirzes[[#Headers],[Apr]]),1),INDEX(Darbinieku_plāns[],,1),0),MATCH(Darbinieku_vērtību_novirzes[[#Headers],[Apr]],Darbinieku_faktiskās_izmaksas[#Headers],0)) -> -500.00 EUR | G6: =INDEX(Darbinieku_plāns[],MATCH(INDEX(Darbinieku_vērtību_novirzes[],ROW()-ROW(Darbinieku_vērtību_novirzes[[#Headers],[Maijs]]),1),INDEX(Darbinieku_plāns[],,1),0),MATCH(Darbinieku_vērtību_novirzes[[#Headers],[Maijs]],Darbinieku_plāns[#Headers],0))-INDEX(Darbinieku_faktiskās_izmaksas[],MATCH(INDEX(Darbinieku_vērtību_novirzes[],ROW()-ROW(Darbinieku_vērtību_novirzes[[#Headers],[Maijs]]),1),INDEX(Darbinieku_plāns[],,1),0),MATCH(Darbinieku_vērtību_novirzes[[#Headers],[Maijs]],Darbinieku_faktiskās_izmaksas[#Headers],0)) -> -500.00 EUR | H6: =INDEX(Darbinieku_plāns[],MATCH(INDEX(Darbinieku_vērtību_novirzes[],ROW()-ROW(Darbinieku_vērtību_novirzes[[#Headers],[Jūn]]),1),INDEX(Darbinieku_plāns[],,1),0),MATCH(Darbinieku_vērtību_novirzes[[#Headers],[Jūn]],Darbinieku_plāns[#Headers],0))-INDEX(Darbinieku_faktiskās_izmaksas[],MATCH(INDEX(Darbinieku_vērtību_novirzes[],ROW()-ROW(Darbinieku_vērtību_novirzes[[#Headers],[Jūn]]),1),INDEX(Darbinieku_plāns[],,1),0),MATCH(Darbinieku_vērtību_novirzes[[#Headers],[Jūn]],Darbinieku_faktiskās_izmaksas[#Headers],0)) -> -500.00 EUR | I6: =INDEX(Darbinieku_plāns[],MATCH(INDEX(Darbinieku_vērtību_novirzes[],ROW()-ROW(Darbinieku_vērtību_novirzes[[#Headers],[Jūl]]),1),INDEX(Darbinieku_plāns[],,1),0),MATCH(Darbinieku_vērtību_novirzes[[#Headers],[Jūl]],Darbinieku_plāns[#Headers],0))-INDEX(Darbinieku_faktiskās_izmaksas[],MATCH(INDEX(Darbinieku_vērtību_novirzes[],ROW()-ROW(Darbinieku_vērtību_novirzes[[#Headers],[Jūl]]),1),INDEX(Darbinieku_plāns[],,1),0),MATCH(Darbinieku_vērtību_novirzes[[#Headers],[Jūl]],Darbinieku_faktiskās_izmaksas[#Headers],0)) -> 87,500.00 EUR | J6: =INDEX(Darbinieku_plāns[],MATCH(INDEX(Darbinieku_vērtību_novirzes[],ROW()-ROW(Darbinieku_vērtību_novirzes[[#Headers],[Aug]]),1),INDEX(Darbinieku_plāns[],,1),0),MATCH(Darbinieku_vērtību_novirzes[[#Headers],[Aug]],Darbinieku_plāns[#Headers],0))-INDEX(Darbinieku_faktiskās_izmaksas[],MATCH(INDEX(Darbinieku_vērtību_novirzes[],ROW()-ROW(Darbinieku_vērtību_novirzes[[#Headers],[Aug]]),1),INDEX(Darbinieku_plāns[],,1),0),MATCH(Darbinieku_vērtību_novirzes[[#Headers],[Aug]],Darbinieku_faktiskās_izmaksas[#Headers],0)) -> 92,400.00 EUR | K6: =INDEX(Darbinieku_plāns[],MATCH(INDEX(Darbinieku_vērtību_novirzes[],ROW()-ROW(Darbinieku_vērtību_novirzes[[#Headers],[Sep]]),1),INDEX(Darbinieku_plāns[],,1),0),MATCH(Darbinieku_vērtību_novirzes[[#Headers],[Sep]],Darbinieku_plāns[#Headers],0))-INDEX(Darbinieku_faktiskās_izmaksas[],MATCH(INDEX(Darbinieku_vērtību_novirzes[],ROW()-ROW(Darbinieku_vērtību_novirzes[[#Headers],[Sep]]),1),INDEX(Darbinieku_plāns[],,1),0),MATCH(Darbinieku_vērtību_novirzes[[#Headers],[Sep]],Darbinieku_faktiskās_izmaksas[#Headers],0)) -> 92,400.00 EUR | L6: =INDEX(Darbinieku_plāns[],MATCH(INDEX(Darbinieku_vērtību_novirzes[],ROW()-ROW(Darbinieku_vērtību_novirzes[[#Headers],[Okt]]),1),INDEX(Darbinieku_plāns[],,1),0),MATCH(Darbinieku_vērtību_novirzes[[#Headers],[Okt]],Darbinieku_plāns[#Headers],0))-INDEX(Darbinieku_faktiskās_izmaksas[],MATCH(INDEX(Darbinieku_vērtību_novirzes[],ROW()-ROW(Darbinieku_vērtību_novirzes[[#Headers],[Okt]]),1),INDEX(Darbinieku_plāns[],,1),0),MATCH(Darbinieku_vērtību_novirzes[[#Headers],[Okt]],Darbinieku_faktiskās_izmaksas[#Headers],0)) -> 92,400.00 EUR | M6: =INDEX(Darbinieku_plāns[],MATCH(INDEX(Darbinieku_vērtību_novirzes[],ROW()-ROW(Darbinieku_vērtību_novirzes[[#Headers],[Nov]]),1),INDEX(Darbinieku_plāns[],,1),0),MATCH(Darbinieku_vērtību_novirzes[[#Headers],[Nov]],Darbinieku_plāns[#Headers],0))-INDEX(Darbinieku_faktiskās_izmaksas[],MATCH(INDEX(Darbinieku_vērtību_novirzes[],ROW()-ROW(Darbinieku_vērtību_novirzes[[#Headers],[Nov]]),1),INDEX(Darbinieku_plāns[],,1),0),MATCH(Darbinieku_vērtību_novirzes[[#Headers],[Nov]],Darbinieku_faktiskās_izmaksas[#Headers],0)) -> 92,400.00 EUR | N6: =INDEX(Darbinieku_plāns[],MATCH(INDEX(Darbinieku_vērtību_novirzes[],ROW()-ROW(Darbinieku_vērtību_novirzes[[#Headers],[Dec]]),1),INDEX(Darbinieku_plāns[],,1),0),MATCH(Darbinieku_vērtību_novirzes[[#Headers],[Dec]],Darbinieku_plāns[#Headers],0))-INDEX(Darbinieku_faktiskās_izmaksas[],MATCH(INDEX(Darbinieku_vērtību_novirzes[],ROW()-ROW(Darbinieku_vērtību_novirzes[[#Headers],[Dec]]),1),INDEX(Darbinieku_plāns[],,1),0),MATCH(Darbinieku_vērtību_novirzes[[#Headers],[Dec]],Darbinieku_faktiskās_izmaksas[#Headers],0)) -> 92,400.00 EUR | O6: =SUM(Darbinieku_vērtību_novirzes[[#This Row],[Jan]:[Dec]]) -> 548,000.00 EUR
B7: Labumi | C7: =INDEX(Darbinieku_plāns[],MATCH(INDEX(Darbinieku_vērtību_novirzes[],ROW()-ROW(Darbinieku_vērtību_novirzes[[#Headers],[Jan]]),1),INDEX(Darbinieku_plāns[],,1),0),MATCH(Darbinieku_vērtību_novirzes[[#Headers],[Jan]],Darbinieku_plāns[#Headers],0))-INDEX(Darbinieku_faktiskās_izmaksas[],MATCH(INDEX(Darbinieku_vērtību_novirzes[],ROW()-ROW(Darbinieku_vērtību_novirzes[[#Headers],[Jan]]),1),INDEX(Darbinieku_plāns[],,1),0),MATCH(Darbinieku_vērtību_novirzes[[#Headers],[Jan]],Darbinieku_faktiskās_izmaksas[#Headers],0)) -> 0.00 EUR | D7: =INDEX(Darbinieku_plāns[],MATCH(INDEX(Darbinieku_vērtību_novirzes[],ROW()-ROW(Darbinieku_vērtību_novirzes[[#Headers],[Feb]]),1),INDEX(Darbinieku_plāns[],,1),0),MATCH(Darbinieku_vērtību_novirzes[[#Headers],[Feb]],Darbinieku_plāns[#Headers],0))-INDEX(Darbinieku_faktiskās_izmaksas[],MATCH(INDEX(Darbinieku_vērtību_novirzes[],ROW()-ROW(Darbinieku_vērtību_novirzes[[#Headers],[Feb]]),1),INDEX(Darbinieku_plāns[],,1),0),MATCH(Darbinieku_vērtību_novirzes[[#Headers],[Feb]],Darbinieku_faktiskās_izmaksas[#Headers],0)) -> 0.00 EUR | E7: =INDEX(Darbinieku_plāns[],MATCH(INDEX(Darbinieku_vērtību_novirzes[],ROW()-ROW(Darbinieku_vērtību_novirzes[[#Headers],[Mar]]),1),INDEX(Darbinieku_plāns[],,1),0),MATCH(Darbinieku_vērtību_novirzes[[#Headers],[Mar]],Darbinieku_plāns[#Headers],0))-INDEX(Darbinieku_faktiskās_izmaksas[],MATCH(INDEX(Darbinieku_vērtību_novirzes[],ROW()-ROW(Darbinieku_vērtību_novirzes[[#Headers],[Mar]]),1),INDEX(Darbinieku_plāns[],,1),0),MATCH(Darbinieku_vērtību_novirzes[[#Headers],[Mar]],Darbinieku_faktiskās_izmaksas[#Headers],0)) -> 0.00 EUR | F7: =INDEX(Darbinieku_plāns[],MATCH(INDEX(Darbinieku_vērtību_novirzes[],ROW()-ROW(Darbinieku_vērtību_novirzes[[#Headers],[Apr]]),1),INDEX(Darbinieku_plāns[],,1),0),MATCH(Darbinieku_vērtību_novirzes[[#Headers],[Apr]],Darbinieku_plāns[#Headers],0))-INDEX(Darbinieku_faktiskās_izmaksas[],MATCH(INDEX(Darbinieku_vērtību_novirzes[],ROW()-ROW(Darbinieku_vērtību_novirzes[[#Headers],[Apr]]),1),INDEX(Darbinieku_plāns[],,1),0),MATCH(Darbinieku_vērtību_novirzes[[#Headers],[Apr]],Darbinieku_faktiskās_izmaksas[#Headers],0)) -> -135.00 EUR | G7: =INDEX(Darbinieku_plāns[],MATCH(INDEX(Darbinieku_vērtību_novirzes[],ROW()-ROW(Darbinieku_vērtību_novirzes[[#Headers],[Maijs]]),1),INDEX(Darbinieku_plāns[],,1),0),MATCH(Darbinieku_vērtību_novirzes[[#Headers],[Maijs]],Darbinieku_plāns[#Headers],0))-INDEX(Darbinieku_faktiskās_izmaksas[],MATCH(INDEX(Darbinieku_vērtību_novirzes[],ROW()-ROW(Darbinieku_vērtību_novirzes[[#Headers],[Maijs]]),1),INDEX(Darbinieku_plāns[],,1),0),MATCH(Darbinieku_vērtību_novirzes[[#Headers],[Maijs]],Darbinieku_faktiskās_izmaksas[#Headers],0)) -> -135.00 EUR | H7: =INDEX(Darbinieku_plāns[],MATCH(INDEX(Darbinieku_vērtību_novirzes[],ROW()-ROW(Darbinieku_vērtību_novirzes[[#Headers],[Jūn]]),1),INDEX(Darbinieku_plāns[],,1),0),MATCH(Darbinieku_vērtību_novirzes[[#Headers],[Jūn]],Darbinieku_plāns[#Headers],0))-INDEX(Darbinieku_faktiskās_izmaksas[],MATCH(INDEX(Darbinieku_vērtību_novirzes[],ROW()-ROW(Darbinieku_vērtību_novirzes[[#Headers],[Jūn]]),1),INDEX(Darbinieku_plāns[],,1),0),MATCH(Darbinieku_vērtību_novirzes[[#Headers],[Jūn]],Darbinieku_faktiskās_izmaksas[#Headers],0)) -> -135.00 EUR | I7: =INDEX(Darbinieku_plāns[],MATCH(INDEX(Darbinieku_vērtību_novirzes[],ROW()-ROW(Darbinieku_vērtību_novirzes[[#Headers],[Jūl]]),1),INDEX(Darbinieku_plāns[],,1),0),MATCH(Darbinieku_vērtību_novirzes[[#Headers],[Jūl]],Darbinieku_plāns[#Headers],0))-INDEX(Darbinieku_faktiskās_izmaksas[],MATCH(INDEX(Darbinieku_vērtību_novirzes[],ROW()-ROW(Darbinieku_vērtību_novirzes[[#Headers],[Jūl]]),1),INDEX(Darbinieku_plāns[],,1),0),MATCH(Darbinieku_vērtību_novirzes[[#Headers],[Jūl]],Darbinieku_faktiskās_izmaksas[#Headers],0)) -> 23,625.00 EUR | J7: =INDEX(Darbinieku_plāns[],MATCH(INDEX(Darbinieku_vērtību_novirzes[],ROW()-ROW(Darbinieku_vērtību_novirzes[[#Headers],[Aug]]),1),INDEX(Darbinieku_plāns[],,1),0),MATCH(Darbinieku_vērtību_novirzes[[#Headers],[Aug]],Darbinieku_plāns[#Headers],0))-INDEX(Darbinieku_faktiskās_izmaksas[],MATCH(INDEX(Darbinieku_vērtību_novirzes[],ROW()-ROW(Darbinieku_vērtību_novirzes[[#Headers],[Aug]]),1),INDEX(Darbinieku_plāns[],,1),0),MATCH(Darbinieku_vērtību_novirzes[[#Headers],[Aug]],Darbinieku_faktiskās_izmaksas[#Headers],0)) -> 24,948.00 EUR | K7: =INDEX(Darbinieku_plāns[],MATCH(INDEX(Darbinieku_vērtību_novirzes[],ROW()-ROW(Darbinieku_vērtību_novirzes[[#Headers],[Sep]]),1),INDEX(Darbinieku_plāns[],,1),0),MATCH(Darbinieku_vērtību_novirzes[[#Headers],[Sep]],Darbinieku_plāns[#Headers],0))-INDEX(Darbinieku_faktiskās_izmaksas[],MATCH(INDEX(Darbinieku_vērtību_novirzes[],ROW()-ROW(Darbinieku_vērtību_novirzes[[#Headers],[Sep]]),1),INDEX(Darbinieku_plāns[],,1),0),MATCH(Darbinieku_vērtību_novirzes[[#Headers],[Sep]],Darbinieku_faktiskās_izmaksas[#Headers],0)) -> 24,948.00 EUR | L7: =INDEX(Darbinieku_plāns[],MATCH(INDEX(Darbinieku_vērtību_novirzes[],ROW()-ROW(Darbinieku_vērtību_novirzes[[#Headers],[Okt]]),1),INDEX(Darbinieku_plāns[],,1),0),MATCH(Darbinieku_vērtību_novirzes[[#Headers],[Okt]],Darbinieku_plāns[#Headers],0))-INDEX(Darbinieku_faktiskās_izmaksas[],MATCH(INDEX(Darbinieku_vērtību_novirzes[],ROW()-ROW(Darbinieku_vērtību_novirzes[[#Headers],[Okt]]),1),INDEX(Darbinieku_plāns[],,1),0),MATCH(Darbinieku_vērtību_novirzes[[#Headers],[Okt]],Darbinieku_faktiskās_izmaksas[#Headers],0)) -> 24,948.00 EUR | M7: =INDEX(Darbinieku_plāns[],MATCH(INDEX(Darbinieku_vērtību_novirzes[],ROW()-ROW(Darbinieku_vērtību_novirzes[[#Headers],[Nov]]),1),INDEX(Darbinieku_plāns[],,1),0),MATCH(Darbinieku_vērtību_novirzes[[#Headers],[Nov]],Darbinieku_plāns[#Headers],0))-INDEX(Darbinieku_faktiskās_izmaksas[],MATCH(INDEX(Darbinieku_vērtību_novirzes[],ROW()-ROW(Darbinieku_vērtību_novirzes[[#Headers],[Nov]]),1),INDEX(Darbinieku_plāns[],,1),0),MATCH(Darbinieku_vērtību_novirzes[[#Headers],[Nov]],Darbinieku_faktiskās_izmaksas[#Headers],0)) -> 24,948.00 EUR | N7: =INDEX(Darbinieku_plāns[],MATCH(INDEX(Darbinieku_vērtību_novirzes[],ROW()-ROW(Darbinieku_vērtību_novirzes[[#Headers],[Dec]]),1),INDEX(Darbinieku_plāns[],,1),0),MATCH(Darbinieku_vērtību_novirzes[[#Headers],[Dec]],Darbinieku_plāns[#Headers],0))-INDEX(Darbinieku_faktiskās_izmaksas[],MATCH(INDEX(Darbinieku_vērtību_novirzes[],ROW()-ROW(Darbinieku_vērtību_novirzes[[#Headers],[Dec]]),1),INDEX(Darbinieku_plāns[],,1),0),MATCH(Darbinieku_vērtību_novirzes[[#Headers],[Dec]],Darbinieku_faktiskās_izmaksas[#Headers],0)) -> 24,948.00 EUR | O7: =SUM(Darbinieku_vērtību_novirzes[[#This Row],[Jan]:[Dec]]) -> 147,960.00 EUR
B8: Starpsumma | C8: =SUBTOTAL(109,Darbinieku_vērtību_novirzes[Jan]) -> 0.00 EUR | D8: =SUBTOTAL(109,Darbinieku_vērtību_novirzes[Feb]) -> 0.00 EUR | E8: =SUBTOTAL(109,Darbinieku_vērtību_novirzes[Mar]) -> 0.00 EUR | F8: =SUBTOTAL(109,Darbinieku_vērtību_novirzes[Apr]) -> -635.00 EUR | G8: =SUBTOTAL(109,Darbinieku_vērtību_novirzes[Maijs]) -> -635.00 EUR | H8: =SUBTOTAL(109,Darbinieku_vērtību_novirzes[Jūn]) -> -635.00 EUR | I8: =SUBTOTAL(109,Darbinieku_vērtību_novirzes[Jūl]) -> 111,125.00 EUR | J8: =SUBTOTAL(109,Darbinieku_vērtību_novirzes[Aug]) -> 117,348.00 EUR | K8: =SUBTOTAL(109,Darbinieku_vērtību_novirzes[Sep]) -> 117,348.00 EUR | L8: =SUBTOTAL(109,Darbinieku_vērtību_novirzes[Okt]) -> 117,348.00 EUR | M8: =SUBTOTAL(109,Darbinieku_vērtību_novirzes[Nov]) -> 117,348.00 EUR | N8: =SUBTOTAL(109,Darbinieku_vērtību_novirzes[Dec]) -> 117,348.00 EUR | O8: =SUBTOTAL(109,Darbinieku_vērtību_novirzes[GADS]) -> 695,960.00 EUR
A10: Biroja izmaksas novirze tiek automātiski aprēķināta tabulā Biroja vērtību novirzes, sākot ar šūnu pa labi. Nākamais norādījums ir šūnā A21. | B10: Biroja izmaksas | C10: Jan | D10: Feb | E10: Mar | F10: Apr | G10: Maijs | H10: Jūn | I10: Jūl | J10: Aug | K10: Sep | L10: Okt | M10: Nov | N10: Dec | O10: GADS
B11: Biroja noma | C11: =INDEX(Biroja_plāns[],MATCH(INDEX(Biroja_vērtību_novirzes[],ROW()-ROW(Biroja_vērtību_novirzes[[#Headers],[Jan]]),1),INDEX(Biroja_plāns[],,1),0),MATCH(Biroja_vērtību_novirzes[[#Headers],[Jan]],Biroja_plāns[#Headers],0))-INDEX(Biroja_faktiskās_izmaksas[],MATCH(INDEX(Biroja_vērtību_novirzes[],ROW()-ROW(Biroja_vērtību_novirzes[[#Headers],[Jan]]),1),INDEX(Biroja_plāns[],,1),0),MATCH(Biroja_vērtību_novirzes[[#Headers],[Jan]],Biroja_faktiskās_izmaksas[#Headers],0)) -> 0.00 EUR | D11: =INDEX(Biroja_plāns[],MATCH(INDEX(Biroja_vērtību_novirzes[],ROW()-ROW(Biroja_vērtību_novirzes[[#Headers],[Feb]]),1),INDEX(Biroja_plāns[],,1),0),MATCH(Biroja_vērtību_novirzes[[#Headers],[Feb]],Biroja_plāns[#Headers],0))-INDEX(Biroja_faktiskās_izmaksas[],MATCH(INDEX(Biroja_vērtību_novirzes[],ROW()-ROW(Biroja_vērtību_novirzes[[#Headers],[Feb]]),1),INDEX(Biroja_plāns[],,1),0),MATCH(Biroja_vērtību_novirzes[[#Headers],[Feb]],Biroja_faktiskās_izmaksas[#Headers],0)) -> 0.00 EUR | E11: =INDEX(Biroja_plāns[],MATCH(INDEX(Biroja_vērtību_novirzes[],ROW()-ROW(Biroja_vērtību_novirzes[[#Headers],[Mar]]),1),INDEX(Biroja_plāns[],,1),0),MATCH(Biroja_vērtību_novirzes[[#Headers],[Mar]],Biroja_plāns[#Headers],0))-INDEX(Biroja_faktiskās_izmaksas[],MATCH(INDEX(Biroja_vērtību_novirzes[],ROW()-ROW(Biroja_vērtību_novirzes[[#Headers],[Mar]]),1),INDEX(Biroja_plāns[],,1),0),MATCH(Biroja_vērtību_novirzes[[#Headers],[Mar]],Biroja_faktiskās_izmaksas[#Headers],0)) -> 0.00 EUR | F11: =INDEX(Biroja_plāns[],MATCH(INDEX(Biroja_vērtību_novirzes[],ROW()-ROW(Biroja_vērtību_novirzes[[#Headers],[Apr]]),1),INDEX(Biroja_plāns[],,1),0),MATCH(Biroja_vērtību_novirzes[[#Headers],[Apr]],Biroja_plāns[#Headers],0))-INDEX(Biroja_faktiskās_izmaksas[],MATCH(INDEX(Biroja_vērtību_novirzes[],ROW()-ROW(Biroja_vērtību_novirzes[[#Headers],[Apr]]),1),INDEX(Biroja_plāns[],,1),0),MATCH(Biroja_vērtību_novirzes[[#Headers],[Apr]],Biroja_faktiskās_izmaksas[#Headers],0)) -> 0.00 EUR | G11: =INDEX(Biroja_plāns[],MATCH(INDEX(Biroja_vērtību_novirzes[],ROW()-ROW(Biroja_vērtību_novirzes[[#Headers],[Maijs]]),1),INDEX(Biroja_plāns[],,1),0),MATCH(Biroja_vērtību_novirzes[[#Headers],[Maijs]],Biroja_plāns[#Headers],0))-INDEX(Biroja_faktiskās_izmaksas[],MATCH(INDEX(Biroja_vērtību_novirzes[],ROW()-ROW(Biroja_vērtību_novirzes[[#Headers],[Maijs]]),1),INDEX(Biroja_plāns[],,1),0),MATCH(Biroja_vērtību_novirzes[[#Headers],[Maijs]],Biroja_faktiskās_izmaksas[#Headers],0)) -> 0.00 EUR | H11: =INDEX(Biroja_plāns[],MATCH(INDEX(Biroja_vērtību_novirzes[],ROW()-ROW(Biroja_vērtību_novirzes[[#Headers],[Jūn]]),1),INDEX(Biroja_plāns[],,1),0),MATCH(Biroja_vērtību_novirzes[[#Headers],[Jūn]],Biroja_plāns[#Headers],0))-INDEX(Biroja_faktiskās_izmaksas[],MATCH(INDEX(Biroja_vērtību_novirzes[],ROW()-ROW(Biroja_vērtību_novirzes[[#Headers],[Jūn]]),1),INDEX(Biroja_plāns[],,1),0),MATCH(Biroja_vērtību_novirzes[[#Headers],[Jūn]],Biroja_faktiskās_izmaksas[#Headers],0)) -> 0.00 EUR | I11: =INDEX(Biroja_plāns[],MATCH(INDEX(Biroja_vērtību_novirzes[],ROW()-ROW(Biroja_vērtību_novirzes[[#Headers],[Jūl]]),1),INDEX(Biroja_plāns[],,1),0),MATCH(Biroja_vērtību_novirzes[[#Headers],[Jūl]],Biroja_plāns[#Headers],0))-INDEX(Biroja_faktiskās_izmaksas[],MATCH(INDEX(Biroja_vērtību_novirzes[],ROW()-ROW(Biroja_vērtību_novirzes[[#Headers],[Jūl]]),1),INDEX(Biroja_plāns[],,1),0),MATCH(Biroja_vērtību_novirzes[[#Headers],[Jūl]],Biroja_faktiskās_izmaksas[#Headers],0)) -> 9,800.00 EUR | J11: =INDEX(Biroja_plāns[],MATCH(INDEX(Biroja_vērtību_novirzes[],ROW()-ROW(Biroja_vērtību_novirzes[[#Headers],[Aug]]),1),INDEX(Biroja_plāns[],,1),0),MATCH(Biroja_vērtību_novirzes[[#Headers],[Aug]],Biroja_plāns[#Headers],0))-INDEX(Biroja_faktiskās_izmaksas[],MATCH(INDEX(Biroja_vērtību_novirzes[],ROW()-ROW(Biroja_vērtību_novirzes[[#Headers],[Aug]]),1),INDEX(Biroja_plāns[],,1),0),MATCH(Biroja_vērtību_novirzes[[#Headers],[Aug]],Biroja_faktiskās_izmaksas[#Headers],0)) -> 9,800.00 EUR | K11: =INDEX(Biroja_plāns[],MATCH(INDEX(Biroja_vērtību_novirzes[],ROW()-ROW(Biroja_vērtību_novirzes[[#Headers],[Sep]]),1),INDEX(Biroja_plāns[],,1),0),MATCH(Biroja_vērtību_novirzes[[#Headers],[Sep]],Biroja_plāns[#Headers],0))-INDEX(Biroja_faktiskās_izmaksas[],MATCH(INDEX(Biroja_vērtību_novirzes[],ROW()-ROW(Biroja_vērtību_novirzes[[#Headers],[Sep]]),1),INDEX(Biroja_plāns[],,1),0),MATCH(Biroja_vērtību_novirzes[[#Headers],[Sep]],Biroja_faktiskās_izmaksas[#Headers],0)) -> 9,800.00 EUR | L11: =INDEX(Biroja_plāns[],MATCH(INDEX(Biroja_vērtību_novirzes[],ROW()-ROW(Biroja_vērtību_novirzes[[#Headers],[Okt]]),1),INDEX(Biroja_plāns[],,1),0),MATCH(Biroja_vērtību_novirzes[[#Headers],[Okt]],Biroja_plāns[#Headers],0))-INDEX(Biroja_faktiskās_izmaksas[],MATCH(INDEX(Biroja_vērtību_novirzes[],ROW()-ROW(Biroja_vērtību_novirzes[[#Headers],[Okt]]),1),INDEX(Biroja_plāns[],,1),0),MATCH(Biroja_vērtību_novirzes[[#Headers],[Okt]],Biroja_faktiskās_izmaksas[#Headers],0)) -> 9,800.00 EUR | M11: =INDEX(Biroja_plāns[],MATCH(INDEX(Biroja_vērtību_novirzes[],ROW()-ROW(Biroja_vērtību_novirzes[[#Headers],[Nov]]),1),INDEX(Biroja_plāns[],,1),0),MATCH(Biroja_vērtību_novirzes[[#Headers],[Nov]],Biroja_plāns[#Headers],0))-INDEX(Biroja_faktiskās_izmaksas[],MATCH(INDEX(Biroja_vērtību_novirzes[],ROW()-ROW(Biroja_vērtību_novirzes[[#Headers],[Nov]]),1),INDEX(Biroja_plāns[],,1),0),MATCH(Biroja_vērtību_novirzes[[#Headers],[Nov]],Biroja_faktiskās_izmaksas[#Headers],0)) -> 9,800.00 EUR | N11: =INDEX(Biroja_plāns[],MATCH(INDEX(Biroja_vērtību_novirzes[],ROW()-ROW(Biroja_vērtību_novirzes[[#Headers],[Dec]]),1),INDEX(Biroja_plāns[],,1),0),MATCH(Biroja_vērtību_novirzes[[#Headers],[Dec]],Biroja_plāns[#Headers],0))-INDEX(Biroja_faktiskās_izmaksas[],MATCH(INDEX(Biroja_vērtību_novirzes[],ROW()-ROW(Biroja_vērtību_novirzes[[#Headers],[Dec]]),1),INDEX(Biroja_plāns[],,1),0),MATCH(Biroja_vērtību_novirzes[[#Headers],[Dec]],Biroja_faktiskās_izmaksas[#Headers],0)) -> 9,800.00 EUR | O11: =SUM(Biroja_vērtību_novirzes[[#This Row],[Jan]:[Dec]]) -> 58,800.00 EUR
B12: Gāze | C12: =INDEX(Biroja_plāns[],MATCH(INDEX(Biroja_vērtību_novirzes[],ROW()-ROW(Biroja_vērtību_novirzes[[#Headers],[Jan]]),1),INDEX(Biroja_plāns[],,1),0),MATCH(Biroja_vērtību_novirzes[[#Headers],[Jan]],Biroja_plāns[#Headers],0))-INDEX(Biroja_faktiskās_izmaksas[],MATCH(INDEX(Biroja_vērtību_novirzes[],ROW()-ROW(Biroja_vērtību_novirzes[[#Headers],[Jan]]),1),INDEX(Biroja_plāns[],,1),0),MATCH(Biroja_vērtību_novirzes[[#Headers],[Jan]],Biroja_faktiskās_izmaksas[#Headers],0)) -> -4.00 EUR | D12: =INDEX(Biroja_plāns[],MATCH(INDEX(Biroja_vērtību_novirzes[],ROW()-ROW(Biroja_vērtību_novirzes[[#Headers],[Feb]]),1),INDEX(Biroja_plāns[],,1),0),MATCH(Biroja_vērtību_novirzes[[#Headers],[Feb]],Biroja_plāns[#Headers],0))-INDEX(Biroja_faktiskās_izmaksas[],MATCH(INDEX(Biroja_vērtību_novirzes[],ROW()-ROW(Biroja_vērtību_novirzes[[#Headers],[Feb]]),1),INDEX(Biroja_plāns[],,1),0),MATCH(Biroja_vērtību_novirzes[[#Headers],[Feb]],Biroja_faktiskās_izmaksas[#Headers],0)) -> -30.00 EUR | E12: =INDEX(Biroja_plāns[],MATCH(INDEX(Biroja_vērtību_novirzes[],ROW()-ROW(Biroja_vērtību_novirzes[[#Headers],[Mar]]),1),INDEX(Biroja_plāns[],,1),0),MATCH(Biroja_vērtību_novirzes[[#Headers],[Mar]],Biroja_plāns[#Headers],0))-INDEX(Biroja_faktiskās_izmaksas[],MATCH(INDEX(Biroja_vērtību_novirzes[],ROW()-ROW(Biroja_vērtību_novirzes[[#Headers],[Mar]]),1),INDEX(Biroja_plāns[],,1),0),MATCH(Biroja_vērtību_novirzes[[#Headers],[Mar]],Biroja_faktiskās_izmaksas[#Headers],0)) -> 15.00 EUR | F12: =INDEX(Biroja_plāns[],MATCH(INDEX(Biroja_vērtību_novirzes[],ROW()-ROW(Biroja_vērtību_novirzes[[#Headers],[Apr]]),1),INDEX(Biroja_plāns[],,1),0),MATCH(Biroja_vērtību_novirzes[[#Headers],[Apr]],Biroja_plāns[#Headers],0))-INDEX(Biroja_faktiskās_izmaksas[],MATCH(INDEX(Biroja_vērtību_novirzes[],ROW()-ROW(Biroja_vērtību_novirzes[[#Headers],[Apr]]),1),INDEX(Biroja_plāns[],,1),0),MATCH(Biroja_vērtību_novirzes[[#Headers],[Apr]],Biroja_faktiskās_izmaksas[#Headers],0)) -> -130.00 EUR | G12: =INDEX(Biroja_plāns[],MATCH(INDEX(Biroja_vērtību_novirzes[],ROW()-ROW(Biroja_vērtību_novirzes[[#Headers],[Maijs]]),1),INDEX(Biroja_plāns[],,1),0),MATCH(Biroja_vērtību_novirzes[[#Headers],[Maijs]],Biroja_plāns[#Headers],0))-INDEX(Biroja_faktiskās_izmaksas[],MATCH(INDEX(Biroja_vērtību_novirzes[],ROW()-ROW(Biroja_vērtību_novirzes[[#Headers],[Maijs]]),1),INDEX(Biroja_plāns[],,1),0),MATCH(Biroja_vērtību_novirzes[[#Headers],[Maijs]],Biroja_faktiskās_izmaksas[#Headers],0)) -> 13.00 EUR | H12: =INDEX(Biroja_plāns[],MATCH(INDEX(Biroja_vērtību_novirzes[],ROW()-ROW(Biroja_vērtību_novirzes[[#Headers],[Jūn]]),1),INDEX(Biroja_plāns[],,1),0),MATCH(Biroja_vērtību_novirzes[[#Headers],[Jūn]],Biroja_plāns[#Headers],0))-INDEX(Biroja_faktiskās_izmaksas[],MATCH(INDEX(Biroja_vērtību_novirzes[],ROW()-ROW(Biroja_vērtību_novirzes[[#Headers],[Jūn]]),1),INDEX(Biroja_plāns[],,1),0),MATCH(Biroja_vērtību_novirzes[[#Headers],[Jūn]],Biroja_faktiskās_izmaksas[#Headers],0)) -> 12.00 EUR | I12: =INDEX(Biroja_plāns[],MATCH(INDEX(Biroja_vērtību_novirzes[],ROW()-ROW(Biroja_vērtību_novirzes[[#Headers],[Jūl]]),1),INDEX(Biroja_plāns[],,1),0),MATCH(Biroja_vērtību_novirzes[[#Headers],[Jūl]],Biroja_plāns[#Headers],0))-INDEX(Biroja_faktiskās_izmaksas[],MATCH(INDEX(Biroja_vērtību_novirzes[],ROW()-ROW(Biroja_vērtību_novirzes[[#Headers],[Jūl]]),1),INDEX(Biroja_plāns[],,1),0),MATCH(Biroja_vērtību_novirzes[[#Headers],[Jūl]],Biroja_faktiskās_izmaksas[#Headers],0)) -> 100.00 EUR | J12: =INDEX(Biroja_plāns[],MATCH(INDEX(Biroja_vērtību_novirzes[],ROW()-ROW(Biroja_vērtību_novirzes[[#Headers],[Aug]]),1),INDEX(Biroja_plāns[],,1),0),MATCH(Biroja_vērtību_novirzes[[#Headers],[Aug]],Biroja_plāns[#Headers],0))-INDEX(Biroja_faktiskās_izmaksas[],MATCH(INDEX(Biroja_vērtību_novirzes[],ROW()-ROW(Biroja_vērtību_novirzes[[#Headers],[Aug]]),1),INDEX(Biroja_plāns[],,1),0),MATCH(Biroja_vērtību_novirzes[[#Headers],[Aug]],Biroja_faktiskās_izmaksas[#Headers],0)) -> 100.00 EUR | K12: =INDEX(Biroja_plāns[],MATCH(INDEX(Biroja_vērtību_novirzes[],ROW()-ROW(Biroja_vērtību_novirzes[[#Headers],[Sep]]),1),INDEX(Biroja_plāns[],,1),0),MATCH(Biroja_vērtību_novirzes[[#Headers],[Sep]],Biroja_plāns[#Headers],0))-INDEX(Biroja_faktiskās_izmaksas[],MATCH(INDEX(Biroja_vērtību_novirzes[],ROW()-ROW(Biroja_vērtību_novirzes[[#Headers],[Sep]]),1),INDEX(Biroja_plāns[],,1),0),MATCH(Biroja_vērtību_novirzes[[#Headers],[Sep]],Biroja_faktiskās_izmaksas[#Headers],0)) -> 100.00 EUR | L12: =INDEX(Biroja_plāns[],MATCH(INDEX(Biroja_vērtību_novirzes[],ROW()-ROW(Biroja_vērtību_novirzes[[#Headers],[Okt]]),1),INDEX(Biroja_plāns[],,1),0),MATCH(Biroja_vērtību_novirzes[[#Headers],[Okt]],Biroja_plāns[#Headers],0))-INDEX(Biroja_faktiskās_izmaksas[],MATCH(INDEX(Biroja_vērtību_novirzes[],ROW()-ROW(Biroja_vērtību_novirzes[[#Headers],[Okt]]),1),INDEX(Biroja_plāns[],,1),0),MATCH(Biroja_vērtību_novirzes[[#Headers],[Okt]],Biroja_faktiskās_izmaksas[#Headers],0)) -> 100.00 EUR | M12: =INDEX(Biroja_plāns[],MATCH(INDEX(Biroja_vērtību_novirzes[],ROW()-ROW(Biroja_vērtību_novirzes[[#Headers],[Nov]]),1),INDEX(Biroja_plāns[],,1),0),MATCH(Biroja_vērtību_novirzes[[#Headers],[Nov]],Biroja_plāns[#Headers],0))-INDEX(Biroja_faktiskās_izmaksas[],MATCH(INDEX(Biroja_vērtību_novirzes[],ROW()-ROW(Biroja_vērtību_novirzes[[#Headers],[Nov]]),1),INDEX(Biroja_plāns[],,1),0),MATCH(Biroja_vērtību_novirzes[[#Headers],[Nov]],Biroja_faktiskās_izmaksas[#Headers],0)) -> 400.00 EUR | N12: =INDEX(Biroja_plāns[],MATCH(INDEX(Biroja_vērtību_novirzes[],ROW()-ROW(Biroja_vērtību_novirzes[[#Headers],[Dec]]),1),INDEX(Biroja_plāns[],,1),0),MATCH(Biroja_vērtību_novirzes[[#Headers],[Dec]],Biroja_plāns[#Headers],0))-INDEX(Biroja_faktiskās_izmaksas[],MATCH(INDEX(Biroja_vērtību_novirzes[],ROW()-ROW(Biroja_vērtību_novirzes[[#Headers],[Dec]]),1),INDEX(Biroja_plāns[],,1),0),MATCH(Biroja_vērtību_novirzes[[#Headers],[Dec]],Biroja_faktiskās_izmaksas[#Headers],0)) -> 400.00 EUR | O12: =SUM(Biroja_vērtību_novirzes[[#This Row],[Jan]:[Dec]]) -> 1,076.00 EUR
B13: Elektrība | C13: =INDEX(Biroja_plāns[],MATCH(INDEX(Biroja_vērtību_novirzes[],ROW()-ROW(Biroja_vērtību_novirzes[[#Headers],[Jan]]),1),INDEX(Biroja_plāns[],,1),0),MATCH(Biroja_vērtību_novirzes[[#Headers],[Jan]],Biroja_plāns[#Headers],0))-INDEX(Biroja_faktiskās_izmaksas[],MATCH(INDEX(Biroja_vērtību_novirzes[],ROW()-ROW(Biroja_vērtību_novirzes[[#Headers],[Jan]]),1),INDEX(Biroja_plāns[],,1),0),MATCH(Biroja_vērtību_novirzes[[#Headers],[Jan]],Biroja_faktiskās_izmaksas[#Headers],0)) -> 12.00 EUR | D13: =INDEX(Biroja_plāns[],MATCH(INDEX(Biroja_vērtību_novirzes[],ROW()-ROW(Biroja_vērtību_novirzes[[#Headers],[Feb]]),1),INDEX(Biroja_plāns[],,1),0),MATCH(Biroja_vērtību_novirzes[[#Headers],[Feb]],Biroja_plāns[#Headers],0))-INDEX(Biroja_faktiskās_izmaksas[],MATCH(INDEX(Biroja_vērtību_novirzes[],ROW()-ROW(Biroja_vērtību_novirzes[[#Headers],[Feb]]),1),INDEX(Biroja_plāns[],,1),0),MATCH(Biroja_vērtību_novirzes[[#Headers],[Feb]],Biroja_faktiskās_izmaksas[#Headers],0)) -> 22.00 EUR | E13: =INDEX(Biroja_plāns[],MATCH(INDEX(Biroja_vērtību_novirzes[],ROW()-ROW(Biroja_vērtību_novirzes[[#Headers],[Mar]]),1),INDEX(Biroja_plāns[],,1),0),MATCH(Biroja_vērtību_novirzes[[#Headers],[Mar]],Biroja_plāns[#Headers],0))-INDEX(Biroja_faktiskās_izmaksas[],MATCH(INDEX(Biroja_vērtību_novirzes[],ROW()-ROW(Biroja_vērtību_novirzes[[#Headers],[Mar]]),1),INDEX(Biroja_plāns[],,1),0),MATCH(Biroja_vērtību_novirzes[[#Headers],[Mar]],Biroja_faktiskās_izmaksas[#Headers],0)) -> 32.00 EUR | F13: =INDEX(Biroja_plāns[],MATCH(INDEX(Biroja_vērtību_novirzes[],ROW()-ROW(Biroja_vērtību_novirzes[[#Headers],[Apr]]),1),INDEX(Biroja_plāns[],,1),0),MATCH(Biroja_vērtību_novirzes[[#Headers],[Apr]],Biroja_plāns[#Headers],0))-INDEX(Biroja_faktiskās_izmaksas[],MATCH(INDEX(Biroja_vērtību_novirzes[],ROW()-ROW(Biroja_vērtību_novirzes[[#Headers],[Apr]]),1),INDEX(Biroja_plāns[],,1),0),MATCH(Biroja_vērtību_novirzes[[#Headers],[Apr]],Biroja_faktiskās_izmaksas[#Headers],0)) -> 1.00 EUR | G13: =INDEX(Biroja_plāns[],MATCH(INDEX(Biroja_vērtību_novirzes[],ROW()-ROW(Biroja_vērtību_novirzes[[#Headers],[Maijs]]),1),INDEX(Biroja_plāns[],,1),0),MATCH(Biroja_vērtību_novirzes[[#Headers],[Maijs]],Biroja_plāns[#Headers],0))-INDEX(Biroja_faktiskās_izmaksas[],MATCH(INDEX(Biroja_vērtību_novirzes[],ROW()-ROW(Biroja_vērtību_novirzes[[#Headers],[Maijs]]),1),INDEX(Biroja_plāns[],,1),0),MATCH(Biroja_vērtību_novirzes[[#Headers],[Maijs]],Biroja_faktiskās_izmaksas[#Headers],0)) -> -6.00 EUR | H13: =INDEX(Biroja_plāns[],MATCH(INDEX(Biroja_vērtību_novirzes[],ROW()-ROW(Biroja_vērtību_novirzes[[#Headers],[Jūn]]),1),INDEX(Biroja_plāns[],,1),0),MATCH(Biroja_vērtību_novirzes[[#Headers],[Jūn]],Biroja_plāns[#Headers],0))-INDEX(Biroja_faktiskās_izmaksas[],MATCH(INDEX(Biroja_vērtību_novirzes[],ROW()-ROW(Biroja_vērtību_novirzes[[#Headers],[Jūn]]),1),INDEX(Biroja_plāns[],,1),0),MATCH(Biroja_vērtību_novirzes[[#Headers],[Jūn]],Biroja_faktiskās_izmaksas[#Headers],0)) -> 10.00 EUR | I13: =INDEX(Biroja_plāns[],MATCH(INDEX(Biroja_vērtību_novirzes[],ROW()-ROW(Biroja_vērtību_novirzes[[#Headers],[Jūl]]),1),INDEX(Biroja_plāns[],,1),0),MATCH(Biroja_vērtību_novirzes[[#Headers],[Jūl]],Biroja_plāns[#Headers],0))-INDEX(Biroja_faktiskās_izmaksas[],MATCH(INDEX(Biroja_vērtību_novirzes[],ROW()-ROW(Biroja_vērtību_novirzes[[#Headers],[Jūl]]),1),INDEX(Biroja_plāns[],,1),0),MATCH(Biroja_vērtību_novirzes[[#Headers],[Jūl]],Biroja_faktiskās_izmaksas[#Headers],0)) -> 300.00 EUR | J13: =INDEX(Biroja_plāns[],MATCH(INDEX(Biroja_vērtību_novirzes[],ROW()-ROW(Biroja_vērtību_novirzes[[#Headers],[Aug]]),1),INDEX(Biroja_plāns[],,1),0),MATCH(Biroja_vērtību_novirzes[[#Headers],[Aug]],Biroja_plāns[#Headers],0))-INDEX(Biroja_faktiskās_izmaksas[],MATCH(INDEX(Biroja_vērtību_novirzes[],ROW()-ROW(Biroja_vērtību_novirzes[[#Headers],[Aug]]),1),INDEX(Biroja_plāns[],,1),0),MATCH(Biroja_vērtību_novirzes[[#Headers],[Aug]],Biroja_faktiskās_izmaksas[#Headers],0)) -> 300.00 EUR | K13: =INDEX(Biroja_plāns[],MATCH(INDEX(Biroja_vērtību_novirzes[],ROW()-ROW(Biroja_vērtību_novirzes[[#Headers],[Sep]]),1),INDEX(Biroja_plāns[],,1),0),MATCH(Biroja_vērtību_novirzes[[#Headers],[Sep]],Biroja_plāns[#Headers],0))-INDEX(Biroja_faktiskās_izmaksas[],MATCH(INDEX(Biroja_vērtību_novirzes[],ROW()-ROW(Biroja_vērtību_novirzes[[#Headers],[Sep]]),1),INDEX(Biroja_plāns[],,1),0),MATCH(Biroja_vērtību_novirzes[[#Headers],[Sep]],Biroja_faktiskās_izmaksas[#Headers],0)) -> 300.00 EUR | L13: =INDEX(Biroja_plāns[],MATCH(INDEX(Biroja_vērtību_novirzes[],ROW()-ROW(Biroja_vērtību_novirzes[[#Headers],[Okt]]),1),INDEX(Biroja_plāns[],,1),0),MATCH(Biroja_vērtību_novirzes[[#Headers],[Okt]],Biroja_plāns[#Headers],0))-INDEX(Biroja_faktiskās_izmaksas[],MATCH(INDEX(Biroja_vērtību_novirzes[],ROW()-ROW(Biroja_vērtību_novirzes[[#Headers],[Okt]]),1),INDEX(Biroja_plāns[],,1),0),MATCH(Biroja_vērtību_novirzes[[#Headers],[Okt]],Biroja_faktiskās_izmaksas[#Headers],0)) -> 300.00 EUR | M13: =INDEX(Biroja_plāns[],MATCH(INDEX(Biroja_vērtību_novirzes[],ROW()-ROW(Biroja_vērtību_novirzes[[#Headers],[Nov]]),1),INDEX(Biroja_plāns[],,1),0),MATCH(Biroja_vērtību_novirzes[[#Headers],[Nov]],Biroja_plāns[#Headers],0))-INDEX(Biroja_faktiskās_izmaksas[],MATCH(INDEX(Biroja_vērtību_novirzes[],ROW()-ROW(Biroja_vērtību_novirzes[[#Headers],[Nov]]),1),INDEX(Biroja_plāns[],,1),0),MATCH(Biroja_vērtību_novirzes[[#Headers],[Nov]],Biroja_faktiskās_izmaksas[#Headers],0)) -> 300.00 EUR | N13: =INDEX(Biroja_plāns[],MATCH(INDEX(Biroja_vērtību_novirzes[],ROW()-ROW(Biroja_vērtību_novirzes[[#Headers],[Dec]]),1),INDEX(Biroja_plāns[],,1),0),MATCH(Biroja_vērtību_novirzes[[#Headers],[Dec]],Biroja_plāns[#Headers],0))-INDEX(Biroja_faktiskās_izmaksas[],MATCH(INDEX(Biroja_vērtību_novirzes[],ROW()-ROW(Biroja_vērtību_novirzes[[#Headers],[Dec]]),1),INDEX(Biroja_plāns[],,1),0),MATCH(Biroja_vērtību_novirzes[[#Headers],[Dec]],Biroja_faktiskās_izmaksas[#Headers],0)) -> 300.00 EUR | O13: =SUM(Biroja_vērtību_novirzes[[#This Row],[Jan]:[Dec]]) -> 1,871.00 EUR
B14: Ūdens | C14: =INDEX(Biroja_plāns[],MATCH(INDEX(Biroja_vērtību_novirzes[],ROW()-ROW(Biroja_vērtību_novirzes[[#Headers],[Jan]]),1),INDEX(Biroja_plāns[],,1),0),MATCH(Biroja_vērtību_novirzes[[#Headers],[Jan]],Biroja_plāns[#Headers],0))-INDEX(Biroja_faktiskās_izmaksas[],MATCH(INDEX(Biroja_vērtību_novirzes[],ROW()-ROW(Biroja_vērtību_novirzes[[#Headers],[Jan]]),1),INDEX(Biroja_plāns[],,1),0),MATCH(Biroja_vērtību_novirzes[[#Headers],[Jan]],Biroja_faktiskās_izmaksas[#Headers],0)) -> 5.00 EUR | D14: =INDEX(Biroja_plāns[],MATCH(INDEX(Biroja_vērtību_novirzes[],ROW()-ROW(Biroja_vērtību_novirzes[[#Headers],[Feb]]),1),INDEX(Biroja_plāns[],,1),0),MATCH(Biroja_vērtību_novirzes[[#Headers],[Feb]],Biroja_plāns[#Headers],0))-INDEX(Biroja_faktiskās_izmaksas[],MATCH(INDEX(Biroja_vērtību_novirzes[],ROW()-ROW(Biroja_vērtību_novirzes[[#Headers],[Feb]]),1),INDEX(Biroja_plāns[],,1),0),MATCH(Biroja_vērtību_novirzes[[#Headers],[Feb]],Biroja_faktiskās_izmaksas[#Headers],0)) -> 7.00 EUR | E14: =INDEX(Biroja_plāns[],MATCH(INDEX(Biroja_vērtību_novirzes[],ROW()-ROW(Biroja_vērtību_novirzes[[#Headers],[Mar]]),1),INDEX(Biroja_plāns[],,1),0),MATCH(Biroja_vērtību_novirzes[[#Headers],[Mar]],Biroja_plāns[#Headers],0))-INDEX(Biroja_faktiskās_izmaksas[],MATCH(INDEX(Biroja_vērtību_novirzes[],ROW()-ROW(Biroja_vērtību_novirzes[[#Headers],[Mar]]),1),INDEX(Biroja_plāns[],,1),0),MATCH(Biroja_vērtību_novirzes[[#Headers],[Mar]],Biroja_faktiskās_izmaksas[#Headers],0)) -> 6.00 EUR | F14: =INDEX(Biroja_plāns[],MATCH(INDEX(Biroja_vērtību_novirzes[],ROW()-ROW(Biroja_vērtību_novirzes[[#Headers],[Apr]]),1),INDEX(Biroja_plāns[],,1),0),MATCH(Biroja_vērtību_novirzes[[#Headers],[Apr]],Biroja_plāns[#Headers],0))-INDEX(Biroja_faktiskās_izmaksas[],MATCH(INDEX(Biroja_vērtību_novirzes[],ROW()-ROW(Biroja_vērtību_novirzes[[#Headers],[Apr]]),1),INDEX(Biroja_plāns[],,1),0),MATCH(Biroja_vērtību_novirzes[[#Headers],[Apr]],Biroja_faktiskās_izmaksas[#Headers],0)) -> 4.00 EUR | G14: =INDEX(Biroja_plāns[],MATCH(INDEX(Biroja_vērtību_novirzes[],ROW()-ROW(Biroja_vērtību_novirzes[[#Headers],[Maijs]]),1),INDEX(Biroja_plāns[],,1),0),MATCH(Biroja_vērtību_novirzes[[#Headers],[Maijs]],Biroja_plāns[#Headers],0))-INDEX(Biroja_faktiskās_izmaksas[],MATCH(INDEX(Biroja_vērtību_novirzes[],ROW()-ROW(Biroja_vērtību_novirzes[[#Headers],[Maijs]]),1),INDEX(Biroja_plāns[],,1),0),MATCH(Biroja_vērtību_novirzes[[#Headers],[Maijs]],Biroja_faktiskās_izmaksas[#Headers],0)) -> 6.00 EUR | H14: =INDEX(Biroja_plāns[],MATCH(INDEX(Biroja_vērtību_novirzes[],ROW()-ROW(Biroja_vērtību_novirzes[[#Headers],[Jūn]]),1),INDEX(Biroja_plāns[],,1),0),MATCH(Biroja_vērtību_novirzes[[#Headers],[Jūn]],Biroja_plāns[#Headers],0))-INDEX(Biroja_faktiskās_izmaksas[],MATCH(INDEX(Biroja_vērtību_novirzes[],ROW()-ROW(Biroja_vērtību_novirzes[[#Headers],[Jūn]]),1),INDEX(Biroja_plāns[],,1),0),MATCH(Biroja_vērtību_novirzes[[#Headers],[Jūn]],Biroja_faktiskās_izmaksas[#Headers],0)) -> 4.00 EUR | I14: =INDEX(Biroja_plāns[],MATCH(INDEX(Biroja_vērtību_novirzes[],ROW()-ROW(Biroja_vērtību_novirzes[[#Headers],[Jūl]]),1),INDEX(Biroja_plāns[],,1),0),MATCH(Biroja_vērtību_novirzes[[#Headers],[Jūl]],Biroja_plāns[#Headers],0))-INDEX(Biroja_faktiskās_izmaksas[],MATCH(INDEX(Biroja_vērtību_novirzes[],ROW()-ROW(Biroja_vērtību_novirzes[[#Headers],[Jūl]]),1),INDEX(Biroja_plāns[],,1),0),MATCH(Biroja_vērtību_novirzes[[#Headers],[Jūl]],Biroja_faktiskās_izmaksas[#Headers],0)) -> 40.00 EUR | J14: =INDEX(Biroja_plāns[],MATCH(INDEX(Biroja_vērtību_novirzes[],ROW()-ROW(Biroja_vērtību_novirzes[[#Headers],[Aug]]),1),INDEX(Biroja_plāns[],,1),0),MATCH(Biroja_vērtību_novirzes[[#Headers],[Aug]],Biroja_plāns[#Headers],0))-INDEX(Biroja_faktiskās_izmaksas[],MATCH(INDEX(Biroja_vērtību_novirzes[],ROW()-ROW(Biroja_vērtību_novirzes[[#Headers],[Aug]]),1),INDEX(Biroja_plāns[],,1),0),MATCH(Biroja_vērtību_novirzes[[#Headers],[Aug]],Biroja_faktiskās_izmaksas[#Headers],0)) -> 40.00 EUR | K14: =INDEX(Biroja_plāns[],MATCH(INDEX(Biroja_vērtību_novirzes[],ROW()-ROW(Biroja_vērtību_novirzes[[#Headers],[Sep]]),1),INDEX(Biroja_plāns[],,1),0),MATCH(Biroja_vērtību_novirzes[[#Headers],[Sep]],Biroja_plāns[#Headers],0))-INDEX(Biroja_faktiskās_izmaksas[],MATCH(INDEX(Biroja_vērtību_novirzes[],ROW()-ROW(Biroja_vērtību_novirzes[[#Headers],[Sep]]),1),INDEX(Biroja_plāns[],,1),0),MATCH(Biroja_vērtību_novirzes[[#Headers],[Sep]],Biroja_faktiskās_izmaksas[#Headers],0)) -> 40.00 EUR | L14: =INDEX(Biroja_plāns[],MATCH(INDEX(Biroja_vērtību_novirzes[],ROW()-ROW(Biroja_vērtību_novirzes[[#Headers],[Okt]]),1),INDEX(Biroja_plāns[],,1),0),MATCH(Biroja_vērtību_novirzes[[#Headers],[Okt]],Biroja_plāns[#Headers],0))-INDEX(Biroja_faktiskās_izmaksas[],MATCH(INDEX(Biroja_vērtību_novirzes[],ROW()-ROW(Biroja_vērtību_novirzes[[#Headers],[Okt]]),1),INDEX(Biroja_plāns[],,1),0),MATCH(Biroja_vērtību_novirzes[[#Headers],[Okt]],Biroja_faktiskās_izmaksas[#Headers],0)) -> 40.00 EUR | M14: =INDEX(Biroja_plāns[],MATCH(INDEX(Biroja_vērtību_novirzes[],ROW()-ROW(Biroja_vērtību_novirzes[[#Headers],[Nov]]),1),INDEX(Biroja_plāns[],,1),0),MATCH(Biroja_vērtību_novirzes[[#Headers],[Nov]],Biroja_plāns[#Headers],0))-INDEX(Biroja_faktiskās_izmaksas[],MATCH(INDEX(Biroja_vērtību_novirzes[],ROW()-ROW(Biroja_vērtību_novirzes[[#Headers],[Nov]]),1),INDEX(Biroja_plāns[],,1),0),MATCH(Biroja_vērtību_novirzes[[#Headers],[Nov]],Biroja_faktiskās_izmaksas[#Headers],0)) -> 40.00 EUR | N14: =INDEX(Biroja_plāns[],MATCH(INDEX(Biroja_vērtību_novirzes[],ROW()-ROW(Biroja_vērtību_novirzes[[#Headers],[Dec]]),1),INDEX(Biroja_plāns[],,1),0),MATCH(Biroja_vērtību_novirzes[[#Headers],[Dec]],Biroja_plāns[#Headers],0))-INDEX(Biroja_faktiskās_izmaksas[],MATCH(INDEX(Biroja_vērtību_novirzes[],ROW()-ROW(Biroja_vērtību_novirzes[[#Headers],[Dec]]),1),INDEX(Biroja_plāns[],,1),0),MATCH(Biroja_vērtību_novirzes[[#Headers],[Dec]],Biroja_faktiskās_izmaksas[#Headers],0)) -> 40.00 EUR | O14: =SUM(Biroja_vērtību_novirzes[[#This Row],[Jan]:[Dec]]) -> 272.00 EUR
B15: Tālrunis | C15: =INDEX(Biroja_plāns[],MATCH(INDEX(Biroja_vērtību_novirzes[],ROW()-ROW(Biroja_vērtību_novirzes[[#Headers],[Jan]]),1),INDEX(Biroja_plāns[],,1),0),MATCH(Biroja_vērtību_novirzes[[#Headers],[Jan]],Biroja_plāns[#Headers],0))-INDEX(Biroja_faktiskās_izmaksas[],MATCH(INDEX(Biroja_vērtību_novirzes[],ROW()-ROW(Biroja_vērtību_novirzes[[#Headers],[Jan]]),1),INDEX(Biroja_plāns[],,1),0),MATCH(Biroja_vērtību_novirzes[[#Headers],[Jan]],Biroja_faktiskās_izmaksas[#Headers],0)) -> 26.00 EUR | D15: =INDEX(Biroja_plāns[],MATCH(INDEX(Biroja_vērtību_novirzes[],ROW()-ROW(Biroja_vērtību_novirzes[[#Headers],[Feb]]),1),INDEX(Biroja_plāns[],,1),0),MATCH(Biroja_vērtību_novirzes[[#Headers],[Feb]],Biroja_plāns[#Headers],0))-INDEX(Biroja_faktiskās_izmaksas[],MATCH(INDEX(Biroja_vērtību_novirzes[],ROW()-ROW(Biroja_vērtību_novirzes[[#Headers],[Feb]]),1),INDEX(Biroja_plāns[],,1),0),MATCH(Biroja_vērtību_novirzes[[#Headers],[Feb]],Biroja_faktiskās_izmaksas[#Headers],0)) -> 15.00 EUR | E15: =INDEX(Biroja_plāns[],MATCH(INDEX(Biroja_vērtību_novirzes[],ROW()-ROW(Biroja_vērtību_novirzes[[#Headers],[Mar]]),1),INDEX(Biroja_plāns[],,1),0),MATCH(Biroja_vērtību_novirzes[[#Headers],[Mar]],Biroja_plāns[#Headers],0))-INDEX(Biroja_faktiskās_izmaksas[],MATCH(INDEX(Biroja_vērtību_novirzes[],ROW()-ROW(Biroja_vērtību_novirzes[[#Headers],[Mar]]),1),INDEX(Biroja_plāns[],,1),0),MATCH(Biroja_vērtību_novirzes[[#Headers],[Mar]],Biroja_faktiskās_izmaksas[#Headers],0)) -> -15.00 EUR | F15: =INDEX(Biroja_plāns[],MATCH(INDEX(Biroja_vērtību_novirzes[],ROW()-ROW(Biroja_vērtību_novirzes[[#Headers],[Apr]]),1),INDEX(Biroja_plāns[],,1),0),MATCH(Biroja_vērtību_novirzes[[#Headers],[Apr]],Biroja_plāns[#Headers],0))-INDEX(Biroja_faktiskās_izmaksas[],MATCH(INDEX(Biroja_vērtību_novirzes[],ROW()-ROW(Biroja_vērtību_novirzes[[#Headers],[Apr]]),1),INDEX(Biroja_plāns[],,1),0),MATCH(Biroja_vērtību_novirzes[[#Headers],[Apr]],Biroja_faktiskās_izmaksas[#Headers],0)) -> 5.00 EUR | G15: =INDEX(Biroja_plāns[],MATCH(INDEX(Biroja_vērtību_novirzes[],ROW()-ROW(Biroja_vērtību_novirzes[[#Headers],[Maijs]]),1),INDEX(Biroja_plāns[],,1),0),MATCH(Biroja_vērtību_novirzes[[#Headers],[Maijs]],Biroja_plāns[#Headers],0))-INDEX(Biroja_faktiskās_izmaksas[],MATCH(INDEX(Biroja_vērtību_novirzes[],ROW()-ROW(Biroja_vērtību_novirzes[[#Headers],[Maijs]]),1),INDEX(Biroja_plāns[],,1),0),MATCH(Biroja_vērtību_novirzes[[#Headers],[Maijs]],Biroja_faktiskās_izmaksas[#Headers],0)) -> 5.00 EUR | H15: =INDEX(Biroja_plāns[],MATCH(INDEX(Biroja_vērtību_novirzes[],ROW()-ROW(Biroja_vērtību_novirzes[[#Headers],[Jūn]]),1),INDEX(Biroja_plāns[],,1),0),MATCH(Biroja_vērtību_novirzes[[#Headers],[Jūn]],Biroja_plāns[#Headers],0))-INDEX(Biroja_faktiskās_izmaksas[],MATCH(INDEX(Biroja_vērtību_novirzes[],ROW()-ROW(Biroja_vērtību_novirzes[[#Headers],[Jūn]]),1),INDEX(Biroja_plāns[],,1),0),MATCH(Biroja_vērtību_novirzes[[#Headers],[Jūn]],Biroja_faktiskās_izmaksas[#Headers],0)) -> 30.00 EUR | I15: =INDEX(Biroja_plāns[],MATCH(INDEX(Biroja_vērtību_novirzes[],ROW()-ROW(Biroja_vērtību_novirzes[[#Headers],[Jūl]]),1),INDEX(Biroja_plāns[],,1),0),MATCH(Biroja_vērtību_novirzes[[#Headers],[Jūl]],Biroja_plāns[#Headers],0))-INDEX(Biroja_faktiskās_izmaksas[],MATCH(INDEX(Biroja_vērtību_novirzes[],ROW()-ROW(Biroja_vērtību_novirzes[[#Headers],[Jūl]]),1),INDEX(Biroja_plāns[],,1),0),MATCH(Biroja_vērtību_novirzes[[#Headers],[Jūl]],Biroja_faktiskās_izmaksas[#Headers],0)) -> 250.00 EUR | J15: =INDEX(Biroja_plāns[],MATCH(INDEX(Biroja_vērtību_novirzes[],ROW()-ROW(Biroja_vērtību_novirzes[[#Headers],[Aug]]),1),INDEX(Biroja_plāns[],,1),0),MATCH(Biroja_vērtību_novirzes[[#Headers],[Aug]],Biroja_plāns[#Headers],0))-INDEX(Biroja_faktiskās_izmaksas[],MATCH(INDEX(Biroja_vērtību_novirzes[],ROW()-ROW(Biroja_vērtību_novirzes[[#Headers],[Aug]]),1),INDEX(Biroja_plāns[],,1),0),MATCH(Biroja_vērtību_novirzes[[#Headers],[Aug]],Biroja_faktiskās_izmaksas[#Headers],0)) -> 250.00 EUR | K15: =INDEX(Biroja_plāns[],MATCH(INDEX(Biroja_vērtību_novirzes[],ROW()-ROW(Biroja_vērtību_novirzes[[#Headers],[Sep]]),1),INDEX(Biroja_plāns[],,1),0),MATCH(Biroja_vērtību_novirzes[[#Headers],[Sep]],Biroja_plāns[#Headers],0))-INDEX(Biroja_faktiskās_izmaksas[],MATCH(INDEX(Biroja_vērtību_novirzes[],ROW()-ROW(Biroja_vērtību_novirzes[[#Headers],[Sep]]),1),INDEX(Biroja_plāns[],,1),0),MATCH(Biroja_vērtību_novirzes[[#Headers],[Sep]],Biroja_faktiskās_izmaksas[#Headers],0)) -> 250.00 EUR | L15: =INDEX(Biroja_plāns[],MATCH(INDEX(Biroja_vērtību_novirzes[],ROW()-ROW(Biroja_vērtību_novirzes[[#Headers],[Okt]]),1),INDEX(Biroja_plāns[],,1),0),MATCH(Biroja_vērtību_novirzes[[#Headers],[Okt]],Biroja_plāns[#Headers],0))-INDEX(Biroja_faktiskās_izmaksas[],MATCH(INDEX(Biroja_vērtību_novirzes[],ROW()-ROW(Biroja_vērtību_novirzes[[#Headers],[Okt]]),1),INDEX(Biroja_plāns[],,1),0),MATCH(Biroja_vērtību_novirzes[[#Headers],[Okt]],Biroja_faktiskās_izmaksas[#Headers],0)) -> 250.00 EUR | M15: =INDEX(Biroja_plāns[],MATCH(INDEX(Biroja_vērtību_novirzes[],ROW()-ROW(Biroja_vērtību_novirzes[[#Headers],[Nov]]),1),INDEX(Biroja_plāns[],,1),0),MATCH(Biroja_vērtību_novirzes[[#Headers],[Nov]],Biroja_plāns[#Headers],0))-INDEX(Biroja_faktiskās_izmaksas[],MATCH(INDEX(Biroja_vērtību_novirzes[],ROW()-ROW(Biroja_vērtību_novirzes[[#Headers],[Nov]]),1),INDEX(Biroja_plāns[],,1),0),MATCH(Biroja_vērtību_novirzes[[#Headers],[Nov]],Biroja_faktiskās_izmaksas[#Headers],0)) -> 250.00 EUR | N15: =INDEX(Biroja_plāns[],MATCH(INDEX(Biroja_vērtību_novirzes[],ROW()-ROW(Biroja_vērtību_novirzes[[#Headers],[Dec]]),1),INDEX(Biroja_plāns[],,1),0),MATCH(Biroja_vērtību_novirzes[[#Headers],[Dec]],Biroja_plāns[#Headers],0))-INDEX(Biroja_faktiskās_izmaksas[],MATCH(INDEX(Biroja_vērtību_novirzes[],ROW()-ROW(Biroja_vērtību_novirzes[[#Headers],[Dec]]),1),INDEX(Biroja_plāns[],,1),0),MATCH(Biroja_vērtību_novirzes[[#Headers],[Dec]],Biroja_faktiskās_izmaksas[#Headers],0)) -> 250.00 EUR | O15: =SUM(Biroja_vērtību_novirzes[[#This Row],[Jan]:[Dec]]) -> 1,566.00 EUR
B16: Interneta piekļuve | C16: =INDEX(Biroja_plāns[],MATCH(INDEX(Biroja_vērtību_novirzes[],ROW()-ROW(Biroja_vērtību_novirzes[[#Headers],[Jan]]),1),INDEX(Biroja_plāns[],,1),0),MATCH(Biroja_vērtību_novirzes[[#Headers],[Jan]],Biroja_plāns[#Headers],0))-INDEX(Biroja_faktiskās_izmaksas[],MATCH(INDEX(Biroja_vērtību_novirzes[],ROW()-ROW(Biroja_vērtību_novirzes[[#Headers],[Jan]]),1),INDEX(Biroja_plāns[],,1),0),MATCH(Biroja_vērtību_novirzes[[#Headers],[Jan]],Biroja_faktiskās_izmaksas[#Headers],0)) -> 0.00 EUR | D16: =INDEX(Biroja_plāns[],MATCH(INDEX(Biroja_vērtību_novirzes[],ROW()-ROW(Biroja_vērtību_novirzes[[#Headers],[Feb]]),1),INDEX(Biroja_plāns[],,1),0),MATCH(Biroja_vērtību_novirzes[[#Headers],[Feb]],Biroja_plāns[#Headers],0))-INDEX(Biroja_faktiskās_izmaksas[],MATCH(INDEX(Biroja_vērtību_novirzes[],ROW()-ROW(Biroja_vērtību_novirzes[[#Headers],[Feb]]),1),INDEX(Biroja_plāns[],,1),0),MATCH(Biroja_vērtību_novirzes[[#Headers],[Feb]],Biroja_faktiskās_izmaksas[#Headers],0)) -> 0.00 EUR | E16: =INDEX(Biroja_plāns[],MATCH(INDEX(Biroja_vērtību_novirzes[],ROW()-ROW(Biroja_vērtību_novirzes[[#Headers],[Mar]]),1),INDEX(Biroja_plāns[],,1),0),MATCH(Biroja_vērtību_novirzes[[#Headers],[Mar]],Biroja_plāns[#Headers],0))-INDEX(Biroja_faktiskās_izmaksas[],MATCH(INDEX(Biroja_vērtību_novirzes[],ROW()-ROW(Biroja_vērtību_novirzes[[#Headers],[Mar]]),1),INDEX(Biroja_plāns[],,1),0),MATCH(Biroja_vērtību_novirzes[[#Headers],[Mar]],Biroja_faktiskās_izmaksas[#Headers],0)) -> 0.00 EUR | F16: =INDEX(Biroja_plāns[],MATCH(INDEX(Biroja_vērtību_novirzes[],ROW()-ROW(Biroja_vērtību_novirzes[[#Headers],[Apr]]),1),INDEX(Biroja_plāns[],,1),0),MATCH(Biroja_vērtību_novirzes[[#Headers],[Apr]],Biroja_plāns[#Headers],0))-INDEX(Biroja_faktiskās_izmaksas[],MATCH(INDEX(Biroja_vērtību_novirzes[],ROW()-ROW(Biroja_vērtību_novirzes[[#Headers],[Apr]]),1),INDEX(Biroja_plāns[],,1),0),MATCH(Biroja_vērtību_novirzes[[#Headers],[Apr]],Biroja_faktiskās_izmaksas[#Headers],0)) -> 0.00 EUR | G16: =INDEX(Biroja_plāns[],MATCH(INDEX(Biroja_vērtību_novirzes[],ROW()-ROW(Biroja_vērtību_novirzes[[#Headers],[Maijs]]),1),INDEX(Biroja_plāns[],,1),0),MATCH(Biroja_vērtību_novirzes[[#Headers],[Maijs]],Biroja_plāns[#Headers],0))-INDEX(Biroja_faktiskās_izmaksas[],MATCH(INDEX(Biroja_vērtību_novirzes[],ROW()-ROW(Biroja_vērtību_novirzes[[#Headers],[Maijs]]),1),INDEX(Biroja_plāns[],,1),0),MATCH(Biroja_vērtību_novirzes[[#Headers],[Maijs]],Biroja_faktiskās_izmaksas[#Headers],0)) -> 0.00 EUR | H16: =INDEX(Biroja_plāns[],MATCH(INDEX(Biroja_vērtību_novirzes[],ROW()-ROW(Biroja_vērtību_novirzes[[#Headers],[Jūn]]),1),INDEX(Biroja_plāns[],,1),0),MATCH(Biroja_vērtību_novirzes[[#Headers],[Jūn]],Biroja_plāns[#Headers],0))-INDEX(Biroja_faktiskās_izmaksas[],MATCH(INDEX(Biroja_vērtību_novirzes[],ROW()-ROW(Biroja_vērtību_novirzes[[#Headers],[Jūn]]),1),INDEX(Biroja_plāns[],,1),0),MATCH(Biroja_vērtību_novirzes[[#Headers],[Jūn]],Biroja_faktiskās_izmaksas[#Headers],0)) -> 0.00 EUR | I16: =INDEX(Biroja_plāns[],MATCH(INDEX(Biroja_vērtību_novirzes[],ROW()-ROW(Biroja_vērtību_novirzes[[#Headers],[Jūl]]),1),INDEX(Biroja_plāns[],,1),0),MATCH(Biroja_vērtību_novirzes[[#Headers],[Jūl]],Biroja_plāns[#Headers],0))-INDEX(Biroja_faktiskās_izmaksas[],MATCH(INDEX(Biroja_vērtību_novirzes[],ROW()-ROW(Biroja_vērtību_novirzes[[#Headers],[Jūl]]),1),INDEX(Biroja_plāns[],,1),0),MATCH(Biroja_vērtību_novirzes[[#Headers],[Jūl]],Biroja_faktiskās_izmaksas[#Headers],0)) -> 180.00 EUR | J16: =INDEX(Biroja_plāns[],MATCH(INDEX(Biroja_vērtību_novirzes[],ROW()-ROW(Biroja_vērtību_novirzes[[#Headers],[Aug]]),1),INDEX(Biroja_plāns[],,1),0),MATCH(Biroja_vērtību_novirzes[[#Headers],[Aug]],Biroja_plāns[#Headers],0))-INDEX(Biroja_faktiskās_izmaksas[],MATCH(INDEX(Biroja_vērtību_novirzes[],ROW()-ROW(Biroja_vērtību_novirzes[[#Headers],[Aug]]),1),INDEX(Biroja_plāns[],,1),0),MATCH(Biroja_vērtību_novirzes[[#Headers],[Aug]],Biroja_faktiskās_izmaksas[#Headers],0)) -> 180.00 EUR | K16: =INDEX(Biroja_plāns[],MATCH(INDEX(Biroja_vērtību_novirzes[],ROW()-ROW(Biroja_vērtību_novirzes[[#Headers],[Sep]]),1),INDEX(Biroja_plāns[],,1),0),MATCH(Biroja_vērtību_novirzes[[#Headers],[Sep]],Biroja_plāns[#Headers],0))-INDEX(Biroja_faktiskās_izmaksas[],MATCH(INDEX(Biroja_vērtību_novirzes[],ROW()-ROW(Biroja_vērtību_novirzes[[#Headers],[Sep]]),1),INDEX(Biroja_plāns[],,1),0),MATCH(Biroja_vērtību_novirzes[[#Headers],[Sep]],Biroja_faktiskās_izmaksas[#Headers],0)) -> 180.00 EUR | L16: =INDEX(Biroja_plāns[],MATCH(INDEX(Biroja_vērtību_novirzes[],ROW()-ROW(Biroja_vērtību_novirzes[[#Headers],[Okt]]),1),INDEX(Biroja_plāns[],,1),0),MATCH(Biroja_vērtību_novirzes[[#Headers],[Okt]],Biroja_plāns[#Headers],0))-INDEX(Biroja_faktiskās_izmaksas[],MATCH(INDEX(Biroja_vērtību_novirzes[],ROW()-ROW(Biroja_vērtību_novirzes[[#Headers],[Okt]]),1),INDEX(Biroja_plāns[],,1),0),MATCH(Biroja_vērtību_novirzes[[#Headers],[Okt]],Biroja_faktiskās_izmaksas[#Headers],0)) -> 180.00 EUR | M16: =INDEX(Biroja_plāns[],MATCH(INDEX(Biroja_vērtību_novirzes[],ROW()-ROW(Biroja_vērtību_novirzes[[#Headers],[Nov]]),1),INDEX(Biroja_plāns[],,1),0),MATCH(Biroja_vērtību_novirzes[[#Headers],[Nov]],Biroja_plāns[#Headers],0))-INDEX(Biroja_faktiskās_izmaksas[],MATCH(INDEX(Biroja_vērtību_novirzes[],ROW()-ROW(Biroja_vērtību_novirzes[[#Headers],[Nov]]),1),INDEX(Biroja_plāns[],,1),0),MATCH(Biroja_vērtību_novirzes[[#Headers],[Nov]],Biroja_faktiskās_izmaksas[#Headers],0)) -> 180.00 EUR | N16: =INDEX(Biroja_plāns[],MATCH(INDEX(Biroja_vērtību_novirzes[],ROW()-ROW(Biroja_vērtību_novirzes[[#Headers],[Dec]]),1),INDEX(Biroja_plāns[],,1),0),MATCH(Biroja_vērtību_novirzes[[#Headers],[Dec]],Biroja_plāns[#Headers],0))-INDEX(Biroja_faktiskās_izmaksas[],MATCH(INDEX(Biroja_vērtību_novirzes[],ROW()-ROW(Biroja_vērtību_novirzes[[#Headers],[Dec]]),1),INDEX(Biroja_plāns[],,1),0),MATCH(Biroja_vērtību_novirzes[[#Headers],[Dec]],Biroja_faktiskās_izmaksas[#Headers],0)) -> 180.00 EUR | O16: =SUM(Biroja_vērtību_novirzes[[#This Row],[Jan]:[Dec]]) -> 1,080.00 EUR
B17: Biroja piederumi | C17: =INDEX(Biroja_plāns[],MATCH(INDEX(Biroja_vērtību_novirzes[],ROW()-ROW(Biroja_vērtību_novirzes[[#Headers],[Jan]]),1),INDEX(Biroja_plāns[],,1),0),MATCH(Biroja_vērtību_novirzes[[#Headers],[Jan]],Biroja_plāns[#Headers],0))-INDEX(Biroja_faktiskās_izmaksas[],MATCH(INDEX(Biroja_vērtību_novirzes[],ROW()-ROW(Biroja_vērtību_novirzes[[#Headers],[Jan]]),1),INDEX(Biroja_plāns[],,1),0),MATCH(Biroja_vērtību_novirzes[[#Headers],[Jan]],Biroja_faktiskās_izmaksas[#Headers],0)) -> -56.00 EUR | D17: =INDEX(Biroja_plāns[],MATCH(INDEX(Biroja_vērtību_novirzes[],ROW()-ROW(Biroja_vērtību_novirzes[[#Headers],[Feb]]),1),INDEX(Biroja_plāns[],,1),0),MATCH(Biroja_vērtību_novirzes[[#Headers],[Feb]],Biroja_plāns[#Headers],0))-INDEX(Biroja_faktiskās_izmaksas[],MATCH(INDEX(Biroja_vērtību_novirzes[],ROW()-ROW(Biroja_vērtību_novirzes[[#Headers],[Feb]]),1),INDEX(Biroja_plāns[],,1),0),MATCH(Biroja_vērtību_novirzes[[#Headers],[Feb]],Biroja_faktiskās_izmaksas[#Headers],0)) -> 58.00 EUR | E17: =INDEX(Biroja_plāns[],MATCH(INDEX(Biroja_vērtību_novirzes[],ROW()-ROW(Biroja_vērtību_novirzes[[#Headers],[Mar]]),1),INDEX(Biroja_plāns[],,1),0),MATCH(Biroja_vērtību_novirzes[[#Headers],[Mar]],Biroja_plāns[#Headers],0))-INDEX(Biroja_faktiskās_izmaksas[],MATCH(INDEX(Biroja_vērtību_novirzes[],ROW()-ROW(Biroja_vērtību_novirzes[[#Headers],[Mar]]),1),INDEX(Biroja_plāns[],,1),0),MATCH(Biroja_vērtību_novirzes[[#Headers],[Mar]],Biroja_faktiskās_izmaksas[#Headers],0)) -> 40.00 EUR | F17: =INDEX(Biroja_plāns[],MATCH(INDEX(Biroja_vērtību_novirzes[],ROW()-ROW(Biroja_vērtību_novirzes[[#Headers],[Apr]]),1),INDEX(Biroja_plāns[],,1),0),MATCH(Biroja_vērtību_novirzes[[#Headers],[Apr]],Biroja_plāns[#Headers],0))-INDEX(Biroja_faktiskās_izmaksas[],MATCH(INDEX(Biroja_vērtību_novirzes[],ROW()-ROW(Biroja_vērtību_novirzes[[#Headers],[Apr]]),1),INDEX(Biroja_plāns[],,1),0),MATCH(Biroja_vērtību_novirzes[[#Headers],[Apr]],Biroja_faktiskās_izmaksas[#Headers],0)) -> -21.00 EUR | G17: =INDEX(Biroja_plāns[],MATCH(INDEX(Biroja_vērtību_novirzes[],ROW()-ROW(Biroja_vērtību_novirzes[[#Headers],[Maijs]]),1),INDEX(Biroja_plāns[],,1),0),MATCH(Biroja_vērtību_novirzes[[#Headers],[Maijs]],Biroja_plāns[#Headers],0))-INDEX(Biroja_faktiskās_izmaksas[],MATCH(INDEX(Biroja_vērtību_novirzes[],ROW()-ROW(Biroja_vērtību_novirzes[[#Headers],[Maijs]]),1),INDEX(Biroja_plāns[],,1),0),MATCH(Biroja_vērtību_novirzes[[#Headers],[Maijs]],Biroja_faktiskās_izmaksas[#Headers],0)) -> -56.00 EUR | H17: =INDEX(Biroja_plāns[],MATCH(INDEX(Biroja_vērtību_novirzes[],ROW()-ROW(Biroja_vērtību_novirzes[[#Headers],[Jūn]]),1),INDEX(Biroja_plāns[],,1),0),MATCH(Biroja_vērtību_novirzes[[#Headers],[Jūn]],Biroja_plāns[#Headers],0))-INDEX(Biroja_faktiskās_izmaksas[],MATCH(INDEX(Biroja_vērtību_novirzes[],ROW()-ROW(Biroja_vērtību_novirzes[[#Headers],[Jūn]]),1),INDEX(Biroja_plāns[],,1),0),MATCH(Biroja_vērtību_novirzes[[#Headers],[Jūn]],Biroja_faktiskās_izmaksas[#Headers],0)) -> -40.00 EUR | I17: =INDEX(Biroja_plāns[],MATCH(INDEX(Biroja_vērtību_novirzes[],ROW()-ROW(Biroja_vērtību_novirzes[[#Headers],[Jūl]]),1),INDEX(Biroja_plāns[],,1),0),MATCH(Biroja_vērtību_novirzes[[#Headers],[Jūl]],Biroja_plāns[#Headers],0))-INDEX(Biroja_faktiskās_izmaksas[],MATCH(INDEX(Biroja_vērtību_novirzes[],ROW()-ROW(Biroja_vērtību_novirzes[[#Headers],[Jūl]]),1),INDEX(Biroja_plāns[],,1),0),MATCH(Biroja_vērtību_novirzes[[#Headers],[Jūl]],Biroja_faktiskās_izmaksas[#Headers],0)) -> 200.00 EUR | J17: =INDEX(Biroja_plāns[],MATCH(INDEX(Biroja_vērtību_novirzes[],ROW()-ROW(Biroja_vērtību_novirzes[[#Headers],[Aug]]),1),INDEX(Biroja_plāns[],,1),0),MATCH(Biroja_vērtību_novirzes[[#Headers],[Aug]],Biroja_plāns[#Headers],0))-INDEX(Biroja_faktiskās_izmaksas[],MATCH(INDEX(Biroja_vērtību_novirzes[],ROW()-ROW(Biroja_vērtību_novirzes[[#Headers],[Aug]]),1),INDEX(Biroja_plāns[],,1),0),MATCH(Biroja_vērtību_novirzes[[#Headers],[Aug]],Biroja_faktiskās_izmaksas[#Headers],0)) -> 200.00 EUR | K17: =INDEX(Biroja_plāns[],MATCH(INDEX(Biroja_vērtību_novirzes[],ROW()-ROW(Biroja_vērtību_novirzes[[#Headers],[Sep]]),1),INDEX(Biroja_plāns[],,1),0),MATCH(Biroja_vērtību_novirzes[[#Headers],[Sep]],Biroja_plāns[#Headers],0))-INDEX(Biroja_faktiskās_izmaksas[],MATCH(INDEX(Biroja_vērtību_novirzes[],ROW()-ROW(Biroja_vērtību_novirzes[[#Headers],[Sep]]),1),INDEX(Biroja_plāns[],,1),0),MATCH(Biroja_vērtību_novirzes[[#Headers],[Sep]],Biroja_faktiskās_izmaksas[#Headers],0)) -> 200.00 EUR | L17: =INDEX(Biroja_plāns[],MATCH(INDEX(Biroja_vērtību_novirzes[],ROW()-ROW(Biroja_vērtību_novirzes[[#Headers],[Okt]]),1),INDEX(Biroja_plāns[],,1),0),MATCH(Biroja_vērtību_novirzes[[#Headers],[Okt]],Biroja_plāns[#Headers],0))-INDEX(Biroja_faktiskās_izmaksas[],MATCH(INDEX(Biroja_vērtību_novirzes[],ROW()-ROW(Biroja_vērtību_novirzes[[#Headers],[Okt]]),1),INDEX(Biroja_plāns[],,1),0),MATCH(Biroja_vērtību_novirzes[[#Headers],[Okt]],Biroja_faktiskās_izmaksas[#Headers],0)) -> 200.00 EUR | M17: =INDEX(Biroja_plāns[],MATCH(INDEX(Biroja_vērtību_novirzes[],ROW()-ROW(Biroja_vērtību_novirzes[[#Headers],[Nov]]),1),INDEX(Biroja_plāns[],,1),0),MATCH(Biroja_vērtību_novirzes[[#Headers],[Nov]],Biroja_plāns[#Headers],0))-INDEX(Biroja_faktiskās_izmaksas[],MATCH(INDEX(Biroja_vērtību_novirzes[],ROW()-ROW(Biroja_vērtību_novirzes[[#Headers],[Nov]]),1),INDEX(Biroja_plāns[],,1),0),MATCH(Biroja_vērtību_novirzes[[#Headers],[Nov]],Biroja_faktiskās_izmaksas[#Headers],0)) -> 200.00 EUR | N17: =INDEX(Biroja_plāns[],MATCH(INDEX(Biroja_vērtību_novirzes[],ROW()-ROW(Biroja_vērtību_novirzes[[#Headers],[Dec]]),1),INDEX(Biroja_plāns[],,1),0),MATCH(Biroja_vērtību_novirzes[[#Headers],[Dec]],Biroja_plāns[#Headers],0))-INDEX(Biroja_faktiskās_izmaksas[],MATCH(INDEX(Biroja_vērtību_novirzes[],ROW()-ROW(Biroja_vērtību_novirzes[[#Headers],[Dec]]),1),INDEX(Biroja_plāns[],,1),0),MATCH(Biroja_vērtību_novirzes[[#Headers],[Dec]],Biroja_faktiskās_izmaksas[#Headers],0)) -> 200.00 EUR | O17: =SUM(Biroja_vērtību_novirzes[[#This Row],[Jan]:[Dec]]) -> 1,125.00 EUR
B18: Drošība | C18: =INDEX(Biroja_plāns[],MATCH(INDEX(Biroja_vērtību_novirzes[],ROW()-ROW(Biroja_vērtību_novirzes[[#Headers],[Jan]]),1),INDEX(Biroja_plāns[],,1),0),MATCH(Biroja_vērtību_novirzes[[#Headers],[Jan]],Biroja_plāns[#Headers],0))-INDEX(Biroja_faktiskās_izmaksas[],MATCH(INDEX(Biroja_vērtību_novirzes[],ROW()-ROW(Biroja_vērtību_novirzes[[#Headers],[Jan]]),1),INDEX(Biroja_plāns[],,1),0),MATCH(Biroja_vērtību_novirzes[[#Headers],[Jan]],Biroja_faktiskās_izmaksas[#Headers],0)) -> 0.00 EUR | D18: =INDEX(Biroja_plāns[],MATCH(INDEX(Biroja_vērtību_novirzes[],ROW()-ROW(Biroja_vērtību_novirzes[[#Headers],[Feb]]),1),INDEX(Biroja_plāns[],,1),0),MATCH(Biroja_vērtību_novirzes[[#Headers],[Feb]],Biroja_plāns[#Headers],0))-INDEX(Biroja_faktiskās_izmaksas[],MATCH(INDEX(Biroja_vērtību_novirzes[],ROW()-ROW(Biroja_vērtību_novirzes[[#Headers],[Feb]]),1),INDEX(Biroja_plāns[],,1),0),MATCH(Biroja_vērtību_novirzes[[#Headers],[Feb]],Biroja_faktiskās_izmaksas[#Headers],0)) -> 0.00 EUR | E18: =INDEX(Biroja_plāns[],MATCH(INDEX(Biroja_vērtību_novirzes[],ROW()-ROW(Biroja_vērtību_novirzes[[#Headers],[Mar]]),1),INDEX(Biroja_plāns[],,1),0),MATCH(Biroja_vērtību_novirzes[[#Headers],[Mar]],Biroja_plāns[#Headers],0))-INDEX(Biroja_faktiskās_izmaksas[],MATCH(INDEX(Biroja_vērtību_novirzes[],ROW()-ROW(Biroja_vērtību_novirzes[[#Headers],[Mar]]),1),INDEX(Biroja_plāns[],,1),0),MATCH(Biroja_vērtību_novirzes[[#Headers],[Mar]],Biroja_faktiskās_izmaksas[#Headers],0)) -> 0.00 EUR | F18: =INDEX(Biroja_plāns[],MATCH(INDEX(Biroja_vērtību_novirzes[],ROW()-ROW(Biroja_vērtību_novirzes[[#Headers],[Apr]]),1),INDEX(Biroja_plāns[],,1),0),MATCH(Biroja_vērtību_novirzes[[#Headers],[Apr]],Biroja_plāns[#Headers],0))-INDEX(Biroja_faktiskās_izmaksas[],MATCH(INDEX(Biroja_vērtību_novirzes[],ROW()-ROW(Biroja_vērtību_novirzes[[#Headers],[Apr]]),1),INDEX(Biroja_plāns[],,1),0),MATCH(Biroja_vērtību_novirzes[[#Headers],[Apr]],Biroja_faktiskās_izmaksas[#Headers],0)) -> 0.00 EUR | G18: =INDEX(Biroja_plāns[],MATCH(INDEX(Biroja_vērtību_novirzes[],ROW()-ROW(Biroja_vērtību_novirzes[[#Headers],[Maijs]]),1),INDEX(Biroja_plāns[],,1),0),MATCH(Biroja_vērtību_novirzes[[#Headers],[Maijs]],Biroja_plāns[#Headers],0))-INDEX(Biroja_faktiskās_izmaksas[],MATCH(INDEX(Biroja_vērtību_novirzes[],ROW()-ROW(Biroja_vērtību_novirzes[[#Headers],[Maijs]]),1),INDEX(Biroja_plāns[],,1),0),MATCH(Biroja_vērtību_novirzes[[#Headers],[Maijs]],Biroja_faktiskās_izmaksas[#Headers],0)) -> 0.00 EUR | H18: =INDEX(Biroja_plāns[],MATCH(INDEX(Biroja_vērtību_novirzes[],ROW()-ROW(Biroja_vērtību_novirzes[[#Headers],[Jūn]]),1),INDEX(Biroja_plāns[],,1),0),MATCH(Biroja_vērtību_novirzes[[#Headers],[Jūn]],Biroja_plāns[#Headers],0))-INDEX(Biroja_faktiskās_izmaksas[],MATCH(INDEX(Biroja_vērtību_novirzes[],ROW()-ROW(Biroja_vērtību_novirzes[[#Headers],[Jūn]]),1),INDEX(Biroja_plāns[],,1),0),MATCH(Biroja_vērtību_novirzes[[#Headers],[Jūn]],Biroja_faktiskās_izmaksas[#Headers],0)) -> 0.00 EUR | I18: =INDEX(Biroja_plāns[],MATCH(INDEX(Biroja_vērtību_novirzes[],ROW()-ROW(Biroja_vērtību_novirzes[[#Headers],[Jūl]]),1),INDEX(Biroja_plāns[],,1),0),MATCH(Biroja_vērtību_novirzes[[#Headers],[Jūl]],Biroja_plāns[#Headers],0))-INDEX(Biroja_faktiskās_izmaksas[],MATCH(INDEX(Biroja_vērtību_novirzes[],ROW()-ROW(Biroja_vērtību_novirzes[[#Headers],[Jūl]]),1),INDEX(Biroja_plāns[],,1),0),MATCH(Biroja_vērtību_novirzes[[#Headers],[Jūl]],Biroja_faktiskās_izmaksas[#Headers],0)) -> 600.00 EUR | J18: =INDEX(Biroja_plāns[],MATCH(INDEX(Biroja_vērtību_novirzes[],ROW()-ROW(Biroja_vērtību_novirzes[[#Headers],[Aug]]),1),INDEX(Biroja_plāns[],,1),0),MATCH(Biroja_vērtību_novirzes[[#Headers],[Aug]],Biroja_plāns[#Headers],0))-INDEX(Biroja_faktiskās_izmaksas[],MATCH(INDEX(Biroja_vērtību_novirzes[],ROW()-ROW(Biroja_vērtību_novirzes[[#Headers],[Aug]]),1),INDEX(Biroja_plāns[],,1),0),MATCH(Biroja_vērtību_novirzes[[#Headers],[Aug]],Biroja_faktiskās_izmaksas[#Headers],0)) -> 600.00 EUR | K18: =INDEX(Biroja_plāns[],MATCH(INDEX(Biroja_vērtību_novirzes[],ROW()-ROW(Biroja_vērtību_novirzes[[#Headers],[Sep]]),1),INDEX(Biroja_plāns[],,1),0),MATCH(Biroja_vērtību_novirzes[[#Headers],[Sep]],Biroja_plāns[#Headers],0))-INDEX(Biroja_faktiskās_izmaksas[],MATCH(INDEX(Biroja_vērtību_novirzes[],ROW()-ROW(Biroja_vērtību_novirzes[[#Headers],[Sep]]),1),INDEX(Biroja_plāns[],,1),0),MATCH(Biroja_vērtību_novirzes[[#Headers],[Sep]],Biroja_faktiskās_izmaksas[#Headers],0)) -> 600.00 EUR | L18: =INDEX(Biroja_plāns[],MATCH(INDEX(Biroja_vērtību_novirzes[],ROW()-ROW(Biroja_vērtību_novirzes[[#Headers],[Okt]]),1),INDEX(Biroja_plāns[],,1),0),MATCH(Biroja_vērtību_novirzes[[#Headers],[Okt]],Biroja_plāns[#Headers],0))-INDEX(Biroja_faktiskās_izmaksas[],MATCH(INDEX(Biroja_vērtību_novirzes[],ROW()-ROW(Biroja_vērtību_novirzes[[#Headers],[Okt]]),1),INDEX(Biroja_plāns[],,1),0),MATCH(Biroja_vērtību_novirzes[[#Headers],[Okt]],Biroja_faktiskās_izmaksas[#Headers],0)) -> 600.00 EUR | M18: =INDEX(Biroja_plāns[],MATCH(INDEX(Biroja_vērtību_novirzes[],ROW()-ROW(Biroja_vērtību_novirzes[[#Headers],[Nov]]),1),INDEX(Biroja_plāns[],,1),0),MATCH(Biroja_vērtību_novirzes[[#Headers],[Nov]],Biroja_plāns[#Headers],0))-INDEX(Biroja_faktiskās_izmaksas[],MATCH(INDEX(Biroja_vērtību_novirzes[],ROW()-ROW(Biroja_vērtību_novirzes[[#Headers],[Nov]]),1),INDEX(Biroja_plāns[],,1),0),MATCH(Biroja_vērtību_novirzes[[#Headers],[Nov]],Biroja_faktiskās_izmaksas[#Headers],0)) -> 600.00 EUR | N18: =INDEX(Biroja_plāns[],MATCH(INDEX(Biroja_vērtību_novirzes[],ROW()-ROW(Biroja_vērtību_novirzes[[#Headers],[Dec]]),1),INDEX(Biroja_plāns[],,1),0),MATCH(Biroja_vērtību_novirzes[[#Headers],[Dec]],Biroja_plāns[#Headers],0))-INDEX(Biroja_faktiskās_izmaksas[],MATCH(INDEX(Biroja_vērtību_novirzes[],ROW()-ROW(Biroja_vērtību_novirzes[[#Headers],[Dec]]),1),INDEX(Biroja_plāns[],,1),0),MATCH(Biroja_vērtību_novirzes[[#Headers],[Dec]],Biroja_faktiskās_izmaksas[#Headers],0)) -> 600.00 EUR | O18: =SUM(Biroja_vērtību_novirzes[[#This Row],[Jan]:[Dec]]) -> 3,600.00 EUR
B19: Starpsumma | C19: =SUBTOTAL(109,Biroja_vērtību_novirzes[Jan]) -> -17.00 EUR | D19: =SUBTOTAL(109,Biroja_vērtību_novirzes[Feb]) -> 72.00 EUR | E19: =SUBTOTAL(109,Biroja_vērtību_novirzes[Mar]) -> 78.00 EUR | F19: =SUBTOTAL(109,Biroja_vērtību_novirzes[Apr]) -> -141.00 EUR | G19: =SUBTOTAL(109,Biroja_vērtību_novirzes[Maijs]) -> -38.00 EUR | H19: =SUBTOTAL(109,Biroja_vērtību_novirzes[Jūn]) -> 16.00 EUR | I19: =SUBTOTAL(109,Biroja_vērtību_novirzes[Jūl]) -> 11,470.00 EUR | J19: =SUBTOTAL(109,Biroja_vērtību_novirzes[Aug]) -> 11,470.00 EUR | K19: =SUBTOTAL(109,Biroja_vērtību_novirzes[Sep]) -> 11,470.00 EUR | L19: =SUBTOTAL(109,Biroja_vērtību_novirzes[Okt]) -> 11,470.00 EUR | M19: =SUBTOTAL(109,Biroja_vērtību_novirzes[Nov]) -> 11,770.00 EUR | N19: =SUBTOTAL(109,Biroja_vērtību_novirzes[Dec]) -> 11,770.00 EUR | O19: =SUBTOTAL(109,Biroja_vērtību_novirzes[GADS]) -> 69,390.00 EUR
A21: Mārketinga izmaksas novirze tiek automātiski aprēķināta tabulā Mārketinga vērtību novirzes, sākot ar šūnu pa labi. Nākamais norādījums ir šūnā A30. | B21: Mārketinga izmaksas | C21: Jan | D21: Feb | E21: Mar | F21: Apr | G21: Maijs | H21: Jūn | I21: Jūl | J21: Aug | K21: Sep | L21: Okt | M21: Nov | N21: Dec | O21: GADS
B22: Tīmekļa vietnes viesošana | C22: =INDEX(Mārketinga_plāns[],MATCH(INDEX(Mārketinga_vērtību_novirzes[],ROW()-ROW(Mārketinga_vērtību_novirzes[[#Headers],[Jan]]),1),INDEX(Mārketinga_plāns[],,1),0),MATCH(Mārketinga_vērtību_novirzes[[#Headers],[Jan]],Mārketinga_plāns[#Headers],0))-INDEX(Mārketinga_faktiskās_izmaksas[],MATCH(INDEX(Mārketinga_vērtību_novirzes[],ROW()-ROW(Mārketinga_vērtību_novirzes[[#Headers],[Jan]]),1),INDEX(Mārketinga_plāns[],,1),0),MATCH(Mārketinga_vērtību_novirzes[[#Headers],[Jan]],Mārketinga_faktiskās_izmaksas[#Headers],0)) -> 0.00 EUR | D22: =INDEX(Mārketinga_plāns[],MATCH(INDEX(Mārketinga_vērtību_novirzes[],ROW()-ROW(Mārketinga_vērtību_novirzes[[#Headers],[Feb]]),1),INDEX(Mārketinga_plāns[],,1),0),MATCH(Mārketinga_vērtību_novirzes[[#Headers],[Feb]],Mārketinga_plāns[#Headers],0))-INDEX(Mārketinga_faktiskās_izmaksas[],MATCH(INDEX(Mārketinga_vērtību_novirzes[],ROW()-ROW(Mārketinga_vērtību_novirzes[[#Headers],[Feb]]),1),INDEX(Mārketinga_plāns[],,1),0),MATCH(Mārketinga_vērtību_novirzes[[#Headers],[Feb]],Mārketinga_faktiskās_izmaksas[#Headers],0)) -> 0.00 EUR | E22: =INDEX(Mārketinga_plāns[],MATCH(INDEX(Mārketinga_vērtību_novirzes[],ROW()-ROW(Mārketinga_vērtību_novirzes[[#Headers],[Mar]]),1),INDEX(Mārketinga_plāns[],,1),0),MATCH(Mārketinga_vērtību_novirzes[[#Headers],[Mar]],Mārketinga_plāns[#Headers],0))-INDEX(Mārketinga_faktiskās_izmaksas[],MATCH(INDEX(Mārketinga_vērtību_novirzes[],ROW()-ROW(Mārketinga_vērtību_novirzes[[#Headers],[Mar]]),1),INDEX(Mārketinga_plāns[],,1),0),MATCH(Mārketinga_vērtību_novirzes[[#Headers],[Mar]],Mārketinga_faktiskās_izmaksas[#Headers],0)) -> 0.00 EUR | F22: =INDEX(Mārketinga_plāns[],MATCH(INDEX(Mārketinga_vērtību_novirzes[],ROW()-ROW(Mārketinga_vērtību_novirzes[[#Headers],[Apr]]),1),INDEX(Mārketinga_plāns[],,1),0),MATCH(Mārketinga_vērtību_novirzes[[#Headers],[Apr]],Mārketinga_plāns[#Headers],0))-INDEX(Mārketinga_faktiskās_izmaksas[],MATCH(INDEX(Mārketinga_vērtību_novirzes[],ROW()-ROW(Mārketinga_vērtību_novirzes[[#Headers],[Apr]]),1),INDEX(Mārketinga_plāns[],,1),0),MATCH(Mārketinga_vērtību_novirzes[[#Headers],[Apr]],Mārketinga_faktiskās_izmaksas[#Headers],0)) -> 0.00 EUR | G22: =INDEX(Mārketinga_plāns[],MATCH(INDEX(Mārketinga_vērtību_novirzes[],ROW()-ROW(Mārketinga_vērtību_novirzes[[#Headers],[Maijs]]),1),INDEX(Mārketinga_plāns[],,1),0),MATCH(Mārketinga_vērtību_novirzes[[#Headers],[Maijs]],Mārketinga_plāns[#Headers],0))-INDEX(Mārketinga_faktiskās_izmaksas[],MATCH(INDEX(Mārketinga_vērtību_novirzes[],ROW()-ROW(Mārketinga_vērtību_novirzes[[#Headers],[Maijs]]),1),INDEX(Mārketinga_plāns[],,1),0),MATCH(Mārketinga_vērtību_novirzes[[#Headers],[Maijs]],Mārketinga_faktiskās_izmaksas[#Headers],0)) -> 0.00 EUR | H22: =INDEX(Mārketinga_plāns[],MATCH(INDEX(Mārketinga_vērtību_novirzes[],ROW()-ROW(Mārketinga_vērtību_novirzes[[#Headers],[Jūn]]),1),INDEX(Mārketinga_plāns[],,1),0),MATCH(Mārketinga_vērtību_novirzes[[#Headers],[Jūn]],Mārketinga_plāns[#Headers],0))-INDEX(Mārketinga_faktiskās_izmaksas[],MATCH(INDEX(Mārketinga_vērtību_novirzes[],ROW()-ROW(Mārketinga_vērtību_novirzes[[#Headers],[Jūn]]),1),INDEX(Mārketinga_plāns[],,1),0),MATCH(Mārketinga_vērtību_novirzes[[#Headers],[Jūn]],Mārketinga_faktiskās_izmaksas[#Headers],0)) -> 0.00 EUR | I22: =INDEX(Mārketinga_plāns[],MATCH(INDEX(Mārketinga_vērtību_novirzes[],ROW()-ROW(Mārketinga_vērtību_novirzes[[#Headers],[Jūl]]),1),INDEX(Mārketinga_plāns[],,1),0),MATCH(Mārketinga_vērtību_novirzes[[#Headers],[Jūl]],Mārketinga_plāns[#Headers],0))-INDEX(Mārketinga_faktiskās_izmaksas[],MATCH(INDEX(Mārketinga_vērtību_novirzes[],ROW()-ROW(Mārketinga_vērtību_novirzes[[#Headers],[Jūl]]),1),INDEX(Mārketinga_plāns[],,1),0),MATCH(Mārketinga_vērtību_novirzes[[#Headers],[Jūl]],Mārketinga_faktiskās_izmaksas[#Headers],0)) -> 500.00 EUR | J22: =INDEX(Mārketinga_plāns[],MATCH(INDEX(Mārketinga_vērtību_novirzes[],ROW()-ROW(Mārketinga_vērtību_novirzes[[#Headers],[Aug]]),1),INDEX(Mārketinga_plāns[],,1),0),MATCH(Mārketinga_vērtību_novirzes[[#Headers],[Aug]],Mārketinga_plāns[#Headers],0))-INDEX(Mārketinga_faktiskās_izmaksas[],MATCH(INDEX(Mārketinga_vērtību_novirzes[],ROW()-ROW(Mārketinga_vērtību_novirzes[[#Headers],[Aug]]),1),INDEX(Mārketinga_plāns[],,1),0),MATCH(Mārketinga_vērtību_novirzes[[#Headers],[Aug]],Mārketinga_faktiskās_izmaksas[#Headers],0)) -> 500.00 EUR | K22: =INDEX(Mārketinga_plāns[],MATCH(INDEX(Mārketinga_vērtību_novirzes[],ROW()-ROW(Mārketinga_vērtību_novirzes[[#Headers],[Sep]]),1),INDEX(Mārketinga_plāns[],,1),0),MATCH(Mārketinga_vērtību_novirzes[[#Headers],[Sep]],Mārketinga_plāns[#Headers],0))-INDEX(Mārketinga_faktiskās_izmaksas[],MATCH(INDEX(Mārketinga_vērtību_novirzes[],ROW()-ROW(Mārketinga_vērtību_novirzes[[#Headers],[Sep]]),1),INDEX(Mārketinga_plāns[],,1),0),MATCH(Mārketinga_vērtību_novirzes[[#Headers],[Sep]],Mārketinga_faktiskās_izmaksas[#Headers],0)) -> 500.00 EUR | L22: =INDEX(Mārketinga_plāns[],MATCH(INDEX(Mārketinga_vērtību_novirzes[],ROW()-ROW(Mārketinga_vērtību_novirzes[[#Headers],[Okt]]),1),INDEX(Mārketinga_plāns[],,1),0),MATCH(Mārketinga_vērtību_novirzes[[#Headers],[Okt]],Mārketinga_plāns[#Headers],0))-INDEX(Mārketinga_faktiskās_izmaksas[],MATCH(INDEX(Mārketinga_vērtību_novirzes[],ROW()-ROW(Mārketinga_vērtību_novirzes[[#Headers],[Okt]]),1),INDEX(Mārketinga_plāns[],,1),0),MATCH(Mārketinga_vērtību_novirzes[[#Headers],[Okt]],Mārketinga_faktiskās_izmaksas[#Headers],0)) -> 500.00 EUR | M22: =INDEX(Mārketinga_plāns[],MATCH(INDEX(Mārketinga_vērtību_novirzes[],ROW()-ROW(Mārketinga_vērtību_novirzes[[#Headers],[Nov]]),1),INDEX(Mārketinga_plāns[],,1),0),MATCH(Mārketinga_vērtību_novirzes[[#Headers],[Nov]],Mārketinga_plāns[#Headers],0))-INDEX(Mārketinga_faktiskās_izmaksas[],MATCH(INDEX(Mārketinga_vērtību_novirzes[],ROW()-ROW(Mārketinga_vērtību_novirzes[[#Headers],[Nov]]),1),INDEX(Mārketinga_plāns[],,1),0),MATCH(Mārketinga_vērtību_novirzes[[#Headers],[Nov]],Mārketinga_faktiskās_izmaksas[#Headers],0)) -> 500.00 EUR | N22: =INDEX(Mārketinga_plāns[],MATCH(INDEX(Mārketinga_vērtību_novirzes[],ROW()-ROW(Mārketinga_vērtību_novirzes[[#Headers],[Dec]]),1),INDEX(Mārketinga_plāns[],,1),0),MATCH(Mārketinga_vērtību_novirzes[[#Headers],[Dec]],Mārketinga_plāns[#Headers],0))-INDEX(Mārketinga_faktiskās_izmaksas[],MATCH(INDEX(Mārketinga_vērtību_novirzes[],ROW()-ROW(Mārketinga_vērtību_novirzes[[#Headers],[Dec]]),1),INDEX(Mārketinga_plāns[],,1),0),MATCH(Mārketinga_vērtību_novirzes[[#Headers],[Dec]],Mārketinga_faktiskās_izmaksas[#Headers],0)) -> 500.00 EUR | O22: =SUM(Mārketinga_vērtību_novirzes[[#This Row],[Jan]:[Dec]]) -> 3,000.00 EUR
B23: Tīmekļa vietnes atjauninājumi | C23: =INDEX(Mārketinga_plāns[],MATCH(INDEX(Mārketinga_vērtību_novirzes[],ROW()-ROW(Mārketinga_vērtību_novirzes[[#Headers],[Jan]]),1),INDEX(Mārketinga_plāns[],,1),0),MATCH(Mārketinga_vērtību_novirzes[[#Headers],[Jan]],Mārketinga_plāns[#Headers],0))-INDEX(Mārketinga_faktiskās_izmaksas[],MATCH(INDEX(Mārketinga_vērtību_novirzes[],ROW()-ROW(Mārketinga_vērtību_novirzes[[#Headers],[Jan]]),1),INDEX(Mārketinga_plāns[],,1),0),MATCH(Mārketinga_vērtību_novirzes[[#Headers],[Jan]],Mārketinga_faktiskās_izmaksas[#Headers],0)) -> 0.00 EUR | D23: =INDEX(Mārketinga_plāns[],MATCH(INDEX(Mārketinga_vērtību_novirzes[],ROW()-ROW(Mārketinga_vērtību_novirzes[[#Headers],[Feb]]),1),INDEX(Mārketinga_plāns[],,1),0),MATCH(Mārketinga_vērtību_novirzes[[#Headers],[Feb]],Mārketinga_plāns[#Headers],0))-INDEX(Mārketinga_faktiskās_izmaksas[],MATCH(INDEX(Mārketinga_vērtību_novirzes[],ROW()-ROW(Mārketinga_vērtību_novirzes[[#Headers],[Feb]]),1),INDEX(Mārketinga_plāns[],,1),0),MATCH(Mārketinga_vērtību_novirzes[[#Headers],[Feb]],Mārketinga_faktiskās_izmaksas[#Headers],0)) -> 0.00 EUR | E23: =INDEX(Mārketinga_plāns[],MATCH(INDEX(Mārketinga_vērtību_novirzes[],ROW()-ROW(Mārketinga_vērtību_novirzes[[#Headers],[Mar]]),1),INDEX(Mārketinga_plāns[],,1),0),MATCH(Mārketinga_vērtību_novirzes[[#Headers],[Mar]],Mārketinga_plāns[#Headers],0))-INDEX(Mārketinga_faktiskās_izmaksas[],MATCH(INDEX(Mārketinga_vērtību_novirzes[],ROW()-ROW(Mārketinga_vērtību_novirzes[[#Headers],[Mar]]),1),INDEX(Mārketinga_plāns[],,1),0),MATCH(Mārketinga_vērtību_novirzes[[#Headers],[Mar]],Mārketinga_faktiskās_izmaksas[#Headers],0)) -> 0.00 EUR | F23: =INDEX(Mārketinga_plāns[],MATCH(INDEX(Mārketinga_vērtību_novirzes[],ROW()-ROW(Mārketinga_vērtību_novirzes[[#Headers],[Apr]]),1),INDEX(Mārketinga_plāns[],,1),0),MATCH(Mārketinga_vērtību_novirzes[[#Headers],[Apr]],Mārketinga_plāns[#Headers],0))-INDEX(Mārketinga_faktiskās_izmaksas[],MATCH(INDEX(Mārketinga_vērtību_novirzes[],ROW()-ROW(Mārketinga_vērtību_novirzes[[#Headers],[Apr]]),1),INDEX(Mārketinga_plāns[],,1),0),MATCH(Mārketinga_vērtību_novirzes[[#Headers],[Apr]],Mārketinga_faktiskās_izmaksas[#Headers],0)) -> 0.00 EUR | G23: =INDEX(Mārketinga_plāns[],MATCH(INDEX(Mārketinga_vērtību_novirzes[],ROW()-ROW(Mārketinga_vērtību_novirzes[[#Headers],[Maijs]]),1),INDEX(Mārketinga_plāns[],,1),0),MATCH(Mārketinga_vērtību_novirzes[[#Headers],[Maijs]],Mārketinga_plāns[#Headers],0))-INDEX(Mārketinga_faktiskās_izmaksas[],MATCH(INDEX(Mārketinga_vērtību_novirzes[],ROW()-ROW(Mārketinga_vērtību_novirzes[[#Headers],[Maijs]]),1),INDEX(Mārketinga_plāns[],,1),0),MATCH(Mārketinga_vērtību_novirzes[[#Headers],[Maijs]],Mārketinga_faktiskās_izmaksas[#Headers],0)) -> 0.00 EUR | H23: =INDEX(Mārketinga_plāns[],MATCH(INDEX(Mārketinga_vērtību_novirzes[],ROW()-ROW(Mārketinga_vērtību_novirzes[[#Headers],[Jūn]]),1),INDEX(Mārketinga_plāns[],,1),0),MATCH(Mārketinga_vērtību_novirzes[[#Headers],[Jūn]],Mārketinga_plāns[#Headers],0))-INDEX(Mārketinga_faktiskās_izmaksas[],MATCH(INDEX(Mārketinga_vērtību_novirzes[],ROW()-ROW(Mārketinga_vērtību_novirzes[[#Headers],[Jūn]]),1),INDEX(Mārketinga_plāns[],,1),0),MATCH(Mārketinga_vērtību_novirzes[[#Headers],[Jūn]],Mārketinga_faktiskās_izmaksas[#Headers],0)) -> -500.00 EUR | I23: =INDEX(Mārketinga_plāns[],MATCH(INDEX(Mārketinga_vērtību_novirzes[],ROW()-ROW(Mārketinga_vērtību_novirzes[[#Headers],[Jūl]]),1),INDEX(Mārketinga_plāns[],,1),0),MATCH(Mārketinga_vērtību_novirzes[[#Headers],[Jūl]],Mārketinga_plāns[#Headers],0))-INDEX(Mārketinga_faktiskās_izmaksas[],MATCH(INDEX(Mārketinga_vērtību_novirzes[],ROW()-ROW(Mārketinga_vērtību_novirzes[[#Headers],[Jūl]]),1),INDEX(Mārketinga_plāns[],,1),0),MATCH(Mārketinga_vērtību_novirzes[[#Headers],[Jūl]],Mārketinga_faktiskās_izmaksas[#Headers],0)) -> 200.00 EUR | J23: =INDEX(Mārketinga_plāns[],MATCH(INDEX(Mārketinga_vērtību_novirzes[],ROW()-ROW(Mārketinga_vērtību_novirzes[[#Headers],[Aug]]),1),INDEX(Mārketinga_plāns[],,1),0),MATCH(Mārketinga_vērtību_novirzes[[#Headers],[Aug]],Mārketinga_plāns[#Headers],0))-INDEX(Mārketinga_faktiskās_izmaksas[],MATCH(INDEX(Mārketinga_vērtību_novirzes[],ROW()-ROW(Mārketinga_vērtību_novirzes[[#Headers],[Aug]]),1),INDEX(Mārketinga_plāns[],,1),0),MATCH(Mārketinga_vērtību_novirzes[[#Headers],[Aug]],Mārketinga_faktiskās_izmaksas[#Headers],0)) -> 200.00 EUR | K23: =INDEX(Mārketinga_plāns[],MATCH(INDEX(Mārketinga_vērtību_novirzes[],ROW()-ROW(Mārketinga_vērtību_novirzes[[#Headers],[Sep]]),1),INDEX(Mārketinga_plāns[],,1),0),MATCH(Mārketinga_vērtību_novirzes[[#Headers],[Sep]],Mārketinga_plāns[#Headers],0))-INDEX(Mārketinga_faktiskās_izmaksas[],MATCH(INDEX(Mārketinga_vērtību_novirzes[],ROW()-ROW(Mārketinga_vērtību_novirzes[[#Headers],[Sep]]),1),INDEX(Mārketinga_plāns[],,1),0),MATCH(Mārketinga_vērtību_novirzes[[#Headers],[Sep]],Mārketinga_faktiskās_izmaksas[#Headers],0)) -> 200.00 EUR | L23: =INDEX(Mārketinga_plāns[],MATCH(INDEX(Mārketinga_vērtību_novirzes[],ROW()-ROW(Mārketinga_vērtību_novirzes[[#Headers],[Okt]]),1),INDEX(Mārketinga_plāns[],,1),0),MATCH(Mārketinga_vērtību_novirzes[[#Headers],[Okt]],Mārketinga_plāns[#Headers],0))-INDEX(Mārketinga_faktiskās_izmaksas[],MATCH(INDEX(Mārketinga_vērtību_novirzes[],ROW()-ROW(Mārketinga_vērtību_novirzes[[#Headers],[Okt]]),1),INDEX(Mārketinga_plāns[],,1),0),MATCH(Mārketinga_vērtību_novirzes[[#Headers],[Okt]],Mārketinga_faktiskās_izmaksas[#Headers],0)) -> 200.00 EUR | M23: =INDEX(Mārketinga_plāns[],MATCH(INDEX(Mārketinga_vērtību_novirzes[],ROW()-ROW(Mārketinga_vērtību_novirzes[[#Headers],[Nov]]),1),INDEX(Mārketinga_plāns[],,1),0),MATCH(Mārketinga_vērtību_novirzes[[#Headers],[Nov]],Mārketinga_plāns[#Headers],0))-INDEX(Mārketinga_faktiskās_izmaksas[],MATCH(INDEX(Mārketinga_vērtību_novirzes[],ROW()-ROW(Mārketinga_vērtību_novirzes[[#Headers],[Nov]]),1),INDEX(Mārketinga_plāns[],,1),0),MATCH(Mārketinga_vērtību_novirzes[[#Headers],[Nov]],Mārketinga_faktiskās_izmaksas[#Headers],0)) -> 200.00 EUR | N23: =INDEX(Mārketinga_plāns[],MATCH(INDEX(Mārketinga_vērtību_novirzes[],ROW()-ROW(Mārketinga_vērtību_novirzes[[#Headers],[Dec]]),1),INDEX(Mārketinga_plāns[],,1),0),MATCH(Mārketinga_vērtību_novirzes[[#Headers],[Dec]],Mārketinga_plāns[#Headers],0))-INDEX(Mārketinga_faktiskās_izmaksas[],MATCH(INDEX(Mārketinga_vērtību_novirzes[],ROW()-ROW(Mārketinga_vērtību_novirzes[[#Headers],[Dec]]),1),INDEX(Mārketinga_plāns[],,1),0),MATCH(Mārketinga_vērtību_novirzes[[#Headers],[Dec]],Mārketinga_faktiskās_izmaksas[#Headers],0)) -> 1,000.00 EUR | O23: =SUM(Mārketinga_vērtību_novirzes[[#This Row],[Jan]:[Dec]]) -> 1,500.00 EUR
B24: Papildu sagatavošana | C24: =INDEX(Mārketinga_plāns[],MATCH(INDEX(Mārketinga_vērtību_novirzes[],ROW()-ROW(Mārketinga_vērtību_novirzes[[#Headers],[Jan]]),1),INDEX(Mārketinga_plāns[],,1),0),MATCH(Mārketinga_vērtību_novirzes[[#Headers],[Jan]],Mārketinga_plāns[#Headers],0))-INDEX(Mārketinga_faktiskās_izmaksas[],MATCH(INDEX(Mārketinga_vērtību_novirzes[],ROW()-ROW(Mārketinga_vērtību_novirzes[[#Headers],[Jan]]),1),INDEX(Mārketinga_plāns[],,1),0),MATCH(Mārketinga_vērtību_novirzes[[#Headers],[Jan]],Mārketinga_faktiskās_izmaksas[#Headers],0)) -> 200.00 EUR | D24: =INDEX(Mārketinga_plāns[],MATCH(INDEX(Mārketinga_vērtību_novirzes[],ROW()-ROW(Mārketinga_vērtību_novirzes[[#Headers],[Feb]]),1),INDEX(Mārketinga_plāns[],,1),0),MATCH(Mārketinga_vērtību_novirzes[[#Headers],[Feb]],Mārketinga_plāns[#Headers],0))-INDEX(Mārketinga_faktiskās_izmaksas[],MATCH(INDEX(Mārketinga_vērtību_novirzes[],ROW()-ROW(Mārketinga_vērtību_novirzes[[#Headers],[Feb]]),1),INDEX(Mārketinga_plāns[],,1),0),MATCH(Mārketinga_vērtību_novirzes[[#Headers],[Feb]],Mārketinga_faktiskās_izmaksas[#Headers],0)) -> 0.00 EUR | E24: =INDEX(Mārketinga_plāns[],MATCH(INDEX(Mārketinga_vērtību_novirzes[],ROW()-ROW(Mārketinga_vērtību_novirzes[[#Headers],[Mar]]),1),INDEX(Mārketinga_plāns[],,1),0),MATCH(Mārketinga_vērtību_novirzes[[#Headers],[Mar]],Mārketinga_plāns[#Headers],0))-INDEX(Mārketinga_faktiskās_izmaksas[],MATCH(INDEX(Mārketinga_vērtību_novirzes[],ROW()-ROW(Mārketinga_vērtību_novirzes[[#Headers],[Mar]]),1),INDEX(Mārketinga_plāns[],,1),0),MATCH(Mārketinga_vērtību_novirzes[[#Headers],[Mar]],Mārketinga_faktiskās_izmaksas[#Headers],0)) -> 0.00 EUR | F24: =INDEX(Mārketinga_plāns[],MATCH(INDEX(Mārketinga_vērtību_novirzes[],ROW()-ROW(Mārketinga_vērtību_novirzes[[#Headers],[Apr]]),1),INDEX(Mārketinga_plāns[],,1),0),MATCH(Mārketinga_vērtību_novirzes[[#Headers],[Apr]],Mārketinga_plāns[#Headers],0))-INDEX(Mārketinga_faktiskās_izmaksas[],MATCH(INDEX(Mārketinga_vērtību_novirzes[],ROW()-ROW(Mārketinga_vērtību_novirzes[[#Headers],[Apr]]),1),INDEX(Mārketinga_plāns[],,1),0),MATCH(Mārketinga_vērtību_novirzes[[#Headers],[Apr]],Mārketinga_faktiskās_izmaksas[#Headers],0)) -> -500.00 EUR | G24: =INDEX(Mārketinga_plāns[],MATCH(INDEX(Mārketinga_vērtību_novirzes[],ROW()-ROW(Mārketinga_vērtību_novirzes[[#Headers],[Maijs]]),1),INDEX(Mārketinga_plāns[],,1),0),MATCH(Mārketinga_vērtību_novirzes[[#Headers],[Maijs]],Mārketinga_plāns[#Headers],0))-INDEX(Mārketinga_faktiskās_izmaksas[],MATCH(INDEX(Mārketinga_vērtību_novirzes[],ROW()-ROW(Mārketinga_vērtību_novirzes[[#Headers],[Maijs]]),1),INDEX(Mārketinga_plāns[],,1),0),MATCH(Mārketinga_vērtību_novirzes[[#Headers],[Maijs]],Mārketinga_faktiskās_izmaksas[#Headers],0)) -> 0.00 EUR | H24: =INDEX(Mārketinga_plāns[],MATCH(INDEX(Mārketinga_vērtību_novirzes[],ROW()-ROW(Mārketinga_vērtību_novirzes[[#Headers],[Jūn]]),1),INDEX(Mārketinga_plāns[],,1),0),MATCH(Mārketinga_vērtību_novirzes[[#Headers],[Jūn]],Mārketinga_plāns[#Headers],0))-INDEX(Mārketinga_faktiskās_izmaksas[],MATCH(INDEX(Mārketinga_vērtību_novirzes[],ROW()-ROW(Mārketinga_vērtību_novirzes[[#Headers],[Jūn]]),1),INDEX(Mārketinga_plāns[],,1),0),MATCH(Mārketinga_vērtību_novirzes[[#Headers],[Jūn]],Mārketinga_faktiskās_izmaksas[#Headers],0)) -> 0.00 EUR | I24: =INDEX(Mārketinga_plāns[],MATCH(INDEX(Mārketinga_vērtību_novirzes[],ROW()-ROW(Mārketinga_vērtību_novirzes[[#Headers],[Jūl]]),1),INDEX(Mārketinga_plāns[],,1),0),MATCH(Mārketinga_vērtību_novirzes[[#Headers],[Jūl]],Mārketinga_plāns[#Headers],0))-INDEX(Mārketinga_faktiskās_izmaksas[],MATCH(INDEX(Mārketinga_vērtību_novirzes[],ROW()-ROW(Mārketinga_vērtību_novirzes[[#Headers],[Jūl]]),1),INDEX(Mārketinga_plāns[],,1),0),MATCH(Mārketinga_vērtību_novirzes[[#Headers],[Jūl]],Mārketinga_faktiskās_izmaksas[#Headers],0)) -> 5,000.00 EUR | J24: =INDEX(Mārketinga_plāns[],MATCH(INDEX(Mārketinga_vērtību_novirzes[],ROW()-ROW(Mārketinga_vērtību_novirzes[[#Headers],[Aug]]),1),INDEX(Mārketinga_plāns[],,1),0),MATCH(Mārketinga_vērtību_novirzes[[#Headers],[Aug]],Mārketinga_plāns[#Headers],0))-INDEX(Mārketinga_faktiskās_izmaksas[],MATCH(INDEX(Mārketinga_vērtību_novirzes[],ROW()-ROW(Mārketinga_vērtību_novirzes[[#Headers],[Aug]]),1),INDEX(Mārketinga_plāns[],,1),0),MATCH(Mārketinga_vērtību_novirzes[[#Headers],[Aug]],Mārketinga_faktiskās_izmaksas[#Headers],0)) -> 0.00 EUR | K24: =INDEX(Mārketinga_plāns[],MATCH(INDEX(Mārketinga_vērtību_novirzes[],ROW()-ROW(Mārketinga_vērtību_novirzes[[#Headers],[Sep]]),1),INDEX(Mārketinga_plāns[],,1),0),MATCH(Mārketinga_vērtību_novirzes[[#Headers],[Sep]],Mārketinga_plāns[#Headers],0))-INDEX(Mārketinga_faktiskās_izmaksas[],MATCH(INDEX(Mārketinga_vērtību_novirzes[],ROW()-ROW(Mārketinga_vērtību_novirzes[[#Headers],[Sep]]),1),INDEX(Mārketinga_plāns[],,1),0),MATCH(Mārketinga_vērtību_novirzes[[#Headers],[Sep]],Mārketinga_faktiskās_izmaksas[#Headers],0)) -> 0.00 EUR | L24: =INDEX(Mārketinga_plāns[],MATCH(INDEX(Mārketinga_vērtību_novirzes[],ROW()-ROW(Mārketinga_vērtību_novirzes[[#Headers],[Okt]]),1),INDEX(Mārketinga_plāns[],,1),0),MATCH(Mārketinga_vērtību_novirzes[[#Headers],[Okt]],Mārketinga_plāns[#Headers],0))-INDEX(Mārketinga_faktiskās_izmaksas[],MATCH(INDEX(Mārketinga_vērtību_novirzes[],ROW()-ROW(Mārketinga_vērtību_novirzes[[#Headers],[Okt]]),1),INDEX(Mārketinga_plāns[],,1),0),MATCH(Mārketinga_vērtību_novirzes[[#Headers],[Okt]],Mārketinga_faktiskās_izmaksas[#Headers],0)) -> 5,000.00 EUR | M24: =INDEX(Mārketinga_plāns[],MATCH(INDEX(Mārketinga_vērtību_novirzes[],ROW()-ROW(Mārketinga_vērtību_novirzes[[#Headers],[Nov]]),1),INDEX(Mārketinga_plāns[],,1),0),MATCH(Mārketinga_vērtību_novirzes[[#Headers],[Nov]],Mārketinga_plāns[#Headers],0))-INDEX(Mārketinga_faktiskās_izmaksas[],MATCH(INDEX(Mārketinga_vērtību_novirzes[],ROW()-ROW(Mārketinga_vērtību_novirzes[[#Headers],[Nov]]),1),INDEX(Mārketinga_plāns[],,1),0),MATCH(Mārketinga_vērtību_novirzes[[#Headers],[Nov]],Mārketinga_faktiskās_izmaksas[#Headers],0)) -> 0.00 EUR | N24: =INDEX(Mārketinga_plāns[],MATCH(INDEX(Mārketinga_vērtību_novirzes[],ROW()-ROW(Mārketinga_vērtību_novirzes[[#Headers],[Dec]]),1),INDEX(Mārketinga_plāns[],,1),0),MATCH(Mārketinga_vērtību_novirzes[[#Headers],[Dec]],Mārketinga_plāns[#Headers],0))-INDEX(Mārketinga_faktiskās_izmaksas[],MATCH(INDEX(Mārketinga_vērtību_novirzes[],ROW()-ROW(Mārketinga_vērtību_novirzes[[#Headers],[Dec]]),1),INDEX(Mārketinga_plāns[],,1),0),MATCH(Mārketinga_vērtību_novirzes[[#Headers],[Dec]],Mārketinga_faktiskās_izmaksas[#Headers],0)) -> 0.00 EUR | O24: =SUM(Mārketinga_vērtību_novirzes[[#This Row],[Jan]:[Dec]]) -> 9,700.00 EUR
B25: Papildu drukāšana | C25: =INDEX(Mārketinga_plāns[],MATCH(INDEX(Mārketinga_vērtību_novirzes[],ROW()-ROW(Mārketinga_vērtību_novirzes[[#Headers],[Jan]]),1),INDEX(Mārketinga_plāns[],,1),0),MATCH(Mārketinga_vērtību_novirzes[[#Headers],[Jan]],Mārketinga_plāns[#Headers],0))-INDEX(Mārketinga_faktiskās_izmaksas[],MATCH(INDEX(Mārketinga_vērtību_novirzes[],ROW()-ROW(Mārketinga_vērtību_novirzes[[#Headers],[Jan]]),1),INDEX(Mārketinga_plāns[],,1),0),MATCH(Mārketinga_vērtību_novirzes[[#Headers],[Jan]],Mārketinga_faktiskās_izmaksas[#Headers],0)) -> 100.00 EUR | D25: =INDEX(Mārketinga_plāns[],MATCH(INDEX(Mārketinga_vērtību_novirzes[],ROW()-ROW(Mārketinga_vērtību_novirzes[[#Headers],[Feb]]),1),INDEX(Mārketinga_plāns[],,1),0),MATCH(Mārketinga_vērtību_novirzes[[#Headers],[Feb]],Mārketinga_plāns[#Headers],0))-INDEX(Mārketinga_faktiskās_izmaksas[],MATCH(INDEX(Mārketinga_vērtību_novirzes[],ROW()-ROW(Mārketinga_vērtību_novirzes[[#Headers],[Feb]]),1),INDEX(Mārketinga_plāns[],,1),0),MATCH(Mārketinga_vērtību_novirzes[[#Headers],[Feb]],Mārketinga_faktiskās_izmaksas[#Headers],0)) -> -300.00 EUR | E25: =INDEX(Mārketinga_plāns[],MATCH(INDEX(Mārketinga_vērtību_novirzes[],ROW()-ROW(Mārketinga_vērtību_novirzes[[#Headers],[Mar]]),1),INDEX(Mārketinga_plāns[],,1),0),MATCH(Mārketinga_vērtību_novirzes[[#Headers],[Mar]],Mārketinga_plāns[#Headers],0))-INDEX(Mārketinga_faktiskās_izmaksas[],MATCH(INDEX(Mārketinga_vērtību_novirzes[],ROW()-ROW(Mārketinga_vērtību_novirzes[[#Headers],[Mar]]),1),INDEX(Mārketinga_plāns[],,1),0),MATCH(Mārketinga_vērtību_novirzes[[#Headers],[Mar]],Mārketinga_faktiskās_izmaksas[#Headers],0)) -> 100.00 EUR | F25: =INDEX(Mārketinga_plāns[],MATCH(INDEX(Mārketinga_vērtību_novirzes[],ROW()-ROW(Mārketinga_vērtību_novirzes[[#Headers],[Apr]]),1),INDEX(Mārketinga_plāns[],,1),0),MATCH(Mārketinga_vērtību_novirzes[[#Headers],[Apr]],Mārketinga_plāns[#Headers],0))-INDEX(Mārketinga_faktiskās_izmaksas[],MATCH(INDEX(Mārketinga_vērtību_novirzes[],ROW()-ROW(Mārketinga_vērtību_novirzes[[#Headers],[Apr]]),1),INDEX(Mārketinga_plāns[],,1),0),MATCH(Mārketinga_vērtību_novirzes[[#Headers],[Apr]],Mārketinga_faktiskās_izmaksas[#Headers],0)) -> 100.00 EUR | G25: =INDEX(Mārketinga_plāns[],MATCH(INDEX(Mārketinga_vērtību_novirzes[],ROW()-ROW(Mārketinga_vērtību_novirzes[[#Headers],[Maijs]]),1),INDEX(Mārketinga_plāns[],,1),0),MATCH(Mārketinga_vērtību_novirzes[[#Headers],[Maijs]],Mārketinga_plāns[#Headers],0))-INDEX(Mārketinga_faktiskās_izmaksas[],MATCH(INDEX(Mārketinga_vērtību_novirzes[],ROW()-ROW(Mārketinga_vērtību_novirzes[[#Headers],[Maijs]]),1),INDEX(Mārketinga_plāns[],,1),0),MATCH(Mārketinga_vērtību_novirzes[[#Headers],[Maijs]],Mārketinga_faktiskās_izmaksas[#Headers],0)) -> -400.00 EUR | H25: =INDEX(Mārketinga_plāns[],MATCH(INDEX(Mārketinga_vērtību_novirzes[],ROW()-ROW(Mārketinga_vērtību_novirzes[[#Headers],[Jūn]]),1),INDEX(Mārketinga_plāns[],,1),0),MATCH(Mārketinga_vērtību_novirzes[[#Headers],[Jūn]],Mārketinga_plāns[#Headers],0))-INDEX(Mārketinga_faktiskās_izmaksas[],MATCH(INDEX(Mārketinga_vērtību_novirzes[],ROW()-ROW(Mārketinga_vērtību_novirzes[[#Headers],[Jūn]]),1),INDEX(Mārketinga_plāns[],,1),0),MATCH(Mārketinga_vērtību_novirzes[[#Headers],[Jūn]],Mārketinga_faktiskās_izmaksas[#Headers],0)) -> 20.00 EUR | I25: =INDEX(Mārketinga_plāns[],MATCH(INDEX(Mārketinga_vērtību_novirzes[],ROW()-ROW(Mārketinga_vērtību_novirzes[[#Headers],[Jūl]]),1),INDEX(Mārketinga_plāns[],,1),0),MATCH(Mārketinga_vērtību_novirzes[[#Headers],[Jūl]],Mārketinga_plāns[#Headers],0))-INDEX(Mārketinga_faktiskās_izmaksas[],MATCH(INDEX(Mārketinga_vērtību_novirzes[],ROW()-ROW(Mārketinga_vērtību_novirzes[[#Headers],[Jūl]]),1),INDEX(Mārketinga_plāns[],,1),0),MATCH(Mārketinga_vērtību_novirzes[[#Headers],[Jūl]],Mārketinga_faktiskās_izmaksas[#Headers],0)) -> 200.00 EUR | J25: =INDEX(Mārketinga_plāns[],MATCH(INDEX(Mārketinga_vērtību_novirzes[],ROW()-ROW(Mārketinga_vērtību_novirzes[[#Headers],[Aug]]),1),INDEX(Mārketinga_plāns[],,1),0),MATCH(Mārketinga_vērtību_novirzes[[#Headers],[Aug]],Mārketinga_plāns[#Headers],0))-INDEX(Mārketinga_faktiskās_izmaksas[],MATCH(INDEX(Mārketinga_vērtību_novirzes[],ROW()-ROW(Mārketinga_vērtību_novirzes[[#Headers],[Aug]]),1),INDEX(Mārketinga_plāns[],,1),0),MATCH(Mārketinga_vērtību_novirzes[[#Headers],[Aug]],Mārketinga_faktiskās_izmaksas[#Headers],0)) -> 200.00 EUR | K25: =INDEX(Mārketinga_plāns[],MATCH(INDEX(Mārketinga_vērtību_novirzes[],ROW()-ROW(Mārketinga_vērtību_novirzes[[#Headers],[Sep]]),1),INDEX(Mārketinga_plāns[],,1),0),MATCH(Mārketinga_vērtību_novirzes[[#Headers],[Sep]],Mārketinga_plāns[#Headers],0))-INDEX(Mārketinga_faktiskās_izmaksas[],MATCH(INDEX(Mārketinga_vērtību_novirzes[],ROW()-ROW(Mārketinga_vērtību_novirzes[[#Headers],[Sep]]),1),INDEX(Mārketinga_plāns[],,1),0),MATCH(Mārketinga_vērtību_novirzes[[#Headers],[Sep]],Mārketinga_faktiskās_izmaksas[#Headers],0)) -> 200.00 EUR | L25: =INDEX(Mārketinga_plāns[],MATCH(INDEX(Mārketinga_vērtību_novirzes[],ROW()-ROW(Mārketinga_vērtību_novirzes[[#Headers],[Okt]]),1),INDEX(Mārketinga_plāns[],,1),0),MATCH(Mārketinga_vērtību_novirzes[[#Headers],[Okt]],Mārketinga_plāns[#Headers],0))-INDEX(Mārketinga_faktiskās_izmaksas[],MATCH(INDEX(Mārketinga_vērtību_novirzes[],ROW()-ROW(Mārketinga_vērtību_novirzes[[#Headers],[Okt]]),1),INDEX(Mārketinga_plāns[],,1),0),MATCH(Mārketinga_vērtību_novirzes[[#Headers],[Okt]],Mārketinga_faktiskās_izmaksas[#Headers],0)) -> 200.00 EUR | M25: =INDEX(Mārketinga_plāns[],MATCH(INDEX(Mārketinga_vērtību_novirzes[],ROW()-ROW(Mārketinga_vērtību_novirzes[[#Headers],[Nov]]),1),INDEX(Mārketinga_plāns[],,1),0),MATCH(Mārketinga_vērtību_novirzes[[#Headers],[Nov]],Mārketinga_plāns[#Headers],0))-INDEX(Mārketinga_faktiskās_izmaksas[],MATCH(INDEX(Mārketinga_vērtību_novirzes[],ROW()-ROW(Mārketinga_vērtību_novirzes[[#Headers],[Nov]]),1),INDEX(Mārketinga_plāns[],,1),0),MATCH(Mārketinga_vērtību_novirzes[[#Headers],[Nov]],Mārketinga_faktiskās_izmaksas[#Headers],0)) -> 200.00 EUR | N25: =INDEX(Mārketinga_plāns[],MATCH(INDEX(Mārketinga_vērtību_novirzes[],ROW()-ROW(Mārketinga_vērtību_novirzes[[#Headers],[Dec]]),1),INDEX(Mārketinga_plāns[],,1),0),MATCH(Mārketinga_vērtību_novirzes[[#Headers],[Dec]],Mārketinga_plāns[#Headers],0))-INDEX(Mārketinga_faktiskās_izmaksas[],MATCH(INDEX(Mārketinga_vērtību_novirzes[],ROW()-ROW(Mārketinga_vērtību_novirzes[[#Headers],[Dec]]),1),INDEX(Mārketinga_plāns[],,1),0),MATCH(Mārketinga_vērtību_novirzes[[#Headers],[Dec]],Mārketinga_faktiskās_izmaksas[#Headers],0)) -> 200.00 EUR | O25: =SUM(Mārketinga_vērtību_novirzes[[#This Row],[Jan]:[Dec]]) -> 820.00 EUR
B26: Mārketinga pasākumi | C26: =INDEX(Mārketinga_plāns[],MATCH(INDEX(Mārketinga_vērtību_novirzes[],ROW()-ROW(Mārketinga_vērtību_novirzes[[#Headers],[Jan]]),1),INDEX(Mārketinga_plāns[],,1),0),MATCH(Mārketinga_vērtību_novirzes[[#Headers],[Jan]],Mārketinga_plāns[#Headers],0))-INDEX(Mārketinga_faktiskās_izmaksas[],MATCH(INDEX(Mārketinga_vērtību_novirzes[],ROW()-ROW(Mārketinga_vērtību_novirzes[[#Headers],[Jan]]),1),INDEX(Mārketinga_plāns[],,1),0),MATCH(Mārketinga_vērtību_novirzes[[#Headers],[Jan]],Mārketinga_faktiskās_izmaksas[#Headers],0)) -> 200.00 EUR | D26: =INDEX(Mārketinga_plāns[],MATCH(INDEX(Mārketinga_vērtību_novirzes[],ROW()-ROW(Mārketinga_vērtību_novirzes[[#Headers],[Feb]]),1),INDEX(Mārketinga_plāns[],,1),0),MATCH(Mārketinga_vērtību_novirzes[[#Headers],[Feb]],Mārketinga_plāns[#Headers],0))-INDEX(Mārketinga_faktiskās_izmaksas[],MATCH(INDEX(Mārketinga_vērtību_novirzes[],ROW()-ROW(Mārketinga_vērtību_novirzes[[#Headers],[Feb]]),1),INDEX(Mārketinga_plāns[],,1),0),MATCH(Mārketinga_vērtību_novirzes[[#Headers],[Feb]],Mārketinga_faktiskās_izmaksas[#Headers],0)) -> -200.00 EUR | E26: =INDEX(Mārketinga_plāns[],MATCH(INDEX(Mārketinga_vērtību_novirzes[],ROW()-ROW(Mārketinga_vērtību_novirzes[[#Headers],[Mar]]),1),INDEX(Mārketinga_plāns[],,1),0),MATCH(Mārketinga_vērtību_novirzes[[#Headers],[Mar]],Mārketinga_plāns[#Headers],0))-INDEX(Mārketinga_faktiskās_izmaksas[],MATCH(INDEX(Mārketinga_vērtību_novirzes[],ROW()-ROW(Mārketinga_vērtību_novirzes[[#Headers],[Mar]]),1),INDEX(Mārketinga_plāns[],,1),0),MATCH(Mārketinga_vērtību_novirzes[[#Headers],[Mar]],Mārketinga_faktiskās_izmaksas[#Headers],0)) -> -200.00 EUR | F26: =INDEX(Mārketinga_plāns[],MATCH(INDEX(Mārketinga_vērtību_novirzes[],ROW()-ROW(Mārketinga_vērtību_novirzes[[#Headers],[Apr]]),1),INDEX(Mārketinga_plāns[],,1),0),MATCH(Mārketinga_vērtību_novirzes[[#Headers],[Apr]],Mārketinga_plāns[#Headers],0))-INDEX(Mārketinga_faktiskās_izmaksas[],MATCH(INDEX(Mārketinga_vērtību_novirzes[],ROW()-ROW(Mārketinga_vērtību_novirzes[[#Headers],[Apr]]),1),INDEX(Mārketinga_plāns[],,1),0),MATCH(Mārketinga_vērtību_novirzes[[#Headers],[Apr]],Mārketinga_faktiskās_izmaksas[#Headers],0)) -> 300.00 EUR | G26: =INDEX(Mārketinga_plāns[],MATCH(INDEX(Mārketinga_vērtību_novirzes[],ROW()-ROW(Mārketinga_vērtību_novirzes[[#Headers],[Maijs]]),1),INDEX(Mārketinga_plāns[],,1),0),MATCH(Mārketinga_vērtību_novirzes[[#Headers],[Maijs]],Mārketinga_plāns[#Headers],0))-INDEX(Mārketinga_faktiskās_izmaksas[],MATCH(INDEX(Mārketinga_vērtību_novirzes[],ROW()-ROW(Mārketinga_vērtību_novirzes[[#Headers],[Maijs]]),1),INDEX(Mārketinga_plāns[],,1),0),MATCH(Mārketinga_vērtību_novirzes[[#Headers],[Maijs]],Mārketinga_faktiskās_izmaksas[#Headers],0)) -> 500.00 EUR | H26: =INDEX(Mārketinga_plāns[],MATCH(INDEX(Mārketinga_vērtību_novirzes[],ROW()-ROW(Mārketinga_vērtību_novirzes[[#Headers],[Jūn]]),1),INDEX(Mārketinga_plāns[],,1),0),MATCH(Mārketinga_vērtību_novirzes[[#Headers],[Jūn]],Mārketinga_plāns[#Headers],0))-INDEX(Mārketinga_faktiskās_izmaksas[],MATCH(INDEX(Mārketinga_vērtību_novirzes[],ROW()-ROW(Mārketinga_vērtību_novirzes[[#Headers],[Jūn]]),1),INDEX(Mārketinga_plāns[],,1),0),MATCH(Mārketinga_vērtību_novirzes[[#Headers],[Jūn]],Mārketinga_faktiskās_izmaksas[#Headers],0)) -> -300.00 EUR | I26: =INDEX(Mārketinga_plāns[],MATCH(INDEX(Mārketinga_vērtību_novirzes[],ROW()-ROW(Mārketinga_vērtību_novirzes[[#Headers],[Jūl]]),1),INDEX(Mārketinga_plāns[],,1),0),MATCH(Mārketinga_vērtību_novirzes[[#Headers],[Jūl]],Mārketinga_plāns[#Headers],0))-INDEX(Mārketinga_faktiskās_izmaksas[],MATCH(INDEX(Mārketinga_vērtību_novirzes[],ROW()-ROW(Mārketinga_vērtību_novirzes[[#Headers],[Jūl]]),1),INDEX(Mārketinga_plāns[],,1),0),MATCH(Mārketinga_vērtību_novirzes[[#Headers],[Jūl]],Mārketinga_faktiskās_izmaksas[#Headers],0)) -> 2,000.00 EUR | J26: =INDEX(Mārketinga_plāns[],MATCH(INDEX(Mārketinga_vērtību_novirzes[],ROW()-ROW(Mārketinga_vērtību_novirzes[[#Headers],[Aug]]),1),INDEX(Mārketinga_plāns[],,1),0),MATCH(Mārketinga_vērtību_novirzes[[#Headers],[Aug]],Mārketinga_plāns[#Headers],0))-INDEX(Mārketinga_faktiskās_izmaksas[],MATCH(INDEX(Mārketinga_vērtību_novirzes[],ROW()-ROW(Mārketinga_vērtību_novirzes[[#Headers],[Aug]]),1),INDEX(Mārketinga_plāns[],,1),0),MATCH(Mārketinga_vērtību_novirzes[[#Headers],[Aug]],Mārketinga_faktiskās_izmaksas[#Headers],0)) -> 5,000.00 EUR | K26: =INDEX(Mārketinga_plāns[],MATCH(INDEX(Mārketinga_vērtību_novirzes[],ROW()-ROW(Mārketinga_vērtību_novirzes[[#Headers],[Sep]]),1),INDEX(Mārketinga_plāns[],,1),0),MATCH(Mārketinga_vērtību_novirzes[[#Headers],[Sep]],Mārketinga_plāns[#Headers],0))-INDEX(Mārketinga_faktiskās_izmaksas[],MATCH(INDEX(Mārketinga_vērtību_novirzes[],ROW()-ROW(Mārketinga_vērtību_novirzes[[#Headers],[Sep]]),1),INDEX(Mārketinga_plāns[],,1),0),MATCH(Mārketinga_vērtību_novirzes[[#Headers],[Sep]],Mārketinga_faktiskās_izmaksas[#Headers],0)) -> 2,000.00 EUR | L26: =INDEX(Mārketinga_plāns[],MATCH(INDEX(Mārketinga_vērtību_novirzes[],ROW()-ROW(Mārketinga_vērtību_novirzes[[#Headers],[Okt]]),1),INDEX(Mārketinga_plāns[],,1),0),MATCH(Mārketinga_vērtību_novirzes[[#Headers],[Okt]],Mārketinga_plāns[#Headers],0))-INDEX(Mārketinga_faktiskās_izmaksas[],MATCH(INDEX(Mārketinga_vērtību_novirzes[],ROW()-ROW(Mārketinga_vērtību_novirzes[[#Headers],[Okt]]),1),INDEX(Mārketinga_plāns[],,1),0),MATCH(Mārketinga_vērtību_novirzes[[#Headers],[Okt]],Mārketinga_faktiskās_izmaksas[#Headers],0)) -> 2,000.00 EUR | M26: =INDEX(Mārketinga_plāns[],MATCH(INDEX(Mārketinga_vērtību_novirzes[],ROW()-ROW(Mārketinga_vērtību_novirzes[[#Headers],[Nov]]),1),INDEX(Mārketinga_plāns[],,1),0),MATCH(Mārketinga_vērtību_novirzes[[#Headers],[Nov]],Mārketinga_plāns[#Headers],0))-INDEX(Mārketinga_faktiskās_izmaksas[],MATCH(INDEX(Mārketinga_vērtību_novirzes[],ROW()-ROW(Mārketinga_vērtību_novirzes[[#Headers],[Nov]]),1),INDEX(Mārketinga_plāns[],,1),0),MATCH(Mārketinga_vērtību_novirzes[[#Headers],[Nov]],Mārketinga_faktiskās_izmaksas[#Headers],0)) -> 2,000.00 EUR | N26: =INDEX(Mārketinga_plāns[],MATCH(INDEX(Mārketinga_vērtību_novirzes[],ROW()-ROW(Mārketinga_vērtību_novirzes[[#Headers],[Dec]]),1),INDEX(Mārketinga_plāns[],,1),0),MATCH(Mārketinga_vērtību_novirzes[[#Headers],[Dec]],Mārketinga_plāns[#Headers],0))-INDEX(Mārketinga_faktiskās_izmaksas[],MATCH(INDEX(Mārketinga_vērtību_novirzes[],ROW()-ROW(Mārketinga_vērtību_novirzes[[#Headers],[Dec]]),1),INDEX(Mārketinga_plāns[],,1),0),MATCH(Mārketinga_vērtību_novirzes[[#Headers],[Dec]],Mārketinga_faktiskās_izmaksas[#Headers],0)) -> 5,000.00 EUR | O26: =SUM(Mārketinga_vērtību_novirzes[[#This Row],[Jan]:[Dec]]) -> 18,300.00 EUR
B27: Dažādi izdevumi | C27: =INDEX(Mārketinga_plāns[],MATCH(INDEX(Mārketinga_vērtību_novirzes[],ROW()-ROW(Mārketinga_vērtību_novirzes[[#Headers],[Jan]]),1),INDEX(Mārketinga_plāns[],,1),0),MATCH(Mārketinga_vērtību_novirzes[[#Headers],[Jan]],Mārketinga_plāns[#Headers],0))-INDEX(Mārketinga_faktiskās_izmaksas[],MATCH(INDEX(Mārketinga_vērtību_novirzes[],ROW()-ROW(Mārketinga_vērtību_novirzes[[#Headers],[Jan]]),1),INDEX(Mārketinga_plāns[],,1),0),MATCH(Mārketinga_vērtību_novirzes[[#Headers],[Jan]],Mārketinga_faktiskās_izmaksas[#Headers],0)) -> 55.00 EUR | D27: =INDEX(Mārketinga_plāns[],MATCH(INDEX(Mārketinga_vērtību_novirzes[],ROW()-ROW(Mārketinga_vērtību_novirzes[[#Headers],[Feb]]),1),INDEX(Mārketinga_plāns[],,1),0),MATCH(Mārketinga_vērtību_novirzes[[#Headers],[Feb]],Mārketinga_plāns[#Headers],0))-INDEX(Mārketinga_faktiskās_izmaksas[],MATCH(INDEX(Mārketinga_vērtību_novirzes[],ROW()-ROW(Mārketinga_vērtību_novirzes[[#Headers],[Feb]]),1),INDEX(Mārketinga_plāns[],,1),0),MATCH(Mārketinga_vērtību_novirzes[[#Headers],[Feb]],Mārketinga_faktiskās_izmaksas[#Headers],0)) -> 44.00 EUR | E27: =INDEX(Mārketinga_plāns[],MATCH(INDEX(Mārketinga_vērtību_novirzes[],ROW()-ROW(Mārketinga_vērtību_novirzes[[#Headers],[Mar]]),1),INDEX(Mārketinga_plāns[],,1),0),MATCH(Mārketinga_vērtību_novirzes[[#Headers],[Mar]],Mārketinga_plāns[#Headers],0))-INDEX(Mārketinga_faktiskās_izmaksas[],MATCH(INDEX(Mārketinga_vērtību_novirzes[],ROW()-ROW(Mārketinga_vērtību_novirzes[[#Headers],[Mar]]),1),INDEX(Mārketinga_plāns[],,1),0),MATCH(Mārketinga_vērtību_novirzes[[#Headers],[Mar]],Mārketinga_faktiskās_izmaksas[#Headers],0)) -> 77.00 EUR | F27: =INDEX(Mārketinga_plāns[],MATCH(INDEX(Mārketinga_vērtību_novirzes[],ROW()-ROW(Mārketinga_vērtību_novirzes[[#Headers],[Apr]]),1),INDEX(Mārketinga_plāns[],,1),0),MATCH(Mārketinga_vērtību_novirzes[[#Headers],[Apr]],Mārketinga_plāns[#Headers],0))-INDEX(Mārketinga_faktiskās_izmaksas[],MATCH(INDEX(Mārketinga_vērtību_novirzes[],ROW()-ROW(Mārketinga_vērtību_novirzes[[#Headers],[Apr]]),1),INDEX(Mārketinga_plāns[],,1),0),MATCH(Mārketinga_vērtību_novirzes[[#Headers],[Apr]],Mārketinga_faktiskās_izmaksas[#Headers],0)) -> -23.00 EUR | G27: =INDEX(Mārketinga_plāns[],MATCH(INDEX(Mārketinga_vērtību_novirzes[],ROW()-ROW(Mārketinga_vērtību_novirzes[[#Headers],[Maijs]]),1),INDEX(Mārketinga_plāns[],,1),0),MATCH(Mārketinga_vērtību_novirzes[[#Headers],[Maijs]],Mārketinga_plāns[#Headers],0))-INDEX(Mārketinga_faktiskās_izmaksas[],MATCH(INDEX(Mārketinga_vērtību_novirzes[],ROW()-ROW(Mārketinga_vērtību_novirzes[[#Headers],[Maijs]]),1),INDEX(Mārketinga_plāns[],,1),0),MATCH(Mārketinga_vērtību_novirzes[[#Headers],[Maijs]],Mārketinga_faktiskās_izmaksas[#Headers],0)) -> 13.00 EUR | H27: =INDEX(Mārketinga_plāns[],MATCH(INDEX(Mārketinga_vērtību_novirzes[],ROW()-ROW(Mārketinga_vērtību_novirzes[[#Headers],[Jūn]]),1),INDEX(Mārketinga_plāns[],,1),0),MATCH(Mārketinga_vērtību_novirzes[[#Headers],[Jūn]],Mārketinga_plāns[#Headers],0))-INDEX(Mārketinga_faktiskās_izmaksas[],MATCH(INDEX(Mārketinga_vērtību_novirzes[],ROW()-ROW(Mārketinga_vērtību_novirzes[[#Headers],[Jūn]]),1),INDEX(Mārketinga_plāns[],,1),0),MATCH(Mārketinga_vērtību_novirzes[[#Headers],[Jūn]],Mārketinga_faktiskās_izmaksas[#Headers],0)) -> -45.00 EUR | I27: =INDEX(Mārketinga_plāns[],MATCH(INDEX(Mārketinga_vērtību_novirzes[],ROW()-ROW(Mārketinga_vērtību_novirzes[[#Headers],[Jūl]]),1),INDEX(Mārketinga_plāns[],,1),0),MATCH(Mārketinga_vērtību_novirzes[[#Headers],[Jūl]],Mārketinga_plāns[#Headers],0))-INDEX(Mārketinga_faktiskās_izmaksas[],MATCH(INDEX(Mārketinga_vērtību_novirzes[],ROW()-ROW(Mārketinga_vērtību_novirzes[[#Headers],[Jūl]]),1),INDEX(Mārketinga_plāns[],,1),0),MATCH(Mārketinga_vērtību_novirzes[[#Headers],[Jūl]],Mārketinga_faktiskās_izmaksas[#Headers],0)) -> 200.00 EUR | J27: =INDEX(Mārketinga_plāns[],MATCH(INDEX(Mārketinga_vērtību_novirzes[],ROW()-ROW(Mārketinga_vērtību_novirzes[[#Headers],[Aug]]),1),INDEX(Mārketinga_plāns[],,1),0),MATCH(Mārketinga_vērtību_novirzes[[#Headers],[Aug]],Mārketinga_plāns[#Headers],0))-INDEX(Mārketinga_faktiskās_izmaksas[],MATCH(INDEX(Mārketinga_vērtību_novirzes[],ROW()-ROW(Mārketinga_vērtību_novirzes[[#Headers],[Aug]]),1),INDEX(Mārketinga_plāns[],,1),0),MATCH(Mārketinga_vērtību_novirzes[[#Headers],[Aug]],Mārketinga_faktiskās_izmaksas[#Headers],0)) -> 200.00 EUR | K27: =INDEX(Mārketinga_plāns[],MATCH(INDEX(Mārketinga_vērtību_novirzes[],ROW()-ROW(Mārketinga_vērtību_novirzes[[#Headers],[Sep]]),1),INDEX(Mārketinga_plāns[],,1),0),MATCH(Mārketinga_vērtību_novirzes[[#Headers],[Sep]],Mārketinga_plāns[#Headers],0))-INDEX(Mārketinga_faktiskās_izmaksas[],MATCH(INDEX(Mārketinga_vērtību_novirzes[],ROW()-ROW(Mārketinga_vērtību_novirzes[[#Headers],[Sep]]),1),INDEX(Mārketinga_plāns[],,1),0),MATCH(Mārketinga_vērtību_novirzes[[#Headers],[Sep]],Mārketinga_faktiskās_izmaksas[#Headers],0)) -> 200.00 EUR | L27: =INDEX(Mārketinga_plāns[],MATCH(INDEX(Mārketinga_vērtību_novirzes[],ROW()-ROW(Mārketinga_vērtību_novirzes[[#Headers],[Okt]]),1),INDEX(Mārketinga_plāns[],,1),0),MATCH(Mārketinga_vērtību_novirzes[[#Headers],[Okt]],Mārketinga_plāns[#Headers],0))-INDEX(Mārketinga_faktiskās_izmaksas[],MATCH(INDEX(Mārketinga_vērtību_novirzes[],ROW()-ROW(Mārketinga_vērtību_novirzes[[#Headers],[Okt]]),1),INDEX(Mārketinga_plāns[],,1),0),MATCH(Mārketinga_vērtību_novirzes[[#Headers],[Okt]],Mārketinga_faktiskās_izmaksas[#Headers],0)) -> 200.00 EUR | M27: =INDEX(Mārketinga_plāns[],MATCH(INDEX(Mārketinga_vērtību_novirzes[],ROW()-ROW(Mārketinga_vērtību_novirzes[[#Headers],[Nov]]),1),INDEX(Mārketinga_plāns[],,1),0),MATCH(Mārketinga_vērtību_novirzes[[#Headers],[Nov]],Mārketinga_plāns[#Headers],0))-INDEX(Mārketinga_faktiskās_izmaksas[],MATCH(INDEX(Mārketinga_vērtību_novirzes[],ROW()-ROW(Mārketinga_vērtību_novirzes[[#Headers],[Nov]]),1),INDEX(Mārketinga_plāns[],,1),0),MATCH(Mārketinga_vērtību_novirzes[[#Headers],[Nov]],Mārketinga_faktiskās_izmaksas[#Headers],0)) -> 200.00 EUR | N27: =INDEX(Mārketinga_plāns[],MATCH(INDEX(Mārketinga_vērtību_novirzes[],ROW()-ROW(Mārketinga_vērtību_novirzes[[#Headers],[Dec]]),1),INDEX(Mārketinga_plāns[],,1),0),MATCH(Mārketinga_vērtību_novirzes[[#Headers],[Dec]],Mārketinga_plāns[#Headers],0))-INDEX(Mārketinga_faktiskās_izmaksas[],MATCH(INDEX(Mārketinga_vērtību_novirzes[],ROW()-ROW(Mārketinga_vērtību_novirzes[[#Headers],[Dec]]),1),INDEX(Mārketinga_plāns[],,1),0),MATCH(Mārketinga_vērtību_novirzes[[#Headers],[Dec]],Mārketinga_faktiskās_izmaksas[#Headers],0)) -> 200.00 EUR | O27: =SUM(Mārketinga_vērtību_novirzes[[#This Row],[Jan]:[Dec]]) -> 1,321.00 EUR
B28: Starpsumma | C28: =SUBTOTAL(109,Mārketinga_vērtību_novirzes[Jan]) -> 555.00 EUR | D28: =SUBTOTAL(109,Mārketinga_vērtību_novirzes[Feb]) -> -456.00 EUR | E28: =SUBTOTAL(109,Mārketinga_vērtību_novirzes[Mar]) -> -23.00 EUR | F28: =SUBTOTAL(109,Mārketinga_vērtību_novirzes[Apr]) -> -123.00 EUR | G28: =SUBTOTAL(109,Mārketinga_vērtību_novirzes[Maijs]) -> 113.00 EUR | H28: =SUBTOTAL(109,Mārketinga_vērtību_novirzes[Jūn]) -> -825.00 EUR | I28: =SUBTOTAL(109,Mārketinga_vērtību_novirzes[Jūl]) -> 8,100.00 EUR | J28: =SUBTOTAL(109,Mārketinga_vērtību_novirzes[Aug]) -> 6,100.00 EUR | K28: =SUBTOTAL(109,Mārketinga_vērtību_novirzes[Sep]) -> 3,100.00 EUR | L28: =SUBTOTAL(109,Mārketinga_vērtību_novirzes[Okt]) -> 8,100.00 EUR | M28: =SUBTOTAL(109,Mārketinga_vērtību_novirzes[Nov]) -> 3,100.00 EUR | N28: =SUBTOTAL(109,Mārketinga_vērtību_novirzes[Dec]) -> 6,900.00 EUR | O28: =SUBTOTAL(109,Mārketinga_vērtību_novirzes[GADS]) -> 34,641.00 EUR
A30: Apmācību vai komandējumu izmaksas novirze tiek automātiski aprēķināta tabulā Apmācību vai komandējumu vērtību novirzes, sākot ar šūnu pa labi. Nākamais norādījums ir šūnā A35. | B30: Apmācības/komandējumi | C30: Jan | D30: Feb | E30: Mar | F30: Apr | G30: Maijs | H30: Jūn | I30: Jūl | J30: Aug | K30: Sep | L30: Okt | M30: Nov | N30: Dec | O30: GADS
B31: Apmācību nodarbības | C31: =INDEX(Apmācību_un_komandējumu_plāns[],MATCH(INDEX(Apmācību_un_komandējumu_vērtību_novirzes[],ROW()-ROW(Apmācību_un_komandējumu_vērtību_novirzes[[#Headers],[Jan]]),1),INDEX(Apmācību_un_komandējumu_plāns[],,1),0),MATCH(Apmācību_un_komandējumu_vērtību_novirzes[[#Headers],[Jan]],Apmācību_un_komandējumu_plāns[#Headers],0))-INDEX(Apmācību_un_komandējumu_faktiskās_izmaksas[],MATCH(INDEX(Apmācību_un_komandējumu_vērtību_novirzes[],ROW()-ROW(Apmācību_un_komandējumu_vērtību_novirzes[[#Headers],[Jan]]),1),INDEX(Apmācību_un_komandējumu_plāns[],,1),0),MATCH(Apmācību_un_komandējumu_vērtību_novirzes[[#Headers],[Jan]],Apmācību_un_komandējumu_faktiskās_izmaksas[#Headers],0)) -> 400.00 EUR | D31: =INDEX(Apmācību_un_komandējumu_plāns[],MATCH(INDEX(Apmācību_un_komandējumu_vērtību_novirzes[],ROW()-ROW(Apmācību_un_komandējumu_vērtību_novirzes[[#Headers],[Feb]]),1),INDEX(Apmācību_un_komandējumu_plāns[],,1),0),MATCH(Apmācību_un_komandējumu_vērtību_novirzes[[#Headers],[Feb]],Apmācību_un_komandējumu_plāns[#Headers],0))-INDEX(Apmācību_un_komandējumu_faktiskās_izmaksas[],MATCH(INDEX(Apmācību_un_komandējumu_vērtību_novirzes[],ROW()-ROW(Apmācību_un_komandējumu_vērtību_novirzes[[#Headers],[Feb]]),1),INDEX(Apmācību_un_komandējumu_plāns[],,1),0),MATCH(Apmācību_un_komandējumu_vērtību_novirzes[[#Headers],[Feb]],Apmācību_un_komandējumu_faktiskās_izmaksas[#Headers],0)) -> -400.00 EUR | E31: =INDEX(Apmācību_un_komandējumu_plāns[],MATCH(INDEX(Apmācību_un_komandējumu_vērtību_novirzes[],ROW()-ROW(Apmācību_un_komandējumu_vērtību_novirzes[[#Headers],[Mar]]),1),INDEX(Apmācību_un_komandējumu_plāns[],,1),0),MATCH(Apmācību_un_komandējumu_vērtību_novirzes[[#Headers],[Mar]],Apmācību_un_komandējumu_plāns[#Headers],0))-INDEX(Apmācību_un_komandējumu_faktiskās_izmaksas[],MATCH(INDEX(Apmācību_un_komandējumu_vērtību_novirzes[],ROW()-ROW(Apmācību_un_komandējumu_vērtību_novirzes[[#Headers],[Mar]]),1),INDEX(Apmācību_un_komandējumu_plāns[],,1),0),MATCH(Apmācību_un_komandējumu_vērtību_novirzes[[#Headers],[Mar]],Apmācību_un_komandējumu_faktiskās_izmaksas[#Headers],0)) -> 600.00 EUR | F31: =INDEX(Apmācību_un_komandējumu_plāns[],MATCH(INDEX(Apmācību_un_komandējumu_vērtību_novirzes[],ROW()-ROW(Apmācību_un_komandējumu_vērtību_novirzes[[#Headers],[Apr]]),1),INDEX(Apmācību_un_komandējumu_plāns[],,1),0),MATCH(Apmācību_un_komandējumu_vērtību_novirzes[[#Headers],[Apr]],Apmācību_un_komandējumu_plāns[#Headers],0))-INDEX(Apmācību_un_komandējumu_faktiskās_izmaksas[],MATCH(INDEX(Apmācību_un_komandējumu_vērtību_novirzes[],ROW()-ROW(Apmācību_un_komandējumu_vērtību_novirzes[[#Headers],[Apr]]),1),INDEX(Apmācību_un_komandējumu_plāns[],,1),0),MATCH(Apmācību_un_komandējumu_vērtību_novirzes[[#Headers],[Apr]],Apmācību_un_komandējumu_faktiskās_izmaksas[#Headers],0)) -> 400.00 EUR | G31: =INDEX(Apmācību_un_komandējumu_plāns[],MATCH(INDEX(Apmācību_un_komandējumu_vērtību_novirzes[],ROW()-ROW(Apmācību_un_komandējumu_vērtību_novirzes[[#Headers],[Maijs]]),1),INDEX(Apmācību_un_komandējumu_plāns[],,1),0),MATCH(Apmācību_un_komandējumu_vērtību_novirzes[[#Headers],[Maijs]],Apmācību_un_komandējumu_plāns[#Headers],0))-INDEX(Apmācību_un_komandējumu_faktiskās_izmaksas[],MATCH(INDEX(Apmācību_un_komandējumu_vērtību_novirzes[],ROW()-ROW(Apmācību_un_komandējumu_vērtību_novirzes[[#Headers],[Maijs]]),1),INDEX(Apmācību_un_komandējumu_plāns[],,1),0),MATCH(Apmācību_un_komandējumu_vērtību_novirzes[[#Headers],[Maijs]],Apmācību_un_komandējumu_faktiskās_izmaksas[#Headers],0)) -> 800.00 EUR | H31: =INDEX(Apmācību_un_komandējumu_plāns[],MATCH(INDEX(Apmācību_un_komandējumu_vērtību_novirzes[],ROW()-ROW(Apmācību_un_komandējumu_vērtību_novirzes[[#Headers],[Jūn]]),1),INDEX(Apmācību_un_komandējumu_plāns[],,1),0),MATCH(Apmācību_un_komandējumu_vērtību_novirzes[[#Headers],[Jūn]],Apmācību_un_komandējumu_plāns[#Headers],0))-INDEX(Apmācību_un_komandējumu_faktiskās_izmaksas[],MATCH(INDEX(Apmācību_un_komandējumu_vērtību_novirzes[],ROW()-ROW(Apmācību_un_komandējumu_vērtību_novirzes[[#Headers],[Jūn]]),1),INDEX(Apmācību_un_komandējumu_plāns[],,1),0),MATCH(Apmācību_un_komandējumu_vērtību_novirzes[[#Headers],[Jūn]],Apmācību_un_komandējumu_faktiskās_izmaksas[#Headers],0)) -> -800.00 EUR | I31: =INDEX(Apmācību_un_komandējumu_plāns[],MATCH(INDEX(Apmācību_un_komandējumu_vērtību_novirzes[],ROW()-ROW(Apmācību_un_komandējumu_vērtību_novirzes[[#Headers],[Jūl]]),1),INDEX(Apmācību_un_komandējumu_plāns[],,1),0),MATCH(Apmācību_un_komandējumu_vērtību_novirzes[[#Headers],[Jūl]],Apmācību_un_komandējumu_plāns[#Headers],0))-INDEX(Apmācību_un_komandējumu_faktiskās_izmaksas[],MATCH(INDEX(Apmācību_un_komandējumu_vērtību_novirzes[],ROW()-ROW(Apmācību_un_komandējumu_vērtību_novirzes[[#Headers],[Jūl]]),1),INDEX(Apmācību_un_komandējumu_plāns[],,1),0),MATCH(Apmācību_un_komandējumu_vērtību_novirzes[[#Headers],[Jūl]],Apmācību_un_komandējumu_faktiskās_izmaksas[#Headers],0)) -> 2,000.00 EUR | J31: =INDEX(Apmācību_un_komandējumu_plāns[],MATCH(INDEX(Apmācību_un_komandējumu_vērtību_novirzes[],ROW()-ROW(Apmācību_un_komandējumu_vērtību_novirzes[[#Headers],[Aug]]),1),INDEX(Apmācību_un_komandējumu_plāns[],,1),0),MATCH(Apmācību_un_komandējumu_vērtību_novirzes[[#Headers],[Aug]],Apmācību_un_komandējumu_plāns[#Headers],0))-INDEX(Apmācību_un_komandējumu_faktiskās_izmaksas[],MATCH(INDEX(Apmācību_un_komandējumu_vērtību_novirzes[],ROW()-ROW(Apmācību_un_komandējumu_vērtību_novirzes[[#Headers],[Aug]]),1),INDEX(Apmācību_un_komandējumu_plāns[],,1),0),MATCH(Apmācību_un_komandējumu_vērtību_novirzes[[#Headers],[Aug]],Apmācību_un_komandējumu_faktiskās_izmaksas[#Headers],0)) -> 2,000.00 EUR | K31: =INDEX(Apmācību_un_komandējumu_plāns[],MATCH(INDEX(Apmācību_un_komandējumu_vērtību_novirzes[],ROW()-ROW(Apmācību_un_komandējumu_vērtību_novirzes[[#Headers],[Sep]]),1),INDEX(Apmācību_un_komandējumu_plāns[],,1),0),MATCH(Apmācību_un_komandējumu_vērtību_novirzes[[#Headers],[Sep]],Apmācību_un_komandējumu_plāns[#Headers],0))-INDEX(Apmācību_un_komandējumu_faktiskās_izmaksas[],MATCH(INDEX(Apmācību_un_komandējumu_vērtību_novirzes[],ROW()-ROW(Apmācību_un_komandējumu_vērtību_novirzes[[#Headers],[Sep]]),1),INDEX(Apmācību_un_komandējumu_plāns[],,1),0),MATCH(Apmācību_un_komandējumu_vērtību_novirzes[[#Headers],[Sep]],Apmācību_un_komandējumu_faktiskās_izmaksas[#Headers],0)) -> 2,000.00 EUR | L31: =INDEX(Apmācību_un_komandējumu_plāns[],MATCH(INDEX(Apmācību_un_komandējumu_vērtību_novirzes[],ROW()-ROW(Apmācību_un_komandējumu_vērtību_novirzes[[#Headers],[Okt]]),1),INDEX(Apmācību_un_komandējumu_plāns[],,1),0),MATCH(Apmācību_un_komandējumu_vērtību_novirzes[[#Headers],[Okt]],Apmācību_un_komandējumu_plāns[#Headers],0))-INDEX(Apmācību_un_komandējumu_faktiskās_izmaksas[],MATCH(INDEX(Apmācību_un_komandējumu_vērtību_novirzes[],ROW()-ROW(Apmācību_un_komandējumu_vērtību_novirzes[[#Headers],[Okt]]),1),INDEX(Apmācību_un_komandējumu_plāns[],,1),0),MATCH(Apmācību_un_komandējumu_vērtību_novirzes[[#Headers],[Okt]],Apmācību_un_komandējumu_faktiskās_izmaksas[#Headers],0)) -> 2,000.00 EUR | M31: =INDEX(Apmācību_un_komandējumu_plāns[],MATCH(INDEX(Apmācību_un_komandējumu_vērtību_novirzes[],ROW()-ROW(Apmācību_un_komandējumu_vērtību_novirzes[[#Headers],[Nov]]),1),INDEX(Apmācību_un_komandējumu_plāns[],,1),0),MATCH(Apmācību_un_komandējumu_vērtību_novirzes[[#Headers],[Nov]],Apmācību_un_komandējumu_plāns[#Headers],0))-INDEX(Apmācību_un_komandējumu_faktiskās_izmaksas[],MATCH(INDEX(Apmācību_un_komandējumu_vērtību_novirzes[],ROW()-ROW(Apmācību_un_komandējumu_vērtību_novirzes[[#Headers],[Nov]]),1),INDEX(Apmācību_un_komandējumu_plāns[],,1),0),MATCH(Apmācību_un_komandējumu_vērtību_novirzes[[#Headers],[Nov]],Apmācību_un_komandējumu_faktiskās_izmaksas[#Headers],0)) -> 2,000.00 EUR | N31: =INDEX(Apmācību_un_komandējumu_plāns[],MATCH(INDEX(Apmācību_un_komandējumu_vērtību_novirzes[],ROW()-ROW(Apmācību_un_komandējumu_vērtību_novirzes[[#Headers],[Dec]]),1),INDEX(Apmācību_un_komandējumu_plāns[],,1),0),MATCH(Apmācību_un_komandējumu_vērtību_novirzes[[#Headers],[Dec]],Apmācību_un_komandējumu_plāns[#Headers],0))-INDEX(Apmācību_un_komandējumu_faktiskās_izmaksas[],MATCH(INDEX(Apmācību_un_komandējumu_vērtību_novirzes[],ROW()-ROW(Apmācību_un_komandējumu_vērtību_novirzes[[#Headers],[Dec]]),1),INDEX(Apmācību_un_komandējumu_plāns[],,1),0),MATCH(Apmācību_un_komandējumu_vērtību_novirzes[[#Headers],[Dec]],Apmācību_un_komandējumu_faktiskās_izmaksas[#Headers],0)) -> 2,000.00 EUR | O31: =SUM(Apmācību_un_komandējumu_vērtību_novirzes[[#This Row],[Jan]:[Dec]]) -> 13,000.00 EUR
B32: Ar apmācībām saistītu komandējumu izmaksas | C32: =INDEX(Apmācību_un_komandējumu_plāns[],MATCH(INDEX(Apmācību_un_komandējumu_vērtību_novirzes[],ROW()-ROW(Apmācību_un_komandējumu_vērtību_novirzes[[#Headers],[Jan]]),1),INDEX(Apmācību_un_komandējumu_plāns[],,1),0),MATCH(Apmācību_un_komandējumu_vērtību_novirzes[[#Headers],[Jan]],Apmācību_un_komandējumu_plāns[#Headers],0))-INDEX(Apmācību_un_komandējumu_faktiskās_izmaksas[],MATCH(INDEX(Apmācību_un_komandējumu_vērtību_novirzes[],ROW()-ROW(Apmācību_un_komandējumu_vērtību_novirzes[[#Headers],[Jan]]),1),INDEX(Apmācību_un_komandējumu_plāns[],,1),0),MATCH(Apmācību_un_komandējumu_vērtību_novirzes[[#Headers],[Jan]],Apmācību_un_komandējumu_faktiskās_izmaksas[#Headers],0)) -> 800.00 EUR | D32: =INDEX(Apmācību_un_komandējumu_plāns[],MATCH(INDEX(Apmācību_un_komandējumu_vērtību_novirzes[],ROW()-ROW(Apmācību_un_komandējumu_vērtību_novirzes[[#Headers],[Feb]]),1),INDEX(Apmācību_un_komandējumu_plāns[],,1),0),MATCH(Apmācību_un_komandējumu_vērtību_novirzes[[#Headers],[Feb]],Apmācību_un_komandējumu_plāns[#Headers],0))-INDEX(Apmācību_un_komandējumu_faktiskās_izmaksas[],MATCH(INDEX(Apmācību_un_komandējumu_vērtību_novirzes[],ROW()-ROW(Apmācību_un_komandējumu_vērtību_novirzes[[#Headers],[Feb]]),1),INDEX(Apmācību_un_komandējumu_plāns[],,1),0),MATCH(Apmācību_un_komandējumu_vērtību_novirzes[[#Headers],[Feb]],Apmācību_un_komandējumu_faktiskās_izmaksas[#Headers],0)) -> -200.00 EUR | E32: =INDEX(Apmācību_un_komandējumu_plāns[],MATCH(INDEX(Apmācību_un_komandējumu_vērtību_novirzes[],ROW()-ROW(Apmācību_un_komandējumu_vērtību_novirzes[[#Headers],[Mar]]),1),INDEX(Apmācību_un_komandējumu_plāns[],,1),0),MATCH(Apmācību_un_komandējumu_vērtību_novirzes[[#Headers],[Mar]],Apmācību_un_komandējumu_plāns[#Headers],0))-INDEX(Apmācību_un_komandējumu_faktiskās_izmaksas[],MATCH(INDEX(Apmācību_un_komandējumu_vērtību_novirzes[],ROW()-ROW(Apmācību_un_komandējumu_vērtību_novirzes[[#Headers],[Mar]]),1),INDEX(Apmācību_un_komandējumu_plāns[],,1),0),MATCH(Apmācību_un_komandējumu_vērtību_novirzes[[#Headers],[Mar]],Apmācību_un_komandējumu_faktiskās_izmaksas[#Headers],0)) -> 600.00 EUR | F32: =INDEX(Apmācību_un_komandējumu_plāns[],MATCH(INDEX(Apmācību_un_komandējumu_vērtību_novirzes[],ROW()-ROW(Apmācību_un_komandējumu_vērtību_novirzes[[#Headers],[Apr]]),1),INDEX(Apmācību_un_komandējumu_plāns[],,1),0),MATCH(Apmācību_un_komandējumu_vērtību_novirzes[[#Headers],[Apr]],Apmācību_un_komandējumu_plāns[#Headers],0))-INDEX(Apmācību_un_komandējumu_faktiskās_izmaksas[],MATCH(INDEX(Apmācību_un_komandējumu_vērtību_novirzes[],ROW()-ROW(Apmācību_un_komandējumu_vērtību_novirzes[[#Headers],[Apr]]),1),INDEX(Apmācību_un_komandējumu_plāns[],,1),0),MATCH(Apmācību_un_komandējumu_vērtību_novirzes[[#Headers],[Apr]],Apmācību_un_komandējumu_faktiskās_izmaksas[#Headers],0)) -> 800.00 EUR | G32: =INDEX(Apmācību_un_komandējumu_plāns[],MATCH(INDEX(Apmācību_un_komandējumu_vērtību_novirzes[],ROW()-ROW(Apmācību_un_komandējumu_vērtību_novirzes[[#Headers],[Maijs]]),1),INDEX(Apmācību_un_komandējumu_plāns[],,1),0),MATCH(Apmācību_un_komandējumu_vērtību_novirzes[[#Headers],[Maijs]],Apmācību_un_komandējumu_plāns[#Headers],0))-INDEX(Apmācību_un_komandējumu_faktiskās_izmaksas[],MATCH(INDEX(Apmācību_un_komandējumu_vērtību_novirzes[],ROW()-ROW(Apmācību_un_komandējumu_vērtību_novirzes[[#Headers],[Maijs]]),1),INDEX(Apmācību_un_komandējumu_plāns[],,1),0),MATCH(Apmācību_un_komandējumu_vērtību_novirzes[[#Headers],[Maijs]],Apmācību_un_komandējumu_faktiskās_izmaksas[#Headers],0)) -> 1,200.00 EUR | H32: =INDEX(Apmācību_un_komandējumu_plāns[],MATCH(INDEX(Apmācību_un_komandējumu_vērtību_novirzes[],ROW()-ROW(Apmācību_un_komandējumu_vērtību_novirzes[[#Headers],[Jūn]]),1),INDEX(Apmācību_un_komandējumu_plāns[],,1),0),MATCH(Apmācību_un_komandējumu_vērtību_novirzes[[#Headers],[Jūn]],Apmācību_un_komandējumu_plāns[#Headers],0))-INDEX(Apmācību_un_komandējumu_faktiskās_izmaksas[],MATCH(INDEX(Apmācību_un_komandējumu_vērtību_novirzes[],ROW()-ROW(Apmācību_un_komandējumu_vērtību_novirzes[[#Headers],[Jūn]]),1),INDEX(Apmācību_un_komandējumu_plāns[],,1),0),MATCH(Apmācību_un_komandējumu_vērtību_novirzes[[#Headers],[Jūn]],Apmācību_un_komandējumu_faktiskās_izmaksas[#Headers],0)) -> -1,500.00 EUR | I32: =INDEX(Apmācību_un_komandējumu_plāns[],MATCH(INDEX(Apmācību_un_komandējumu_vērtību_novirzes[],ROW()-ROW(Apmācību_un_komandējumu_vērtību_novirzes[[#Headers],[Jūl]]),1),INDEX(Apmācību_un_komandējumu_plāns[],,1),0),MATCH(Apmācību_un_komandējumu_vērtību_novirzes[[#Headers],[Jūl]],Apmācību_un_komandējumu_plāns[#Headers],0))-INDEX(Apmācību_un_komandējumu_faktiskās_izmaksas[],MATCH(INDEX(Apmācību_un_komandējumu_vērtību_novirzes[],ROW()-ROW(Apmācību_un_komandējumu_vērtību_novirzes[[#Headers],[Jūl]]),1),INDEX(Apmācību_un_komandējumu_plāns[],,1),0),MATCH(Apmācību_un_komandējumu_vērtību_novirzes[[#Headers],[Jūl]],Apmācību_un_komandējumu_faktiskās_izmaksas[#Headers],0)) -> 2,000.00 EUR | J32: =INDEX(Apmācību_un_komandējumu_plāns[],MATCH(INDEX(Apmācību_un_komandējumu_vērtību_novirzes[],ROW()-ROW(Apmācību_un_komandējumu_vērtību_novirzes[[#Headers],[Aug]]),1),INDEX(Apmācību_un_komandējumu_plāns[],,1),0),MATCH(Apmācību_un_komandējumu_vērtību_novirzes[[#Headers],[Aug]],Apmācību_un_komandējumu_plāns[#Headers],0))-INDEX(Apmācību_un_komandējumu_faktiskās_izmaksas[],MATCH(INDEX(Apmācību_un_komandējumu_vērtību_novirzes[],ROW()-ROW(Apmācību_un_komandējumu_vērtību_novirzes[[#Headers],[Aug]]),1),INDEX(Apmācību_un_komandējumu_plāns[],,1),0),MATCH(Apmācību_un_komandējumu_vērtību_novirzes[[#Headers],[Aug]],Apmācību_un_komandējumu_faktiskās_izmaksas[#Headers],0)) -> 2,000.00 EUR | K32: =INDEX(Apmācību_un_komandējumu_plāns[],MATCH(INDEX(Apmācību_un_komandējumu_vērtību_novirzes[],ROW()-ROW(Apmācību_un_komandējumu_vērtību_novirzes[[#Headers],[Sep]]),1),INDEX(Apmācību_un_komandējumu_plāns[],,1),0),MATCH(Apmācību_un_komandējumu_vērtību_novirzes[[#Headers],[Sep]],Apmācību_un_komandējumu_plāns[#Headers],0))-INDEX(Apmācību_un_komandējumu_faktiskās_izmaksas[],MATCH(INDEX(Apmācību_un_komandējumu_vērtību_novirzes[],ROW()-ROW(Apmācību_un_komandējumu_vērtību_novirzes[[#Headers],[Sep]]),1),INDEX(Apmācību_un_komandējumu_plāns[],,1),0),MATCH(Apmācību_un_komandējumu_vērtību_novirzes[[#Headers],[Sep]],Apmācību_un_komandējumu_faktiskās_izmaksas[#Headers],0)) -> 2,000.00 EUR | L32: =INDEX(Apmācību_un_komandējumu_plāns[],MATCH(INDEX(Apmācību_un_komandējumu_vērtību_novirzes[],ROW()-ROW(Apmācību_un_komandējumu_vērtību_novirzes[[#Headers],[Okt]]),1),INDEX(Apmācību_un_komandējumu_plāns[],,1),0),MATCH(Apmācību_un_komandējumu_vērtību_novirzes[[#Headers],[Okt]],Apmācību_un_komandējumu_plāns[#Headers],0))-INDEX(Apmācību_un_komandējumu_faktiskās_izmaksas[],MATCH(INDEX(Apmācību_un_komandējumu_vērtību_novirzes[],ROW()-ROW(Apmācību_un_komandējumu_vērtību_novirzes[[#Headers],[Okt]]),1),INDEX(Apmācību_un_komandējumu_plāns[],,1),0),MATCH(Apmācību_un_komandējumu_vērtību_novirzes[[#Headers],[Okt]],Apmācību_un_komandējumu_faktiskās_izmaksas[#Headers],0)) -> 2,000.00 EUR | M32: =INDEX(Apmācību_un_komandējumu_plāns[],MATCH(INDEX(Apmācību_un_komandējumu_vērtību_novirzes[],ROW()-ROW(Apmācību_un_komandējumu_vērtību_novirzes[[#Headers],[Nov]]),1),INDEX(Apmācību_un_komandējumu_plāns[],,1),0),MATCH(Apmācību_un_komandējumu_vērtību_novirzes[[#Headers],[Nov]],Apmācību_un_komandējumu_plāns[#Headers],0))-INDEX(Apmācību_un_komandējumu_faktiskās_izmaksas[],MATCH(INDEX(Apmācību_un_komandējumu_vērtību_novirzes[],ROW()-ROW(Apmācību_un_komandējumu_vērtību_novirzes[[#Headers],[Nov]]),1),INDEX(Apmācību_un_komandējumu_plāns[],,1),0),MATCH(Apmācību_un_komandējumu_vērtību_novirzes[[#Headers],[Nov]],Apmācību_un_komandējumu_faktiskās_izmaksas[#Headers],0)) -> 2,000.00 EUR | N32: =INDEX(Apmācību_un_komandējumu_plāns[],MATCH(INDEX(Apmācību_un_komandējumu_vērtību_novirzes[],ROW()-ROW(Apmācību_un_komandējumu_vērtību_novirzes[[#Headers],[Dec]]),1),INDEX(Apmācību_un_komandējumu_plāns[],,1),0),MATCH(Apmācību_un_komandējumu_vērtību_novirzes[[#Headers],[Dec]],Apmācību_un_komandējumu_plāns[#Headers],0))-INDEX(Apmācību_un_komandējumu_faktiskās_izmaksas[],MATCH(INDEX(Apmācību_un_komandējumu_vērtību_novirzes[],ROW()-ROW(Apmācību_un_komandējumu_vērtību_novirzes[[#Headers],[Dec]]),1),INDEX(Apmācību_un_komandējumu_plāns[],,1),0),MATCH(Apmācību_un_komandējumu_vērtību_novirzes[[#Headers],[Dec]],Apmācību_un_komandējumu_faktiskās_izmaksas[#Headers],0)) -> 2,000.00 EUR | O32: =SUM(Apmācību_un_komandējumu_vērtību_novirzes[[#This Row],[Jan]:[Dec]]) -> 13,700.00 EUR
B33: Starpsumma | C33: =SUBTOTAL(109,Apmācību_un_komandējumu_vērtību_novirzes[Jan]) -> 1,200.00 EUR | D33: =SUBTOTAL(109,Apmācību_un_komandējumu_vērtību_novirzes[Feb]) -> -600.00 EUR | E33: =SUBTOTAL(109,Apmācību_un_komandējumu_vērtību_novirzes[Mar]) -> 1,200.00 EUR | F33: =SUBTOTAL(109,Apmācību_un_komandējumu_vērtību_novirzes[Apr]) -> 1,200.00 EUR | G33: =SUBTOTAL(109,Apmācību_un_komandējumu_vērtību_novirzes[Maijs]) -> 2,000.00 EUR | H33: =SUBTOTAL(109,Apmācību_un_komandējumu_vērtību_novirzes[Jūn]) -> -2,300.00 EUR | I33: =SUBTOTAL(109,Apmācību_un_komandējumu_vērtību_novirzes[Jūl]) -> 4,000.00 EUR | J33: =SUBTOTAL(109,Apmācību_un_komandējumu_vērtību_novirzes[Aug]) -> 4,000.00 EUR | K33: =SUBTOTAL(109,Apmācību_un_komandējumu_vērtību_novirzes[Sep]) -> 4,000.00 EUR | L33: =SUBTOTAL(109,Apmācību_un_komandējumu_vērtību_novirzes[Okt]) -> 4,000.00 EUR | M33: =SUBTOTAL(109,Apmācību_un_komandējumu_vērtību_novirzes[Nov]) -> 4,000.00 EUR | N33: =SUBTOTAL(109,Apmācību_un_komandējumu_vērtību_novirzes[Dec]) -> 4,000.00 EUR | O33: =SUBTOTAL(109,Apmācību_un_komandējumu_vērtību_novirzes[GADS]) -> 26,700.00 EUR
A35: Izdevumu novirzes tiek automātiski aprēķinātas tabulā Kopējā novirze, sākot ar šūnu pa labi. | B35: KOPSUMMAS | C35: Jan | D35: Feb | E35: Mar | F35: Apr | G35: Maijs | H35: Jūn | I35: Jūl | J35: Aug | K35: Sep | L35: Okt | M35: Nov | N35: Dec | O35: Gads
B36: Mēneša faktiskie izdevumi | C36: =Apmācību_un_komandējumu_vērtību_novirzes[[#Totals],[Jan]]+Mārketinga_vērtību_novirzes[[#Totals],[Jan]]+Biroja_vērtību_novirzes[[#Totals],[Jan]]+Darbinieku_vērtību_novirzes[[#Totals],[Jan]] -> 1,738.00 EUR | D36: =Apmācību_un_komandējumu_vērtību_novirzes[[#Totals],[Feb]]+Mārketinga_vērtību_novirzes[[#Totals],[Feb]]+Biroja_vērtību_novirzes[[#Totals],[Feb]]+Darbinieku_vērtību_novirzes[[#Totals],[Feb]] -> -984.00 EUR | E36: =Apmācību_un_komandējumu_vērtību_novirzes[[#Totals],[Mar]]+Mārketinga_vērtību_novirzes[[#Totals],[Mar]]+Biroja_vērtību_novirzes[[#Totals],[Mar]]+Darbinieku_vērtību_novirzes[[#Totals],[Mar]] -> 1,255.00 EUR | F36: =Apmācību_un_komandējumu_vērtību_novirzes[[#Totals],[Apr]]+Mārketinga_vērtību_novirzes[[#Totals],[Apr]]+Biroja_vērtību_novirzes[[#Totals],[Apr]]+Darbinieku_vērtību_novirzes[[#Totals],[Apr]] -> 301.00 EUR | G36: =Apmācību_un_komandējumu_vērtību_novirzes[[#Totals],[Maijs]]+Mārketinga_vērtību_novirzes[[#Totals],[Maijs]]+Biroja_vērtību_novirzes[[#Totals],[Maijs]]+Darbinieku_vērtību_novirzes[[#Totals],[Maijs]] -> 1,440.00 EUR | H36: =Apmācību_un_komandējumu_vērtību_novirzes[[#Totals],[Jūn]]+Mārketinga_vērtību_novirzes[[#Totals],[Jūn]]+Biroja_vērtību_novirzes[[#Totals],[Jūn]]+Darbinieku_vērtību_novirzes[[#Totals],[Jūn]] -> -3,744.00 EUR | I36: =Apmācību_un_komandējumu_vērtību_novirzes[[#Totals],[Jūl]]+Mārketinga_vērtību_novirzes[[#Totals],[Jūl]]+Biroja_vērtību_novirzes[[#Totals],[Jūl]]+Darbinieku_vērtību_novirzes[[#Totals],[Jūl]] -> 134,695.00 EUR | J36: =Apmācību_un_komandējumu_vērtību_novirzes[[#Totals],[Aug]]+Mārketinga_vērtību_novirzes[[#Totals],[Aug]]+Biroja_vērtību_novirzes[[#Totals],[Aug]]+Darbinieku_vērtību_novirzes[[#Totals],[Aug]] -> 138,918.00 EUR | K36: =Apmācību_un_komandējumu_vērtību_novirzes[[#Totals],[Sep]]+Mārketinga_vērtību_novirzes[[#Totals],[Sep]]+Biroja_vērtību_novirzes[[#Totals],[Sep]]+Darbinieku_vērtību_novirzes[[#Totals],[Sep]] -> 135,918.00 EUR | L36: =Apmācību_un_komandējumu_vērtību_novirzes[[#Totals],[Okt]]+Mārketinga_vērtību_novirzes[[#Totals],[Okt]]+Biroja_vērtību_novirzes[[#Totals],[Okt]]+Darbinieku_vērtību_novirzes[[#Totals],[Okt]] -> 140,918.00 EUR | M36: =Apmācību_un_komandējumu_vērtību_novirzes[[#Totals],[Nov]]+Mārketinga_vērtību_novirzes[[#Totals],[Nov]]+Biroja_vērtību_novirzes[[#Totals],[Nov]]+Darbinieku_vērtību_novirzes[[#Totals],[Nov]] -> 136,218.00 EUR | N36: =Apmācību_un_komandējumu_vērtību_novirzes[[#Totals],[Dec]]+Mārketinga_vērtību_novirzes[[#Totals],[Dec]]+Biroja_vērtību_novirzes[[#Totals],[Dec]]+Darbinieku_vērtību_novirzes[[#Totals],[Dec]] -> 140,018.00 EUR | O36: =Apmācību_un_komandējumu_vērtību_novirzes[[#Totals],[GADS]]+Mārketinga_vērtību_novirzes[[#Totals],[GADS]]+Biroja_vērtību_novirzes[[#Totals],[GADS]]+Darbinieku_vērtību_novirzes[[#Totals],[GADS]] -> 826,691.00 EUR
B37: KOPĒJIE faktiskie izdevumi | C37: =SUM($C$36:C36) -> 1,738.00 EUR | D37: =SUM($C$36:D36) -> 754.00 EUR | E37: =SUM($C$36:E36) -> 2,009.00 EUR | F37: =SUM($C$36:F36) -> 2,310.00 EUR | G37: =SUM($C$36:G36) -> 3,750.00 EUR | H37: =SUM($C$36:H36) -> 6.00 EUR | I37: =SUM($C$36:I36) -> 134,701.00 EUR | J37: =SUM($C$36:J36) -> 273,619.00 EUR | K37: =SUM($C$36:K36) -> 409,537.00 EUR | L37: =SUM($C$36:L36) -> 550,455.00 EUR | M37: =SUM($C$36:M36) -> 686,673.00 EUR | N37: =SUM($C$36:N36) -> 826,691.00 EUR

Sheet IZDEVUMU ANALĪZE
A1: Gada plānotās izmaksas un faktiskie izdevumi, izdevumu novirzes un novirzes procentuālā attiecība tiek automātiski atjaunināta katrai izdevumu kategorija šajā darblapā. Noderīgi norādījumi par to, kā lietot šo darblapu, ir šīs kolonnas šūnās. Bultiņa uz leju, lai sāktu darbu.
A2: Šūnā pa labi tiek automātiski atjaunināts uzņēmuma nosaukumu. Ievadiet logotipu šūnā F2. | B2: ='PLĀNOTIE IZDEVUMI'!B2:D3 -> Uzņēmuma nosaukumu | F2: Logotipa vietturis ir šajā šūnā.
A3: Šūnā E3 ir šīs darblapas nosaukums. Nākamais norādījums ir šūnā A5. | E3: =darblapas_nosaukums -> Detalizēti izdevumu aprēķini
A5: Plānotie izdevumi, faktiskie izdevumi, izdevumu novirzes un novirzes procentuālā attiecība tiek automātiski aprēķināta tabulā Analīze, sākot ar šūnu pa labi. Nākamais norādījums ir šūnā A12. | B5: Izdevumu kategorija | C5: Plānotie izdevumi | D5: Faktiskie izdevumi | E5: Izdevumu novirzes | F5: Novirzes procentuālā attiecība
B6: Darbinieku izmaksas | C6: =Darbinieku_plāns[[#Totals],[GADS]] -> 1,355,090.00 EUR | D6: =Darbinieku_faktiskās_izmaksas[[#Totals],[GADS]] -> 659,130.00 EUR | E6: =C6-D6 -> 695,960.00 EUR | F6: =E6/C6 -> 51%
B7: ='PLĀNOTIE IZDEVUMI'!B10 -> Biroja izmaksas | C7: =Biroja_plāns[[#Totals],[GADS]] -> 138,740.00 EUR | D7: =Biroja_faktiskās_izmaksas[[#Totals],[GADS]] -> 69,350.00 EUR | E7: =C7-D7 -> 69,390.00 EUR | F7: =E7/C7 -> 50%
B8: ='PLĀNOTIE IZDEVUMI'!B21 -> Mārketinga izmaksas | C8: =Mārketinga_plāns[[#Totals],[GADS]] -> 67,800.00 EUR | D8: =Mārketinga_faktiskās_izmaksas[[#Totals],[GADS]] -> 33,159.00 EUR | E8: =C8-D8 -> 34,641.00 EUR | F8: =E8/C8 -> 51%
B9: ='PLĀNOTIE IZDEVUMI'!B30 -> Apmācības/komandējumi | C9: =Apmācību_un_komandējumu_plāns[[#Totals],[GADS]] -> 48,000.00 EUR | D9: =Apmācību_un_komandējumu_faktiskās_izmaksas[[#Totals],[GADS]] -> 21,300.00 EUR | E9: =C9-D9 -> 26,700.00 EUR | F9: =E9/C9 -> 56%
B10: ='PLĀNOTIE IZDEVUMI'!B35 -> KOPSUMMAS | C10: ='PLĀNOTIE IZDEVUMI'!O36 -> 1,609,630.00 EUR | D10: ='FAKTISKIE IZDEVUMI'!O36 -> 782,939.00 EUR | E10: =C10-D10 -> 826,691.00 EUR | F10: =E10/C10 -> 51%
A12: Sektoru diagramma Plānotie izdevumi ir šūnā pa labi un sektoru diagramma Faktiskie izdevumi ir šūnā D12. Nākamais norādījums ir šūnā A14. | B12: Sektoru diagramma, kur redzami plānotie izdevumi dažādās kategorijās, ir šajā šūnā. | D12: Sektoru diagramma, kur redzami faktiskie izdevumi, kas rodas dažādās kategorijās, ir šajā šūnā.
A14: Diagramma, kurā redzamas plānotāis izmaksas, faktiskāis izmaksas un novirze ikmēneša izdevumi, ir šūnā pa labi.
